Workbook

Sheet Data extraction-synthesis
A1: Date of data extraction | B1: Author(s) | C1: Article title | D1: Year | E1: Type of publication | F1: Disease area | G1: Broader disease area | H1: Test(s) being assessed | I1: Type(s) of sources to populate a TPP | J1: Type(s) of sources to inform accuracy-related test characteristics | K1: Type of input sources considered during scoping phase | L1: Which decision-making steps underlying the development of TPP(s) of interest | M1: Types of stakeholders involved | N1: Funding body | O1: Does the study reports the source of funding? | P1: Source
A2: 2019-02-08 | B2: Chua, A. P., I.: Nuebling, C. M.: Wood, D.: Moussy, F. | C2: Update on Zika Diagnostic Tests and WHO's Related Activities | D2: 2017 | E2: Journal article | F2: Zika virus | G2: Vector-borne disease/infection | H2: Diagnostic test for zika infection and blood bank testing | I2: Literature, Meeting input | J2: No input sources reported | K2: No scoping phase reported | L2: Meeting with experts/stakeholders , Draft TPP, Consensus/public meeting, Feedback from the consultation (e.g. survey, meeting, expert opinion) is incorporated into the final TPPs | M2: Academia/researchers, International/public health institution , Scientific associations | N2: NO | O2: NO | P2: Database search
A3: 2019-02-08 | B3: Denkinger, C. M. D., D.: Schito, M.: Wells, W.: Cobelens, F.: Pai, M.: Zignol, M.: Cirillo, D. M.: Alland, D.: Casenghi, M.: Gallarda, J.: Boehme, C. C.: Perkins, M. D | C3: Target Product Profile of a Molecular Drug-Susceptibility Test for Use in Microscopy Centers | D3: 2015 | E3: Journal article | F3: Tubercolosis | G3: Respiratory infection | H3: A molecular drug-susceptibility test | I3: Literature, Surveys with experts/expert opinion, Models | J3: Literature, Models | K3: Literature , Market analyses, Data available, Survey with experts/Expert opinion | L3: Mapping , Survey to measure stakeholder’s preferences and agreement , Landscaping exercise , Draft TPP, Round of revisions of TPP, Draft shortened TPP, Presentation of shortened TPP to large stakeholder audience, Consensus/public meeting | M3: Academia/researchers, Clinicians, Policy makers, Test developers, Laboratory experts, Implementers, Representatives of countries and national disease programs | N3: Bill and Melinda Gates Foundation; American Society of Tropical Medicine and Hygiene; National Institute of Allergy and Infectious Diseases, National Institutes of Health, Department of Health and Human Services | O3: yes | P3: Both
A4: 2019-02-08 | B4: Denkinger, C. M. K., Sandra V.: Cirillo, Daniela Maria: Casenghi, Martina: Shinnick, Thomas: Weyer, Karin: Gilpin, Chris: Boehme, Catharina C.: Schito, Marco: Kimerling, Michael: Pai, Madhuka | C4: Defining the needs for next generation assays for tuberculosis | D4: 2015 | E4: Journal article | F4: Tubercolosis | G4: Respiratory infection | H4: 1) A diagnostic test 2) A diagnostic biomarker test 3) A referall screening test | I4: Literature, Interviews with experts, Models | J4: Literature, Models | K4: Literature, Survey with experts/Expert opinion, Reports | L4: Definition problem statement/use case , Prioritization exercise , Draft TPP, Round of revisions of TPP, Draft shortened TPP, Presentation of shortened TPP to large stakeholder audience, Delphi-like approach to gauge stakeholders’ agreement with the TPP, Consensus/public meeting | M4: Representatives of countries and national disease programs, Clinicians, Academia/researchers, Laboratory experts, Patient/community advocates, Modelers, Market experts, Policy makers, Test developers, Technical/funding agencies | N4: Bill and Melinda Gates Foundation | O4: YES | P4: Database search
A5: 2019-02-08 | B5: DIAMETER Project, PATH | C5: Point-of-Care Malaria Infection Detection Test For rapid detection of low-density, subclinical malaria infections | D5: 2014 | E5: Report | F5: Malaria | G5: Vector-borne disease/infection | H5: A POC infection detection test | I5: Literature, Available data, Field observations, Models | J5: Literature, Surveys with experts/expert opinion | K5: No scoping phase reported | L5: N/A | M5: N/A | N5: Bill and Melinda Gates Foundation | O5: YES | P5: Website search
A6: 2019-02-08 | B6: Ding, X. C. A., Maria Paz: Baird, J. Kevin: Cheng, Qin: Cunningham, Jane: Dhorda, Mehul: Drakeley, Chris: Felger, Ingrid: Gamboa, Dionicia: Harbers, Matthias: Herrera, Socrates: Lucchi, Naomi: Mayor, Alfredo: Mueller, Ivo: Sattabongkot, Jetsumon: Ratsimbason, Arsène: Richards, Jack: Tanner, Marcel: González, Iveth J. | C6: Defining the next generation of Plasmodium vivax diagnostic tests for control and elimination: Target product profiles | D6: 2017 | E6: Journal article | F6: Malaria | G6: Vector-borne disease/infection | H6: 1) A diagnostic test 2) A POC diagnostic test 3) A screening test | I6: Literature, Surveys with experts/expert opinion, Models | J6: Literature, Models | K6: Survey with experts/Expert opinion | L6: Definition problem statement/use case , Draft TPP, Round of revisions of TPP, Survey to measure stakeholder’s preferences and agreement | M6: Academia/researchers, Representatives of countries and national disease programs, International/public health institution | N6: Department of Foreign Affairs and Trade, | O6: YES | P6: Both
A7: 2019-02-08 | B7: Dittrich, S. T., B. T.: Moussy, F.: Chua, A.: Zorzet, A.: Tangden, T.: Dolinger, D. L.: Page, A. L.: Crump, J. A.: Valerie, D.: Bassat, Q.: Lubell, Y.: Heinrich, N.: Newton, P. N.: Rodwell, T.: Gonzalez, I. J. | C7: Target Product Profile for a Diagnostic Assay to Differentiate between Bacterial and Non-Bacterial Infections to Guide Antimicrobials Use in Resource-Limited Settings: An Expert Consensus | D7: 2016 | E7: Journal article | F7: Malaria | G7: Vector-borne disease/infection | H7: A test to distinguish bacterial from non-bacterial infections | I7: Literature, Surveys with experts/expert opinion, Industry standard | J7: Surveys with experts/expert opinion | K7: Literature | L7: Landscaping exercise , Draft TPP, Delphi-like approach to gauge stakeholders’ agreement with the TPP, Round of revisions of TPP, Feedback from the consultation (e.g. survey, meeting, expert opinion) is incorporated into the final TPPs, Prioritization exercise , Consensus/public meeting | M7: Academia/researchers, Laboratory experts, Microbiologists, Health economists, Test developers, International/public health institution | N7: the Dutch Government, with aid from the UK and the Australian Government | O7: YES | P7: Both
A8: 2019-02-08 | B8: WHO | C8: High-priority target product profile for hepatitis C diagnosis in decentralized settings: Report of a consensus meeting. | D8: 2015 | E8: Report | F8: Hepatits C | G8: Vector-borne disease/infection | H8: 1) HCV nucleic acid amplification diagnostic test 2) HCV cAg diagnostictest | I8: Literature, Surveys with experts/expert opinion, Models | J8: Literature, Surveys with experts/expert opinion, Models , Available data | K8: Survey with experts/Expert opinion | L8: Prioritization exercise , Draft TPP, Draft shortened TPP, Delphi-like approach to gauge stakeholders’ agreement with the TPP, Consensus/public meeting | M8: Clinicians, Implementers, Representatives of countries and national disease programs, Test developers, Technical/funding agencies , Patient/community advocates, International/public health institution , Academia/researchers, Other | O8: NO | P8: Website search
A9: 2019-02-08 | B9: Gal, M. F., N. A.: Hood, K.: Villacian, J.: Goossens, H.: Watkins, A.: Butler, C. C. | C9: Matching diagnostics development to clinical need: Target product profile development for a point of care test for community-acquired lower respiratory tract infection | D9: 2018 | E9: Journal article | F9: Community-acquired lower respiratory tract infection | G9: Respiratory infection | H9: POC test | I9: Literature, Surveys with experts/expert opinion, Meeting input, Interviews with experts | J9: Literature | K9: Survey with experts/Expert opinion | L9: Prioritization exercise , Survey to retrieve input relevant for TPP , Draft TPP, Meeting with experts/stakeholders , Feedback from the consultation (e.g. survey, meeting, expert opinion) is incorporated into the final TPPs | M9: Clinicians, Microbiologists, Test developers, Industry (unspecific), Academia/researchers, Market experts | N9: Innovative Medicines Initiative IMI-JU-02-2009-04 Infectious Diseases-Diagnostic Tools | O9: YES | P9: Database search
A10: 2019-02-08 | B10: Lim, M. D. B., S. J.: Belizario, V. Y., Jr.: Gay-Andrieu, F.: Gilleard, J.: Levecke, B.: Lieshout, L. van: Medley, G. F.: Mekonnen, Z.: Mirams, G.: Njenga, S. M.: Odiere, M. R.: Rudge, J. W.: Stuyver, L.: Vercruysse, J.: Vlaminck, J.: Walson, J. L. | C10: Diagnostic tools for soil-transmitted helminths control and elimination programs: a pathway for diagnostic product development | D10: 2018 | E10: Journal article | F10: Soil-transmitted helminths | G10: Neglected tropical diseases | H10: 1) a diagnostic test for mapping-monitoring 2) diagnostic test to confirm decision to stop intervention | I10: Surveys with experts/expert opinion, Guidelines, Literature, Meeting input | J10: Literature | K10: Survey with experts/Expert opinion, Literature | L10: Landscaping exercise , Definition problem statement/use case , Draft TPP, Round of revisions of TPP, Meeting with experts/stakeholders , Feedback from the consultation (e.g. survey, meeting, expert opinion) is incorporated into the final TPPs | M10: Academia/researchers, Implementers, Test developers | N10: no | O10: no | P10: Database search
A11: 2019-02-08 | B11: Nsanzabana, C. A., Frederic: Beck, Hans-Peter: Ding, Xavier C.: Kamau, Edwin: Krishna, Sanjeev: Legrand, Eric: Lucchi, Naomi: Miotto, Olivo: Nag, Sidsel: Noedl, Harald: Roper, Cally: Rosenthal, Philip J.: Schallig, Henk D. F. H.: Taylor, Steve M.: Volkman, Sarah K.: Gonzalez, Iveth J. | C11: Molecular assays for antimalarial drug resistance surveillance: A target product profile | D11: 2018 | E11: Journal article | F11: Antimalaria drug resistance | G11: Vector-borne disease/infection | H11: Antimalarial drug resistance diagnostic test | I11: Literature | J11: Literature | K11: Literature | L11: Landscaping exercise , Draft TPP, Survey to measure stakeholder’s preferences and agreement , Consensus/public meeting, Feedback from the consultation (e.g. survey, meeting, expert opinion) is incorporated into the final TPPs | M11: Academia/researchers, International/public health institution , Industry (unspecific) | O11: NO | P11: Both
A12: 2019-02-08 | B12: Porras, A. I. Y., Z. E.: Altcheh, J.: Britto, C.: Chaves, G. C.: Flevaud, L.: Martins, O. A.: Ribeiro, I.: Schijman, A. G.: Shikanai-Yasuda, M. A.: Sosa-Estani, S.: Stobbaerts, E.: Zicker, F. | C12: Target Product Profile (TPP) for Chagas Disease Point-of-Care Diagnosis and Assessment of Response to Treatmen | D12: 2015 | E12: Journal article | F12: Chagas disease/America trypanosomiasis | G12: Neglected tropical diseases | H12: 1-2) a POC diagnostic test 3) a treatment-monitoring test | I12: Meeting input | J12: No input sources reported | K12: Survey with experts/Expert opinion | L12: Meeting with experts/stakeholders , Definition problem statement/use case , Draft TPP | M12: N/A | N12: Pan-Amertican Health Organization and The Special Programme for Research and Training in Tropical Diseases | O12: YES | P12: Both
A13: 2019-02-08 | B13: Reipold, E. I. E., Philippa: Trianni, Alessandra: Panneer, Nivedha: Krakower, Douglas: Ongarello, Stefano: Roberts, Teri: Miller, Veronica: Denkinger, Claudia | C13: Optimising diagnosis of viraemic hepatitis C infection: the development of a target product profile | D13: 2017 | E13: Journal article | F13: Hepatitis C | G13: Vector-borne disease/infection | H13: A diagnostic test | I13: Literature, Surveys with experts/expert opinion, Models | J13: Literature, Surveys with experts/expert opinion, Models | K13: Survey with experts/Expert opinion | L13: Identification of stakeholders to involve in draft TPP , Prioritization exercise , Definition TPP domains , Draft TPP, Delphi-like approach to gauge stakeholders’ agreement with the TPP, Consensus/public meeting | M13: International/public health institution , Academia/researchers, Technical/funding agencies , Industry (unspecific), Patient/community advocates, Representatives of countries and national disease programs, Clinicians, Implementers, Policy makers, Program manager | N13: WHO | O13: YES | P13: Both
A14: 2019-02-11 | B14: Solomon, A. W. E., D.: Bailey, R. L.: Blake, I. M.: Brooker, S.: Chen, J. X.: Chen, J. H.: Churcher, T. S.: Drakeley, C. J.: Edwards, T.: Fenwick, A.: French, M.: Gabrielli, A. F.: Grassly, N. C.: Harding-Esch, E. M.: Holland, M. J.: Koukounari, A.: Lammie, P. J.: Leslie, J.: Mabey, D. C.: Rhajaoui, M.: Secor, W. E.: Stothard, J. R.: Wei, H.: Willingham, A. L.: Zhou, X. N.: Peeling, R. W. | C14: A diagnostics platform for the integrated mapping, monitoring, and surveillance of neglected tropical diseases: Rationale and target product profiles | D14: 2012 | E14: Journal article | F14: Neglected tropical diseases ( lymphatic filariasis, trachoma, schistosomiasis, onchocerciasis, soil-transmitted helminths) | G14: Neglected tropical diseases | H14: 1) A diagnostic tool with mapping and impact monitoring potential 2) A diagnostic tool | I14: Consensus meeting inputs | J14: No input sources reported | K14: No scoping phase reported | L14: Draft TPP | M14: Laboratory experts, Modelers, Health economists, Experts (unspecific), Program manager | N14: WHO | O14: YES | P14: Database search
A15: 2019-02-11 | B15: Toskin, I. M., M.: Peeling, R. W.: Blondeel, K.: Cordero, J.: Kiarie, J. | C15: Advancing prevention of sexually transmitted infections through point-of-care testing: target product profiles and landscape analysis | D15: 2017 | E15: Journal article | F15: Sexually transmitted infections | G15: Sexually transmitted infections/diseases | H15: A combined diagnostic POC 2) POC platforms 3) A combined diagnostic test | I15: Literature, Models , Surveys with experts/expert opinion, Consensus meeting inputs, Interviews with experts | J15: Consensus meeting inputs | K15: Literature , Reports, Websites of developers, Interviews with experts, Policies | L15: Landscaping exercise , Reviewing available literature and data, Survey to retrieve input relevant for TPP , Draft TPP, Consensus/public meeting, Feedback from the consultation (e.g. survey, meeting, expert opinion) is incorporated into the final TPPs, Round of revisions of TPP | M15: Clinicians, Test developers, International/public health institution , Experts (unspecific), Laboratory experts, Microbiologists | O15: NO | P15: Database search
A16: 2019-02-11 | B16: Donadeu, M. F., A. S.: Olliaro, P. L.: Abela-Ridder, B | C16: Target product profiles for the diagnosis of Taenia solium taeniasis, neurocysticercosis and porcine cysticercosis | D16: 2017 | E16: Journal article | F16: Taenia solium taeniasis, neurocysticercosis and porcine cysticercosis | G16: Neglected tropical diseases | H16: 1) A POC test that could be used for surveillance 2) A specific test 3)A POC test 4) A monitoring test | I16: Surveys with experts/expert opinion, Literature | J16: Literature, Surveys with experts/expert opinion | K16: Survey with experts/Expert opinion | L16: Meeting with experts/stakeholders , Identification of most important needs, Draft TPP, Survey to measure stakeholder’s preferences and agreement , Feedback from the consultation (e.g. survey, meeting, expert opinion) is incorporated into the final TPPs, Round of revisions of TPP | M16: International/public health institution , Representatives of countries and national disease programs, Experts (unspecific), Industry (unspecific), Academia/researchers, Clinicians | N16: NO | O16: NO | P16: Both
A17: 2019-02-11 | B17: FIND | C17: Target Product Profile for Tests for Recent HIV Infection | D17: 2017 | E17: Report | F17: HIV Infection | G17: Sexually transmitted infections/diseases | H17: A diagnostic test | I17: Surveys with experts/expert opinion, Meeting input | J17: No input sources reported | K17: Survey with experts/Expert opinion | L17: Definition problem statement/use case , Identification of most important needs, Draft TPP, Consolidation of findings, Draft shortened TPP, Delphi-like approach to gauge stakeholders’ agreement with the TPP, Feedback from the consultation (e.g. survey, meeting, expert opinion) is incorporated into the final TPPs, Consensus/public meeting | M17: Academia/researchers, International/public health institution , Scientific associations, Industry (unspecific), Policy makers, Non-profit sector | N17: Bill & Melinda Gates Foundation | O17: YES | P17: Website search
A18: 2019-02-11 | B18: FIND | C18: Target Product Profile: Rapid test for diagnosis of malaria and screening for hyman African trypanosomiasis (HAT) | D18: 2017 | E18: Report | F18: Human African trypanosomiasis | G18: Vector-borne disease/infection | H18: Rapid test for diagnosis and screening | I18: No input sources reported | J18: No input sources reported | K18: No scoping phase reported | L18: Draft TPP, Delphi-like approach to gauge stakeholders’ agreement with the TPP | M18: Academia/researchers, Non-profit sector, Industry (unspecific) | O18: NO | P18: Website search
A19: 2019-02-11 | B19: PATH | C19: Target Product Profile: HIV Self-Test Version 4.1: A White Paper on the Evaluation of Current HIV Rapid Tests and Development of Core Specifications for Next-Generation HIV Tests | D19: 2014 | E19: Report | F19: HIV | G19: Sexually transmitted infections/diseases | H19: A self-test | I19: Literature, Interviews with experts, Available data, Early usability studies , Laboratory evaluations | J19: Literature, Laboratory evaluations, Early usability studies | K19: No scoping phase reported | L19: Draft TPP, Round of revisions of TPP | M19: N/A | N19: Bill & Melinda Gates Foundation | O19: yes | P19: Website search
A20: =A19 -> 2019-02-11 | B20: PATH | C20: Diagnostics for neglected tropical diseases: Defining the best tools through target product profiles | D20: 2015 | E20: Report | F20: Neglected Tropical Diseases | G20: Neglected tropical diseases | H20: =F20 -> Neglected Tropical Diseases | I20: Interviews with experts | J20: N/A | K20: Literature , Interviews with experts | L20: Reviewing available literature and data, Definition problem statement/use case , Draft TPP, Feedback from the consultation (e.g. survey, meeting, expert opinion) is incorporated into the final TPPs, Round of revisions of TPP | M20: Industry (unspecific), Academia/researchers, Representatives of countries and national disease programs, Non-profit sector, Policy makers, Donors | N20: Bill & Melinda Gates Foundation, United Kingdom Department for International Development | O20: yes | P20: Website search
A21: 2019-02-11 | B21: PATH | C21: Target Product Profile: Schistosomiasis Surveillance Diagnostic | D21: 2015 | E21: Report | F21: Schistosomiasis | G21: Neglected tropical diseases | H21: A rapid diagnostic test | I21: Guidelines, Literature, Interviews with experts, Field observations, Available data | J21: Literature | K21: No scoping phase reported | L21: N/A | M21: N/A | O21: NO | P21: Website search
A22: =A21 -> 2019-02-11 | B22: UNICEF | C22: UNICEF Target Product Profile Rapid E.coli Detection (version 2.0) | D22: 2017 | E22: Report | F22: E.coli infection/diarrhoea | G22: Vector-borne disease/infection | H22: Water quality testing product | I22: No input sources reported | J22: No input sources reported | K22: N/A | L22: N/A | M22: N/A | N22: No | O22: No | P22: Website search
A23: 2019-02-11 | B23: UNICEF | C23: UNICEF Target Product Profile Rapid E.coli Detection (1.4) | D23: 2016 | E23: Report | F23: E.coli infection/diarrhoea | G23: Vector-borne disease/infection | H23: Water quality testing product | I23: No input sources reported | J23: No input sources reported | K23: N/A | L23: N/A | M23: N/A | O23: NO | P23: Website search
A24: 2019-02-11 | B24: WHO | C24: High-priority target product profile for new tubercolosis diagnostics: report of a consensus meeting | D24: 2014 | E24: Report | F24: Tubercolosis | G24: Respiratory infection | H24: 1) A diagnostic test 2) A diagnostic biomarker test 3) A referall screening test 4) A drug-susceptibility test | I24: Literature, Surveys with experts/expert opinion, Consensus meeting inputs, Models | J24: Literature, Models , Surveys with experts/expert opinion | K24: Survey with experts/Expert opinion | L24: Prioritization exercise , Draft TPP, Draft shortened TPP, Delphi-like approach to gauge stakeholders’ agreement with the TPP, Consensus/public meeting | M24: Academia/researchers, Industry (unspecific), Representatives of countries and national disease programs, Technical/funding agencies , Implementers, Clinicians, Donors, International/public health institution | N24: Bill and Melinda Gates Foundation | O24: yes | P24: Website search
A25: 2019-02-11 | B25: WHO | C25: Development of a Target Product Profile (TPP) and framework for evaluation for a test predicting progression from tubercolosis infection to active disease | D25: 2017 | E25: Report | F25: Tubercolosis | G25: Respiratory infection | H25: A test for predicting disease progression | I25: Surveys with experts/expert opinion, Meeting input | J25: N/A | K25: No scoping phase reported | L25: Meeting with experts/stakeholders , Draft TPP, Survey to retrieve input relevant for TPP , Delphi-like approach to gauge stakeholders’ agreement with the TPP, Consensus/public meeting | M25: Academia/researchers, International/public health institution , Non-profit sector, Patient/community advocates, Test developers, Scientific associations, Representatives of countries and national disease programs, Technical/funding agencies , Donors | N25: NO | O25: no | P25: Website search
A26: 2019-02-11 | B26: WHO | C26: Specifications for a rapid diagnostic test for meningitis African meningitis belt/ Target product profile for the development of a new generation of rapid test for the diagnosis of bacterial meningitis | D26: 2016 | E26: Report | F26: Meningits | G26: Meningitis | H26: A rapid diagnostic test | I26: No input sources reported | J26: No input sources reported | K26: No scoping phase reported | L26: N/A | M26: N/A | N26: NO | O26: no | P26: Website search
A27: 2019-02-11 | B27: WHO | C27: Target Product Profile for Zaire ebolavirus rapid,simple test to be used in the control of the Ebola outbreak in West Africa | D27: 2014 | E27: Report | F27: Ebola virus | G27: Ebola virus | H27: A rapid test | I27: No input sources reported | J27: No input sources reported | K27: No scoping phase reported | L27: N/A | M27: International/public health institution , Non-profit sector | N27: no | O27: no | P27: Website search
A28: 2019-02-11 | B28: WHO | C28: Report of WHO-FIND meeting on diagnostics for Buruli ulcer | D28: 2018 | E28: Report | F28: Buruli ulcer | G28: Neglected tropical diseases | H28: 1) A rapid diagnostic test 2)A diagnostic test with treatment-monitoring potential | I28: Meeting input | J28: N/A | K28: Survey with experts/Expert opinion | L28: Definition problem statement/use case , Draft TPP | M28: Academia/researchers, International/public health institution , Policy makers, Clinicians | N28: NO | O28: NO | P28: Website search
A29: 2019-02-11 | B29: WHO | C29: Taenia solium taeniasis/cysticercosis diagnostic tools. Report of a stakeholder meeting | D29: 2016 | E29: Report | F29: Taenia solium taeniasis/cysticercosis | G29: Neglected tropical diseases | I29: Meeting inputs | J29: N/A | K29: Survey with experts/Expert opinion | L29: Definition problem statement/use case , Draft TPP | M29: Academia/researchers, International/public health institution | N29: no | O29: no | P29: Website search
A30: 2019-02-11 | B30: Utzinger, J. B., S. L.: van Lieshout, L.: van Dam, G. J.: Knopp, S | C30: New diagnostic tools in schistosomiasis | D30: 2015 | E30: Journal article | F30: Schistosomiasis | G30: Neglected tropical diseases | H30: 1) A diagnostic test for mapping-monitoring 2) A diagnostic tool | I30: No input sources reported | J30: N/A | K30: No scoping phase reported | L30: N/A | M30: N/A | N30: Bill & Melinda Gates Foundation | O30: yes | P30: Website search
A31: 2019-02-11 | B31: UNICEF | C31: Zika Virus Diagnostics: Target Product Profiles & Supply Update | D31: 2017 | E31: Report | F31: Zika virus | G31: Vector-borne disease/infection | H31: A diagnostic test | I31: Literature, Interviews with experts, Surveys with experts/expert opinion | J31: N/A | K31: Survey with experts/Expert opinion | L31: Defining scope TPP , Draft TPP, Round of revisions of TPP, Feedback from the consultation (e.g. survey, meeting, expert opinion) is incorporated into the final TPPs | M31: Academia/researchers, International/public health institution , Industry (unspecific) | O31: NO | P31: Website search
A32: 2019-02-11 | B32: UNICEF | C32: Pneumonia Acute Respiratory Infection Diagnostic Aid-Target Product Profile Introduction | D32: 2014 | E32: Report | F32: Pneumonia Acute Respiratory infection | G32: Respiratory infection | H32: A diagnostic aid | I32: Interviews with experts, Literature | J32: N/A | K32: Literature, Survey with experts/Expert opinion | L32: Reviewing available literature and data, Defining scope TPP , Draft TPP, Round of revisions of TPP, Survey to measure stakeholder’s preferences and agreement | M32: Industry (unspecific), Academia/researchers, International/public health institution | O32: NO | P32: Website search
A33: 2019-02-11 | B33: Pal S, Jasper L.E., Lawrence K.L, Walter M | C33: Assessing the Dengue Diagnosis Capability Gap in the Military Health System | D33: 2016 | E33: Journal article | F33: Dengue fever | G33: Vector-borne disease/infection | H33: A diagnostic test | I33: Surveys with experts/expert opinion, Models | J33: Surveys with experts/expert opinion, Models | K33: Questionnaire provided to expert | L33: Identification of most important needs, Draft TPP | M33: Experts (unspecific), Other | N33: Military Infectious Diseases Research Program, U.S. Army Medical Research and Materiel Command, Fort Detrick, Maryland. | O33: yes | P33: Database search
A34: 2019-02-11 | B34: PATH | C34: Target Product Profile: Schistosomiasis Surveillance Diagnostic Lateral Flow Test CAA antigen | D34: 2015 | E34: Report | F34: Schistosomiasis | G34: Neglected tropical diseases | H34: A lateral flow test | I34: Literature, Surveys with experts/expert opinion, Interviews with experts, Field observations, Guidelines, Available data | J34: Literature | K34: No scoping phase reported | L34: N/A | M34: N/A | N34: no | O34: no | P34: Website search
A35: 2019-02-11 | B35: PATH | C35: Target Product Profile: Trachoma Surveillance Diagnostic-Post-Elimination Surveillance Antibody Lateral Flow Test | D35: 2015 | E35: Report | F35: Trachoma | G35: Neglected tropical diseases | H35: A lateral flow rapid diagnostic test | I35: Literature, Guidelines, Available data, Surveys with experts/expert opinion, Interviews with experts | J35: Literature | K35: No scoping phase reported | L35: N/A | M35: N/A | N35: nO | O35: NO | P35: Website search
A36: 2019-02-11 | B36: International Diagnostics Centre (IDC) | C36: Target Product Profile (TPP) - Point-of-Care HIV Viral Load Test | D36: 2013 | E36: Published TPP | F36: HIV | G36: Sexually transmitted infections/diseases | H36: A POC test | I36: No input sources reported | J36: No input sources reported | K36: No scoping phase reported | L36: N/A | M36: N/A | N36: NO | O36: NO | P36: Website search
A37: 2019-02-11 | B37: International Diagnostics Centre (IDC) | C37: Target Product Profile (TPP)- Point of care CD4 test | D37: 2013 | E37: Published TPP | F37: HIV | G37: Sexually transmitted infections/diseases | H37: A POC test | I37: No input sources reported | J37: No input sources reported | K37: No scoping phase reported | L37: N/A | M37: N/A | N37: no | O37: no | P37: Website search
A38: 2019-02-11 | B38: International Diagnostics Centre (IDC) | C38: Target Product Profile (TPP): Point of care EID test | D38: 2013 | E38: Published TPP | F38: HIV | G38: Sexually transmitted infections/diseases | H38: A POC | I38: No input sources reported | J38: No input sources reported | K38: No scoping phase reported | L38: N/A | M38: N/A | N38: no | O38: no | P38: Website search
A39: 2019-02-11 | B39: Internationa Diagnostics Centre (IDC) | C39: Target Product Profile (TPP): Combined HIV/Syphilis Test | D39: 2014 | E39: Published TPP | F39: HIV and Syphilis | G39: Sexually transmitted infections/diseases | H39: A combined test | I39: No input sources reported | J39: No input sources reported | K39: No scoping phase reported | L39: N/A | M39: N/A | N39: no | O39: no | P39: Website search
A40: 2019-02-11 | B40: Ebels, K. B. C., C.: Crudder, C. H.: McGray, S.: Magnuson, K.: Tietje, K.: Labarre, P | C40: Incorporating user needs into product development for improved infection detection for malaria elimination programs | D40: 2014 | E40: Journal article | F40: Malaria | G40: Vector-borne disease/infection | H40: A diagnostic test | I40: Interviews with experts, Field observations | J40: N/A | K40: Field research, Ethnographic interviews | L40: Definition problem statement/use case , Consolidation of findings, Draft TPP | M40: Test developers, Academia/researchers, Strategists, Program manager, International/public health institution , Representatives of countries and national disease programs, Policy makers, Donors, Clinicians, Laboratory experts, Microbiologists | N40: NO | O40: NO | P40: Database search
A41: 2019-02-11 | B41: FIND | C41: Target Product Profile: Screening test for human African trypanosomiasis (HAT) | D41: 2017 | E41: Report | F41: Human African trypanosomiasis | G41: Neglected tropical diseases | H41: A screening test | I41: No input sources reported | J41: No input sources reported | K41: No scoping phase reported | L41: Draft TPP, Delphi-like approach to gauge stakeholders’ agreement with the TPP | M41: Academia/researchers, International/public health institution , Non-profit sector, Industry (unspecific) | O41: NO | P41: Website search
A42: 2019-02-11 | B42: PATH | C42: Target Product Profile: Trachoma surveillance diagnostic-antigen lateral flow test | D42: 2015 | E42: Report | F42: Trachoma | G42: Neglected tropical diseases | H42: A lateral flow test | I42: Literature, Guidelines, Surveys with experts/expert opinion, Available data | J42: Literature | K42: No scoping phase reported | L42: N/A | M42: N/A | N42: no | O42: no | P42: Website search
A43: 2019-02-11 | B43: Peck, R. B. W., J. D.: Boettcher, M. G.: Downing | C43: Defining product requirements for field deployable yellow fever tests | D43: 2015 | E43: Poster | F43: Yellow fever | G43: Vector-borne disease/infection | H43: A field-deployable test | I43: Interviews with experts | J43: N/A | K43: Interviews with experts | L43: Definition problem statement/use case , Draft TPP | M43: Technical/funding agencies , Academia/researchers, Clinicians, Test developers, Other | N43: Global Alliance for Vaccines and Immunisation (GAVI) Fund | O43: yes | P43: Database search
A44: 2019-02-11 | B44: PATH | C44: Target Product Profile: Schistosomiasis Surveillance Diagnostic - schistosoma genus-specific antibody lateral flow test post-elimination surveillance | D44: 2015 | E44: Report | F44: Schistomiasis | G44: Neglected tropical diseases | H44: A lateral flow test | I44: Interviews with experts, Field observations, Literature, Guidelines, Available data | J44: Literature | K44: No scoping phase reported | L44: N/A | M44: N/A | N44: no | O44: no | P44: Website search
A45: 2019-02-11 | B45: WHO, FIND, Medecins sans Frontiers | C45: A Multiplex Multi-Analyte Diagnostic Platform | E45: Report | F45: Fever | G45: Fever | H45: A generic assay cartridge | I45: Interviews with experts, Surveys with experts/expert opinion | J45: No input sources reported | K45: No scoping phase reported | L45: Interview with stakeholders, Draft TPP, Delphi-like approach to gauge stakeholders’ agreement with the TPP, Feedback from the consultation (e.g. survey, meeting, expert opinion) is incorporated into the final TPPs, Consensus/public meeting | M45: N/A | N45: MSF, FIND, WHO | O45: yes | P45: Website search

Sheet Input TPP scoping phase source
C1: Input source to populate scoping phase
A2: Authors | B2: Article title | C2: Literature | D2: Interviews with experts | E2: Expert opinion | F2: Ethnographic interviews | G2: Reports | H2: Questionnaire provided to expert | I2: Field research | J2: Policies | K2: Websites of developers | L2: Data available | M2: No scoping phase reported | N2: N/A | O2: More than 1 input source? | P2: % STUDIES WITH 1 INPUT SOURCE | Q2: % STUDIES WITH >1 INPUT SOURCE | T2: Single source | W2: Which type of literature?
A3: Chua, A. P., I.: Nuebling, C. M.: Wood, D.: Moussy, F. | B3: Update on Zika Diagnostic Tests and WHO's Related Activities | C3: =IF(ISNUMBER(SEARCH("Literature",'Data extraction-synthesis'!K2)),"X","") ->  | D3: =IF(ISNUMBER(SEARCH("Interviews with experts",'Data extraction-synthesis'!K2)),"X","") ->  | E3: =IF(ISNUMBER(SEARCH("Survey with experts/Expert opinion",'Data extraction-synthesis'!K2)),"X","") ->  | F3: =IF(ISNUMBER(SEARCH("Ethnographic interviews",'Data extraction-synthesis'!K2)),"X","") ->  | G3: =IF(ISNUMBER(SEARCH("Reports",'Data extraction-synthesis'!K2)),"X","") ->  | H3: =IF(ISNUMBER(SEARCH("Questionnaire provided to expert",'Data extraction-synthesis'!K2)),"X","") ->  | I3: =IF(ISNUMBER(SEARCH("Field research",'Data extraction-synthesis'!K2)),"X","") ->  | J3: =IF(ISNUMBER(SEARCH("Policies",'Data extraction-synthesis'!K2)),"X","") ->  | K3: =IF(ISNUMBER(SEARCH("Websites of developers",'Data extraction-synthesis'!K2)),"X","") ->  | L3: =IF(ISNUMBER(SEARCH("Data available",'Data extraction-synthesis'!K2)),"X","") ->  | M3: =IF(ISNUMBER(SEARCH("No scoping phase reported",'Data extraction-synthesis'!K2)),"X","") -> X | N3: =IF(ISNUMBER(SEARCH("N/A",'Data extraction-synthesis'!K2)),"X","") ->  | O3: =IF(OR(N3="X",M3="X"),"N/A",IF((COUNTIF(C3:N3,"X"))>1,"YES","NO")) -> N/A | P3: =COUNTIF(O3:O46,"NO") -> 15 | Q3: =COUNTIF(O3:O46,"YES") -> 7
A4: Denkinger, C. M. D., D.: Schito, M.: Wells, W.: Cobelens, F.: Pai, M.: Zignol, M.: Cirillo, D. M.: Alland, D.: Casenghi, M.: Gallarda, J.: Boehme, C. C.: Perkins, M. D | B4: Target Product Profile of a Molecular Drug-Susceptibility Test for Use in Microscopy Centers | C4: =IF(ISNUMBER(SEARCH("Literature",'Data extraction-synthesis'!K3)),"X","") -> X | D4: =IF(ISNUMBER(SEARCH("Interviews with experts",'Data extraction-synthesis'!K3)),"X","") ->  | E4: =IF(ISNUMBER(SEARCH("Survey with experts/Expert opinion",'Data extraction-synthesis'!K3)),"X","") -> X | F4: =IF(ISNUMBER(SEARCH("Ethnographic interviews",'Data extraction-synthesis'!K3)),"X","") ->  | G4: =IF(ISNUMBER(SEARCH("Reports",'Data extraction-synthesis'!K3)),"X","") ->  | H4: =IF(ISNUMBER(SEARCH("Questionnaire provided to expert",'Data extraction-synthesis'!K3)),"X","") ->  | I4: =IF(ISNUMBER(SEARCH("Field research",'Data extraction-synthesis'!K3)),"X","") ->  | J4: =IF(ISNUMBER(SEARCH("Policies",'Data extraction-synthesis'!K3)),"X","") ->  | K4: =IF(ISNUMBER(SEARCH("Websites of developers",'Data extraction-synthesis'!K3)),"X","") ->  | L4: =IF(ISNUMBER(SEARCH("Data available",'Data extraction-synthesis'!K3)),"X","") -> X | M4: =IF(ISNUMBER(SEARCH("No scoping phase reported",'Data extraction-synthesis'!K3)),"X","") ->  | N4: =IF(ISNUMBER(SEARCH("N/A",'Data extraction-synthesis'!K3)),"X","") ->  | O4: YES | P4: =+COUNTIF(O3:O46,"N/A") -> 22 | Q4: =44-P4 -> 22 | W4: It is only mentioned literature search
A5: Denkinger, C. M. K., Sandra V.: Cirillo, Daniela Maria: Casenghi, Martina: Shinnick, Thomas: Weyer, Karin: Gilpin, Chris: Boehme, Catharina C.: Schito, Marco: Kimerling, Michael: Pai, Madhuka | B5: Defining the needs for next generation assays for tuberculosis | C5: =IF(ISNUMBER(SEARCH("Literature",'Data extraction-synthesis'!K4)),"X","") -> X | D5: =IF(ISNUMBER(SEARCH("Interviews with experts",'Data extraction-synthesis'!K4)),"X","") ->  | E5: =IF(ISNUMBER(SEARCH("Survey with experts/Expert opinion",'Data extraction-synthesis'!K4)),"X","") -> X | F5: =IF(ISNUMBER(SEARCH("Ethnographic interviews",'Data extraction-synthesis'!K4)),"X","") ->  | G5: =IF(ISNUMBER(SEARCH("Reports",'Data extraction-synthesis'!K4)),"X","") -> X | H5: =IF(ISNUMBER(SEARCH("Questionnaire provided to expert",'Data extraction-synthesis'!K4)),"X","") ->  | I5: =IF(ISNUMBER(SEARCH("Field research",'Data extraction-synthesis'!K4)),"X","") ->  | J5: =IF(ISNUMBER(SEARCH("Policies",'Data extraction-synthesis'!K4)),"X","") ->  | K5: =IF(ISNUMBER(SEARCH("Websites of developers",'Data extraction-synthesis'!K4)),"X","") ->  | L5: =IF(ISNUMBER(SEARCH("Data available",'Data extraction-synthesis'!K4)),"X","") ->  | M5: =IF(ISNUMBER(SEARCH("No scoping phase reported",'Data extraction-synthesis'!K4)),"X","") ->  | N5: =IF(ISNUMBER(SEARCH("N/A",'Data extraction-synthesis'!K4)),"X","") ->  | O5: YES | W5: It only mentioned literature search
A6: DIAMETER Project, PATH | B6: Point-of-Care Malaria Infection Detection Test For rapid detection of low-density, subclinical malaria infections | C6: =IF(ISNUMBER(SEARCH("Literature",'Data extraction-synthesis'!K5)),"X","") ->  | D6: =IF(ISNUMBER(SEARCH("Interviews with experts",'Data extraction-synthesis'!K5)),"X","") ->  | E6: =IF(ISNUMBER(SEARCH("Survey with experts/Expert opinion",'Data extraction-synthesis'!K5)),"X","") ->  | F6: =IF(ISNUMBER(SEARCH("Ethnographic interviews",'Data extraction-synthesis'!K5)),"X","") ->  | G6: =IF(ISNUMBER(SEARCH("Reports",'Data extraction-synthesis'!K5)),"X","") ->  | H6: =IF(ISNUMBER(SEARCH("Questionnaire provided to expert",'Data extraction-synthesis'!K5)),"X","") ->  | I6: =IF(ISNUMBER(SEARCH("Field research",'Data extraction-synthesis'!K5)),"X","") ->  | J6: =IF(ISNUMBER(SEARCH("Policies",'Data extraction-synthesis'!K5)),"X","") ->  | K6: =IF(ISNUMBER(SEARCH("Websites of developers",'Data extraction-synthesis'!K5)),"X","") ->  | L6: =IF(ISNUMBER(SEARCH("Data available",'Data extraction-synthesis'!K5)),"X","") ->  | M6: =IF(ISNUMBER(SEARCH("No scoping phase reported",'Data extraction-synthesis'!K5)),"X","") -> X | N6: =IF(ISNUMBER(SEARCH("N/A",'Data extraction-synthesis'!K5)),"X","") ->  | O6: N/A
A7: Ding, X. C. A., Maria Paz: Baird, J. Kevin: Cheng, Qin: Cunningham, Jane: Dhorda, Mehul: Drakeley, Chris: Felger, Ingrid: Gamboa, Dionicia: Harbers, Matthias: Herrera, Socrates: Lucchi, Naomi: Mayor, Alfredo: Mueller, Ivo: Sattabongkot, Jetsumon: Ratsimbason, Arsène: Richards, Jack: Tanner, Marcel: González, Iveth J. | B7: Defining the next generation of Plasmodium vivax diagnostic tests for control and elimination: Target product profiles | C7: =IF(ISNUMBER(SEARCH("Literature",'Data extraction-synthesis'!K6)),"X","") ->  | D7: =IF(ISNUMBER(SEARCH("Interviews with experts",'Data extraction-synthesis'!K6)),"X","") ->  | E7: =IF(ISNUMBER(SEARCH("Survey with experts/Expert opinion",'Data extraction-synthesis'!K6)),"X","") -> X | F7: =IF(ISNUMBER(SEARCH("Ethnographic interviews",'Data extraction-synthesis'!K6)),"X","") ->  | G7: =IF(ISNUMBER(SEARCH("Reports",'Data extraction-synthesis'!K6)),"X","") ->  | H7: =IF(ISNUMBER(SEARCH("Questionnaire provided to expert",'Data extraction-synthesis'!K6)),"X","") ->  | I7: =IF(ISNUMBER(SEARCH("Field research",'Data extraction-synthesis'!K6)),"X","") ->  | J7: =IF(ISNUMBER(SEARCH("Policies",'Data extraction-synthesis'!K6)),"X","") ->  | K7: =IF(ISNUMBER(SEARCH("Websites of developers",'Data extraction-synthesis'!K6)),"X","") ->  | L7: =IF(ISNUMBER(SEARCH("Data available",'Data extraction-synthesis'!K6)),"X","") ->  | M7: =IF(ISNUMBER(SEARCH("No scoping phase reported",'Data extraction-synthesis'!K6)),"X","") ->  | N7: =IF(ISNUMBER(SEARCH("N/A",'Data extraction-synthesis'!K6)),"X","") ->  | O7: NO | T7: Expert opinion
A8: Dittrich, S. T., B. T.: Moussy, F.: Chua, A.: Zorzet, A.: Tangden, T.: Dolinger, D. L.: Page, A. L.: Crump, J. A.: Valerie, D.: Bassat, Q.: Lubell, Y.: Heinrich, N.: Newton, P. N.: Rodwell, T.: Gonzalez, I. J. | B8: Target Product Profile for a Diagnostic Assay to Differentiate between Bacterial and Non-Bacterial Infections to Guide Antimicrobials Use in Resource-Limited Settings: An Expert Consensus | C8: =IF(ISNUMBER(SEARCH("Literature",'Data extraction-synthesis'!K7)),"X","") -> X | D8: =IF(ISNUMBER(SEARCH("Interviews with experts",'Data extraction-synthesis'!K7)),"X","") ->  | E8: =IF(ISNUMBER(SEARCH("Survey with experts/Expert opinion",'Data extraction-synthesis'!K7)),"X","") ->  | F8: =IF(ISNUMBER(SEARCH("Ethnographic interviews",'Data extraction-synthesis'!K7)),"X","") ->  | G8: =IF(ISNUMBER(SEARCH("Reports",'Data extraction-synthesis'!K7)),"X","") ->  | H8: =IF(ISNUMBER(SEARCH("Questionnaire provided to expert",'Data extraction-synthesis'!K7)),"X","") ->  | I8: =IF(ISNUMBER(SEARCH("Field research",'Data extraction-synthesis'!K7)),"X","") ->  | J8: =IF(ISNUMBER(SEARCH("Policies",'Data extraction-synthesis'!K7)),"X","") ->  | K8: =IF(ISNUMBER(SEARCH("Websites of developers",'Data extraction-synthesis'!K7)),"X","") ->  | L8: =IF(ISNUMBER(SEARCH("Data available",'Data extraction-synthesis'!K7)),"X","") ->  | M8: =IF(ISNUMBER(SEARCH("No scoping phase reported",'Data extraction-synthesis'!K7)),"X","") ->  | N8: =IF(ISNUMBER(SEARCH("N/A",'Data extraction-synthesis'!K7)),"X","") ->  | O8: NO | T8: Literature | W8: It mentions review of current biomarker landscape while citing a lit reference
A9: FIND | B9: High-priority target product profile for hepatitis C diagnosis in decentralized settings: Report of a consensus meeting. | C9: =IF(ISNUMBER(SEARCH("Literature",'Data extraction-synthesis'!K8)),"X","") ->  | D9: =IF(ISNUMBER(SEARCH("Interviews with experts",'Data extraction-synthesis'!K8)),"X","") ->  | E9: =IF(ISNUMBER(SEARCH("Survey with experts/Expert opinion",'Data extraction-synthesis'!K8)),"X","") -> X | F9: =IF(ISNUMBER(SEARCH("Ethnographic interviews",'Data extraction-synthesis'!K8)),"X","") ->  | G9: =IF(ISNUMBER(SEARCH("Reports",'Data extraction-synthesis'!K8)),"X","") ->  | H9: =IF(ISNUMBER(SEARCH("Questionnaire provided to expert",'Data extraction-synthesis'!K8)),"X","") ->  | I9: =IF(ISNUMBER(SEARCH("Field research",'Data extraction-synthesis'!K8)),"X","") ->  | J9: =IF(ISNUMBER(SEARCH("Policies",'Data extraction-synthesis'!K8)),"X","") ->  | K9: =IF(ISNUMBER(SEARCH("Websites of developers",'Data extraction-synthesis'!K8)),"X","") ->  | L9: =IF(ISNUMBER(SEARCH("Data available",'Data extraction-synthesis'!K8)),"X","") ->  | M9: =IF(ISNUMBER(SEARCH("No scoping phase reported",'Data extraction-synthesis'!K8)),"X","") ->  | N9: =IF(ISNUMBER(SEARCH("N/A",'Data extraction-synthesis'!K8)),"X","") ->  | O9: NO | T9: Expert opinion
A10: Gal, M. F., N. A.: Hood, K.: Villacian, J.: Goossens, H.: Watkins, A.: Butler, C. C. | B10: Matching diagnostics development to clinical need: Target product profile development for a point of care test for community-acquired lower respiratory tract infection | C10: =IF(ISNUMBER(SEARCH("Literature",'Data extraction-synthesis'!K9)),"X","") ->  | D10: =IF(ISNUMBER(SEARCH("Interviews with experts",'Data extraction-synthesis'!K9)),"X","") ->  | E10: =IF(ISNUMBER(SEARCH("Survey with experts/Expert opinion",'Data extraction-synthesis'!K9)),"X","") -> X | F10: =IF(ISNUMBER(SEARCH("Ethnographic interviews",'Data extraction-synthesis'!K9)),"X","") ->  | G10: =IF(ISNUMBER(SEARCH("Reports",'Data extraction-synthesis'!K9)),"X","") ->  | H10: =IF(ISNUMBER(SEARCH("Questionnaire provided to expert",'Data extraction-synthesis'!K9)),"X","") ->  | I10: =IF(ISNUMBER(SEARCH("Field research",'Data extraction-synthesis'!K9)),"X","") ->  | J10: =IF(ISNUMBER(SEARCH("Policies",'Data extraction-synthesis'!K9)),"X","") ->  | K10: =IF(ISNUMBER(SEARCH("Websites of developers",'Data extraction-synthesis'!K9)),"X","") ->  | L10: =IF(ISNUMBER(SEARCH("Data available",'Data extraction-synthesis'!K9)),"X","") ->  | M10: =IF(ISNUMBER(SEARCH("No scoping phase reported",'Data extraction-synthesis'!K9)),"X","") ->  | N10: =IF(ISNUMBER(SEARCH("N/A",'Data extraction-synthesis'!K9)),"X","") ->  | O10: NO | T10: Expert opinion
A11: Lim, M. D. B., S. J.: Belizario, V. Y., Jr.: Gay-Andrieu, F.: Gilleard, J.: Levecke, B.: Lieshout, L. van: Medley, G. F.: Mekonnen, Z.: Mirams, G.: Njenga, S. M.: Odiere, M. R.: Rudge, J. W.: Stuyver, L.: Vercruysse, J.: Vlaminck, J.: Walson, J. L. | B11: Diagnostic tools for soil-transmitted helminths control and elimination programs: a pathway for diagnostic product development | C11: =IF(ISNUMBER(SEARCH("Literature",'Data extraction-synthesis'!K10)),"X","") -> X | D11: =IF(ISNUMBER(SEARCH("Interviews with experts",'Data extraction-synthesis'!K10)),"X","") ->  | E11: =IF(ISNUMBER(SEARCH("Survey with experts/Expert opinion",'Data extraction-synthesis'!K10)),"X","") -> X | F11: =IF(ISNUMBER(SEARCH("Ethnographic interviews",'Data extraction-synthesis'!K10)),"X","") ->  | G11: =IF(ISNUMBER(SEARCH("Reports",'Data extraction-synthesis'!K10)),"X","") ->  | H11: =IF(ISNUMBER(SEARCH("Questionnaire provided to expert",'Data extraction-synthesis'!K10)),"X","") ->  | I11: =IF(ISNUMBER(SEARCH("Field research",'Data extraction-synthesis'!K10)),"X","") ->  | J11: =IF(ISNUMBER(SEARCH("Policies",'Data extraction-synthesis'!K10)),"X","") ->  | K11: =IF(ISNUMBER(SEARCH("Websites of developers",'Data extraction-synthesis'!K10)),"X","") ->  | L11: =IF(ISNUMBER(SEARCH("Data available",'Data extraction-synthesis'!K10)),"X","") ->  | M11: =IF(ISNUMBER(SEARCH("No scoping phase reported",'Data extraction-synthesis'!K10)),"X","") ->  | N11: =IF(ISNUMBER(SEARCH("N/A",'Data extraction-synthesis'!K10)),"X","") ->  | O11: YES | W11: They only cite specific literature
A12: Nsanzabana, C. A., Frederic: Beck, Hans-Peter: Ding, Xavier C.: Kamau, Edwin: Krishna, Sanjeev: Legrand, Eric: Lucchi, Naomi: Miotto, Olivo: Nag, Sidsel: Noedl, Harald: Roper, Cally: Rosenthal, Philip J.: Schallig, Henk D. F. H.: Taylor, Steve M.: Volkman, Sarah K.: Gonzalez, Iveth J. | B12: Molecular assays for antimalarial drug resistance surveillance: A target product profile | C12: =IF(ISNUMBER(SEARCH("Literature",'Data extraction-synthesis'!K11)),"X","") -> X | D12: =IF(ISNUMBER(SEARCH("Interviews with experts",'Data extraction-synthesis'!K11)),"X","") ->  | E12: =IF(ISNUMBER(SEARCH("Survey with experts/Expert opinion",'Data extraction-synthesis'!K11)),"X","") ->  | F12: =IF(ISNUMBER(SEARCH("Ethnographic interviews",'Data extraction-synthesis'!K11)),"X","") ->  | G12: =IF(ISNUMBER(SEARCH("Reports",'Data extraction-synthesis'!K11)),"X","") ->  | H12: =IF(ISNUMBER(SEARCH("Questionnaire provided to expert",'Data extraction-synthesis'!K11)),"X","") ->  | I12: =IF(ISNUMBER(SEARCH("Field research",'Data extraction-synthesis'!K11)),"X","") ->  | J12: =IF(ISNUMBER(SEARCH("Policies",'Data extraction-synthesis'!K11)),"X","") ->  | K12: =IF(ISNUMBER(SEARCH("Websites of developers",'Data extraction-synthesis'!K11)),"X","") ->  | L12: =IF(ISNUMBER(SEARCH("Data available",'Data extraction-synthesis'!K11)),"X","") ->  | M12: =IF(ISNUMBER(SEARCH("No scoping phase reported",'Data extraction-synthesis'!K11)),"X","") ->  | N12: =IF(ISNUMBER(SEARCH("N/A",'Data extraction-synthesis'!K11)),"X","") ->  | O12: NO | T12: Literature | W12: They mention a lanscape analysis, which entails a literature review
A13: Porras, A. I. Y., Z. E.: Altcheh, J.: Britto, C.: Chaves, G. C.: Flevaud, L.: Martins, O. A.: Ribeiro, I.: Schijman, A. G.: Shikanai-Yasuda, M. A.: Sosa-Estani, S.: Stobbaerts, E.: Zicker, F. | B13: Target Product Profile (TPP) for Chagas Disease Point-of-Care Diagnosis and Assessment of Response to Treatmen | C13: =IF(ISNUMBER(SEARCH("Literature",'Data extraction-synthesis'!K12)),"X","") ->  | D13: =IF(ISNUMBER(SEARCH("Interviews with experts",'Data extraction-synthesis'!K12)),"X","") ->  | E13: =IF(ISNUMBER(SEARCH("Survey with experts/Expert opinion",'Data extraction-synthesis'!K12)),"X","") -> X | F13: =IF(ISNUMBER(SEARCH("Ethnographic interviews",'Data extraction-synthesis'!K12)),"X","") ->  | G13: =IF(ISNUMBER(SEARCH("Reports",'Data extraction-synthesis'!K12)),"X","") ->  | H13: =IF(ISNUMBER(SEARCH("Questionnaire provided to expert",'Data extraction-synthesis'!K12)),"X","") ->  | I13: =IF(ISNUMBER(SEARCH("Field research",'Data extraction-synthesis'!K12)),"X","") ->  | J13: =IF(ISNUMBER(SEARCH("Policies",'Data extraction-synthesis'!K12)),"X","") ->  | K13: =IF(ISNUMBER(SEARCH("Websites of developers",'Data extraction-synthesis'!K12)),"X","") ->  | L13: =IF(ISNUMBER(SEARCH("Data available",'Data extraction-synthesis'!K12)),"X","") ->  | M13: =IF(ISNUMBER(SEARCH("No scoping phase reported",'Data extraction-synthesis'!K12)),"X","") ->  | N13: =IF(ISNUMBER(SEARCH("N/A",'Data extraction-synthesis'!K12)),"X","") ->  | O13: NO | T13: Expert opinion
A14: Reipold, E. I. E., Philippa: Trianni, Alessandra: Panneer, Nivedha: Krakower, Douglas: Ongarello, Stefano: Roberts, Teri: Miller, Veronica: Denkinger, Claudia | B14: Optimising diagnosis of viraemic hepatitis C infection: the development of a target product profile | C14: =IF(ISNUMBER(SEARCH("Literature",'Data extraction-synthesis'!K13)),"X","") ->  | D14: =IF(ISNUMBER(SEARCH("Interviews with experts",'Data extraction-synthesis'!K13)),"X","") ->  | E14: =IF(ISNUMBER(SEARCH("Survey with experts/Expert opinion",'Data extraction-synthesis'!K13)),"X","") -> X | F14: =IF(ISNUMBER(SEARCH("Ethnographic interviews",'Data extraction-synthesis'!K13)),"X","") ->  | G14: =IF(ISNUMBER(SEARCH("Reports",'Data extraction-synthesis'!K13)),"X","") ->  | H14: =IF(ISNUMBER(SEARCH("Questionnaire provided to expert",'Data extraction-synthesis'!K13)),"X","") ->  | I14: =IF(ISNUMBER(SEARCH("Field research",'Data extraction-synthesis'!K13)),"X","") ->  | J14: =IF(ISNUMBER(SEARCH("Policies",'Data extraction-synthesis'!K13)),"X","") ->  | K14: =IF(ISNUMBER(SEARCH("Websites of developers",'Data extraction-synthesis'!K13)),"X","") ->  | L14: =IF(ISNUMBER(SEARCH("Data available",'Data extraction-synthesis'!K13)),"X","") ->  | M14: =IF(ISNUMBER(SEARCH("No scoping phase reported",'Data extraction-synthesis'!K13)),"X","") ->  | N14: =IF(ISNUMBER(SEARCH("N/A",'Data extraction-synthesis'!K13)),"X","") ->  | O14: NO | T14: Expert opinion
A15: Solomon, A. W. E., D.: Bailey, R. L.: Blake, I. M.: Brooker, S.: Chen, J. X.: Chen, J. H.: Churcher, T. S.: Drakeley, C. J.: Edwards, T.: Fenwick, A.: French, M.: Gabrielli, A. F.: Grassly, N. C.: Harding-Esch, E. M.: Holland, M. J.: Koukounari, A.: Lammie, P. J.: Leslie, J.: Mabey, D. C.: Rhajaoui, M.: Secor, W. E.: Stothard, J. R.: Wei, H.: Willingham, A. L.: Zhou, X. N.: Peeling, R. W. | B15: A diagnostics platform for the integrated mapping, monitoring, and surveillance of neglected tropical diseases: Rationale and target product profiles | C15: =IF(ISNUMBER(SEARCH("Literature",'Data extraction-synthesis'!K14)),"X","") ->  | D15: =IF(ISNUMBER(SEARCH("Interviews with experts",'Data extraction-synthesis'!K14)),"X","") ->  | E15: =IF(ISNUMBER(SEARCH("Survey with experts/Expert opinion",'Data extraction-synthesis'!K14)),"X","") ->  | F15: =IF(ISNUMBER(SEARCH("Ethnographic interviews",'Data extraction-synthesis'!K14)),"X","") ->  | G15: =IF(ISNUMBER(SEARCH("Reports",'Data extraction-synthesis'!K14)),"X","") ->  | H15: =IF(ISNUMBER(SEARCH("Questionnaire provided to expert",'Data extraction-synthesis'!K14)),"X","") ->  | I15: =IF(ISNUMBER(SEARCH("Field research",'Data extraction-synthesis'!K14)),"X","") ->  | J15: =IF(ISNUMBER(SEARCH("Policies",'Data extraction-synthesis'!K14)),"X","") ->  | K15: =IF(ISNUMBER(SEARCH("Websites of developers",'Data extraction-synthesis'!K14)),"X","") ->  | L15: =IF(ISNUMBER(SEARCH("Data available",'Data extraction-synthesis'!K14)),"X","") ->  | M15: =IF(ISNUMBER(SEARCH("No scoping phase reported",'Data extraction-synthesis'!K14)),"X","") -> X | N15: =IF(ISNUMBER(SEARCH("N/A",'Data extraction-synthesis'!K14)),"X","") ->  | O15: N/A
A16: Toskin, I. M., M.: Peeling, R. W.: Blondeel, K.: Cordero, J.: Kiarie, J. | B16: Advancing prevention of sexually transmitted infections through point-of-care testing: target product profiles and landscape analysis | C16: =IF(ISNUMBER(SEARCH("Literature",'Data extraction-synthesis'!K15)),"X","") -> X | D16: =IF(ISNUMBER(SEARCH("Interviews with experts",'Data extraction-synthesis'!K15)),"X","") -> X | E16: =IF(ISNUMBER(SEARCH("Survey with experts/Expert opinion",'Data extraction-synthesis'!K15)),"X","") ->  | F16: =IF(ISNUMBER(SEARCH("Ethnographic interviews",'Data extraction-synthesis'!K15)),"X","") ->  | G16: =IF(ISNUMBER(SEARCH("Reports",'Data extraction-synthesis'!K15)),"X","") -> X | H16: =IF(ISNUMBER(SEARCH("Questionnaire provided to expert",'Data extraction-synthesis'!K15)),"X","") ->  | I16: =IF(ISNUMBER(SEARCH("Field research",'Data extraction-synthesis'!K15)),"X","") ->  | J16: =IF(ISNUMBER(SEARCH("Policies",'Data extraction-synthesis'!K15)),"X","") -> X | K16: =IF(ISNUMBER(SEARCH("Websites of developers",'Data extraction-synthesis'!K15)),"X","") -> X | L16: =IF(ISNUMBER(SEARCH("Data available",'Data extraction-synthesis'!K15)),"X","") ->  | M16: =IF(ISNUMBER(SEARCH("No scoping phase reported",'Data extraction-synthesis'!K15)),"X","") ->  | N16: =IF(ISNUMBER(SEARCH("N/A",'Data extraction-synthesis'!K15)),"X","") ->  | O16: YES | W16: "Rapid" literature review, the authors reported keywords and databases searched + mention landscape analysis
A17: Donadeu, M. F., A. S.: Olliaro, P. L.: Abela-Ridder, B | B17: Target product profiles for the diagnosis of Taenia solium taeniasis, neurocysticercosis and porcine cysticercosis | C17: =IF(ISNUMBER(SEARCH("Literature",'Data extraction-synthesis'!K16)),"X","") ->  | D17: =IF(ISNUMBER(SEARCH("Interviews with experts",'Data extraction-synthesis'!K16)),"X","") ->  | E17: =IF(ISNUMBER(SEARCH("Survey with experts/Expert opinion",'Data extraction-synthesis'!K16)),"X","") -> X | F17: =IF(ISNUMBER(SEARCH("Ethnographic interviews",'Data extraction-synthesis'!K16)),"X","") ->  | G17: =IF(ISNUMBER(SEARCH("Reports",'Data extraction-synthesis'!K16)),"X","") ->  | H17: =IF(ISNUMBER(SEARCH("Questionnaire provided to expert",'Data extraction-synthesis'!K16)),"X","") ->  | I17: =IF(ISNUMBER(SEARCH("Field research",'Data extraction-synthesis'!K16)),"X","") ->  | J17: =IF(ISNUMBER(SEARCH("Policies",'Data extraction-synthesis'!K16)),"X","") ->  | K17: =IF(ISNUMBER(SEARCH("Websites of developers",'Data extraction-synthesis'!K16)),"X","") ->  | L17: =IF(ISNUMBER(SEARCH("Data available",'Data extraction-synthesis'!K16)),"X","") ->  | M17: =IF(ISNUMBER(SEARCH("No scoping phase reported",'Data extraction-synthesis'!K16)),"X","") ->  | N17: =IF(ISNUMBER(SEARCH("N/A",'Data extraction-synthesis'!K16)),"X","") ->  | O17: NO | T17: Expert opinion
A18: FIND | B18: Target Product Profile for Tests for Recent HIV Infection | C18: =IF(ISNUMBER(SEARCH("Literature",'Data extraction-synthesis'!K17)),"X","") ->  | D18: =IF(ISNUMBER(SEARCH("Interviews with experts",'Data extraction-synthesis'!K17)),"X","") ->  | E18: =IF(ISNUMBER(SEARCH("Survey with experts/Expert opinion",'Data extraction-synthesis'!K17)),"X","") -> X | F18: =IF(ISNUMBER(SEARCH("Ethnographic interviews",'Data extraction-synthesis'!K17)),"X","") ->  | G18: =IF(ISNUMBER(SEARCH("Reports",'Data extraction-synthesis'!K17)),"X","") ->  | H18: =IF(ISNUMBER(SEARCH("Questionnaire provided to expert",'Data extraction-synthesis'!K17)),"X","") ->  | I18: =IF(ISNUMBER(SEARCH("Field research",'Data extraction-synthesis'!K17)),"X","") ->  | J18: =IF(ISNUMBER(SEARCH("Policies",'Data extraction-synthesis'!K17)),"X","") ->  | K18: =IF(ISNUMBER(SEARCH("Websites of developers",'Data extraction-synthesis'!K17)),"X","") ->  | L18: =IF(ISNUMBER(SEARCH("Data available",'Data extraction-synthesis'!K17)),"X","") ->  | M18: =IF(ISNUMBER(SEARCH("No scoping phase reported",'Data extraction-synthesis'!K17)),"X","") ->  | N18: =IF(ISNUMBER(SEARCH("N/A",'Data extraction-synthesis'!K17)),"X","") ->  | O18: NO | T18: Expert opinion
A19: FIND | B19: Target Product Profile: Rapid test for diagnosis of malaria and screening for hyman African trypanosomiasis (HAT) | C19: =IF(ISNUMBER(SEARCH("Literature",'Data extraction-synthesis'!K18)),"X","") ->  | D19: =IF(ISNUMBER(SEARCH("Interviews with experts",'Data extraction-synthesis'!K18)),"X","") ->  | E19: =IF(ISNUMBER(SEARCH("Survey with experts/Expert opinion",'Data extraction-synthesis'!K18)),"X","") ->  | F19: =IF(ISNUMBER(SEARCH("Ethnographic interviews",'Data extraction-synthesis'!K18)),"X","") ->  | G19: =IF(ISNUMBER(SEARCH("Reports",'Data extraction-synthesis'!K18)),"X","") ->  | H19: =IF(ISNUMBER(SEARCH("Questionnaire provided to expert",'Data extraction-synthesis'!K18)),"X","") ->  | I19: =IF(ISNUMBER(SEARCH("Field research",'Data extraction-synthesis'!K18)),"X","") ->  | J19: =IF(ISNUMBER(SEARCH("Policies",'Data extraction-synthesis'!K18)),"X","") ->  | K19: =IF(ISNUMBER(SEARCH("Websites of developers",'Data extraction-synthesis'!K18)),"X","") ->  | L19: =IF(ISNUMBER(SEARCH("Data available",'Data extraction-synthesis'!K18)),"X","") ->  | M19: =IF(ISNUMBER(SEARCH("No scoping phase reported",'Data extraction-synthesis'!K18)),"X","") -> X | N19: =IF(ISNUMBER(SEARCH("N/A",'Data extraction-synthesis'!K18)),"X","") ->  | O19: N/A
A20: PATH | B20: Target Product Profile: HIV Self-Test Version 4.1: A White Paper on the Evaluation of Current HIV Rapid Tests and Development of Core Specifications for Next-Generation HIV Tests | C20: =IF(ISNUMBER(SEARCH("Literature",'Data extraction-synthesis'!K19)),"X","") ->  | D20: =IF(ISNUMBER(SEARCH("Interviews with experts",'Data extraction-synthesis'!K19)),"X","") ->  | E20: =IF(ISNUMBER(SEARCH("Survey with experts/Expert opinion",'Data extraction-synthesis'!K19)),"X","") ->  | F20: =IF(ISNUMBER(SEARCH("Ethnographic interviews",'Data extraction-synthesis'!K19)),"X","") ->  | G20: =IF(ISNUMBER(SEARCH("Reports",'Data extraction-synthesis'!K19)),"X","") ->  | H20: =IF(ISNUMBER(SEARCH("Questionnaire provided to expert",'Data extraction-synthesis'!K19)),"X","") ->  | I20: =IF(ISNUMBER(SEARCH("Field research",'Data extraction-synthesis'!K19)),"X","") ->  | J20: =IF(ISNUMBER(SEARCH("Policies",'Data extraction-synthesis'!K19)),"X","") ->  | K20: =IF(ISNUMBER(SEARCH("Websites of developers",'Data extraction-synthesis'!K19)),"X","") ->  | L20: =IF(ISNUMBER(SEARCH("Data available",'Data extraction-synthesis'!K19)),"X","") ->  | M20: =IF(ISNUMBER(SEARCH("No scoping phase reported",'Data extraction-synthesis'!K19)),"X","") -> X | N20: =IF(ISNUMBER(SEARCH("N/A",'Data extraction-synthesis'!K19)),"X","") ->  | O20: N/A
A21: PATH | B21: Diagnostics for neglected tropical diseases: Defining the best tools through target product profiles | C21: =IF(ISNUMBER(SEARCH("Literature",'Data extraction-synthesis'!K20)),"X","") -> X | D21: =IF(ISNUMBER(SEARCH("Interviews with experts",'Data extraction-synthesis'!K20)),"X","") -> X | F21: =IF(ISNUMBER(SEARCH("Ethnographic interviews",'Data extraction-synthesis'!K20)),"X","") ->  | G21: =IF(ISNUMBER(SEARCH("Reports",'Data extraction-synthesis'!K20)),"X","") ->  | H21: =IF(ISNUMBER(SEARCH("Questionnaire provided to expert",'Data extraction-synthesis'!K20)),"X","") ->  | I21: =IF(ISNUMBER(SEARCH("Field research",'Data extraction-synthesis'!K20)),"X","") ->  | J21: =IF(ISNUMBER(SEARCH("Policies",'Data extraction-synthesis'!K20)),"X","") ->  | K21: =IF(ISNUMBER(SEARCH("Websites of developers",'Data extraction-synthesis'!K20)),"X","") ->  | L21: =IF(ISNUMBER(SEARCH("Data available",'Data extraction-synthesis'!K20)),"X","") ->  | M21: =IF(ISNUMBER(SEARCH("No scoping phase reported",'Data extraction-synthesis'!K20)),"X","") ->  | N21: =IF(ISNUMBER(SEARCH("N/A",'Data extraction-synthesis'!K20)),"X","") ->  | O21: YES | W21: It is mentioned review of the scientific literature
A22: PATH | B22: Target Product Profile: Schistosomiasis Surveillance Diagnostic | C22: =IF(ISNUMBER(SEARCH("Literature",'Data extraction-synthesis'!K21)),"X","") ->  | D22: =IF(ISNUMBER(SEARCH("Interviews with experts",'Data extraction-synthesis'!K21)),"X","") ->  | E22: =IF(ISNUMBER(SEARCH("Survey with experts/Expert opinion",'Data extraction-synthesis'!K21)),"X","") ->  | F22: =IF(ISNUMBER(SEARCH("Ethnographic interviews",'Data extraction-synthesis'!K21)),"X","") ->  | G22: =IF(ISNUMBER(SEARCH("Reports",'Data extraction-synthesis'!K21)),"X","") ->  | H22: =IF(ISNUMBER(SEARCH("Questionnaire provided to expert",'Data extraction-synthesis'!K21)),"X","") ->  | I22: =IF(ISNUMBER(SEARCH("Field research",'Data extraction-synthesis'!K21)),"X","") ->  | J22: =IF(ISNUMBER(SEARCH("Policies",'Data extraction-synthesis'!K21)),"X","") ->  | K22: =IF(ISNUMBER(SEARCH("Websites of developers",'Data extraction-synthesis'!K21)),"X","") ->  | L22: =IF(ISNUMBER(SEARCH("Data available",'Data extraction-synthesis'!K21)),"X","") ->  | M22: =IF(ISNUMBER(SEARCH("No scoping phase reported",'Data extraction-synthesis'!K21)),"X","") -> X | N22: =IF(ISNUMBER(SEARCH("N/A",'Data extraction-synthesis'!K21)),"X","") ->  | O22: N/A
A23: UNICEF | B23: UNICEF Target Product Profile Rapid E.coli Detection (version 2.0) | C23: =IF(ISNUMBER(SEARCH("Literature",'Data extraction-synthesis'!#REF!)),"X","") ->  | D23: =IF(ISNUMBER(SEARCH("Interviews with experts",'Data extraction-synthesis'!K22)),"X","") ->  | E23: =IF(ISNUMBER(SEARCH("Survey with experts/Expert opinion",'Data extraction-synthesis'!#REF!)),"X","") ->  | F23: =IF(ISNUMBER(SEARCH("Ethnographic interviews",'Data extraction-synthesis'!#REF!)),"X","") ->  | G23: =IF(ISNUMBER(SEARCH("Reports",'Data extraction-synthesis'!#REF!)),"X","") ->  | H23: =IF(ISNUMBER(SEARCH("Questionnaire provided to expert",'Data extraction-synthesis'!K22)),"X","") ->  | I23: =IF(ISNUMBER(SEARCH("Field research",'Data extraction-synthesis'!K22)),"X","") ->  | J23: =IF(ISNUMBER(SEARCH("Policies",'Data extraction-synthesis'!#REF!)),"X","") ->  | K23: =IF(ISNUMBER(SEARCH("Websites of developers",'Data extraction-synthesis'!#REF!)),"X","") ->  | L23: =IF(ISNUMBER(SEARCH("Data available",'Data extraction-synthesis'!K22)),"X","") ->  | M23: x | O23: N/A
A24: UNICEF | B24: UNICEF Target Product Profile Rapid E.coli Detection (1.4) | C24: =IF(ISNUMBER(SEARCH("Literature",'Data extraction-synthesis'!K22)),"X","") ->  | D24: =IF(ISNUMBER(SEARCH("Interviews with experts",'Data extraction-synthesis'!K23)),"X","") ->  | E24: =IF(ISNUMBER(SEARCH("Survey with experts/Expert opinion",'Data extraction-synthesis'!K22)),"X","") ->  | F24: =IF(ISNUMBER(SEARCH("Ethnographic interviews",'Data extraction-synthesis'!K22)),"X","") ->  | G24: =IF(ISNUMBER(SEARCH("Reports",'Data extraction-synthesis'!K22)),"X","") ->  | H24: =IF(ISNUMBER(SEARCH("Questionnaire provided to expert",'Data extraction-synthesis'!K23)),"X","") ->  | I24: =IF(ISNUMBER(SEARCH("Field research",'Data extraction-synthesis'!K23)),"X","") ->  | J24: =IF(ISNUMBER(SEARCH("Policies",'Data extraction-synthesis'!K22)),"X","") ->  | K24: =IF(ISNUMBER(SEARCH("Websites of developers",'Data extraction-synthesis'!K22)),"X","") ->  | L24: =IF(ISNUMBER(SEARCH("Data available",'Data extraction-synthesis'!K23)),"X","") ->  | M24: x | O24: N/A
A25: WHO | B25: High-priority target product profile for new tubercolosis diagnostics: report of a consensus meeting | C25: =IF(ISNUMBER(SEARCH("Literature",'Data extraction-synthesis'!K24)),"X","") ->  | D25: =IF(ISNUMBER(SEARCH("Interviews with experts",'Data extraction-synthesis'!K24)),"X","") ->  | E25: =IF(ISNUMBER(SEARCH("Survey with experts/Expert opinion",'Data extraction-synthesis'!K24)),"X","") -> X | F25: =IF(ISNUMBER(SEARCH("Ethnographic interviews",'Data extraction-synthesis'!K24)),"X","") ->  | G25: =IF(ISNUMBER(SEARCH("Reports",'Data extraction-synthesis'!K24)),"X","") ->  | H25: =IF(ISNUMBER(SEARCH("Questionnaire provided to expert",'Data extraction-synthesis'!K24)),"X","") ->  | I25: =IF(ISNUMBER(SEARCH("Field research",'Data extraction-synthesis'!K24)),"X","") ->  | J25: =IF(ISNUMBER(SEARCH("Policies",'Data extraction-synthesis'!K24)),"X","") ->  | K25: =IF(ISNUMBER(SEARCH("Websites of developers",'Data extraction-synthesis'!K24)),"X","") ->  | L25: =IF(ISNUMBER(SEARCH("Data available",'Data extraction-synthesis'!K24)),"X","") ->  | M25: =IF(ISNUMBER(SEARCH("No scoping phase reported",'Data extraction-synthesis'!K24)),"X","") ->  | N25: =IF(ISNUMBER(SEARCH("N/A",'Data extraction-synthesis'!K24)),"X","") ->  | O25: NO | T25: Expert opinion
A26: WHO | B26: Development of a Target Product Profile (TPP) and framework for evaluation for a test predicting progression from tubercolosis infection to active disease | C26: =IF(ISNUMBER(SEARCH("Literature",'Data extraction-synthesis'!K25)),"X","") ->  | D26: =IF(ISNUMBER(SEARCH("Interviews with experts",'Data extraction-synthesis'!K25)),"X","") ->  | E26: =IF(ISNUMBER(SEARCH("Survey with experts/Expert opinion",'Data extraction-synthesis'!K25)),"X","") ->  | F26: =IF(ISNUMBER(SEARCH("Ethnographic interviews",'Data extraction-synthesis'!K25)),"X","") ->  | G26: =IF(ISNUMBER(SEARCH("Reports",'Data extraction-synthesis'!K25)),"X","") ->  | H26: =IF(ISNUMBER(SEARCH("Questionnaire provided to expert",'Data extraction-synthesis'!K25)),"X","") ->  | I26: =IF(ISNUMBER(SEARCH("Field research",'Data extraction-synthesis'!K25)),"X","") ->  | J26: =IF(ISNUMBER(SEARCH("Policies",'Data extraction-synthesis'!K25)),"X","") ->  | K26: =IF(ISNUMBER(SEARCH("Websites of developers",'Data extraction-synthesis'!K25)),"X","") ->  | L26: =IF(ISNUMBER(SEARCH("Data available",'Data extraction-synthesis'!K25)),"X","") ->  | M26: =IF(ISNUMBER(SEARCH("No scoping phase reported",'Data extraction-synthesis'!K25)),"X","") -> X | N26: =IF(ISNUMBER(SEARCH("N/A",'Data extraction-synthesis'!K25)),"X","") ->  | O26: N/A
A27: WHO | B27: Specifications for a rapid diagnostic test for meningitis African meningitis belt/ Target product profile for the development of a new generation of rapid test for the diagnosis of bacterial meningitis | C27: =IF(ISNUMBER(SEARCH("Literature",'Data extraction-synthesis'!K26)),"X","") ->  | D27: =IF(ISNUMBER(SEARCH("Interviews with experts",'Data extraction-synthesis'!K26)),"X","") ->  | E27: =IF(ISNUMBER(SEARCH("Survey with experts/Expert opinion",'Data extraction-synthesis'!K26)),"X","") ->  | F27: =IF(ISNUMBER(SEARCH("Ethnographic interviews",'Data extraction-synthesis'!K26)),"X","") ->  | G27: =IF(ISNUMBER(SEARCH("Reports",'Data extraction-synthesis'!K26)),"X","") ->  | H27: =IF(ISNUMBER(SEARCH("Questionnaire provided to expert",'Data extraction-synthesis'!K26)),"X","") ->  | I27: =IF(ISNUMBER(SEARCH("Field research",'Data extraction-synthesis'!K26)),"X","") ->  | J27: =IF(ISNUMBER(SEARCH("Policies",'Data extraction-synthesis'!K26)),"X","") ->  | K27: =IF(ISNUMBER(SEARCH("Websites of developers",'Data extraction-synthesis'!K26)),"X","") ->  | L27: =IF(ISNUMBER(SEARCH("Data available",'Data extraction-synthesis'!K26)),"X","") ->  | M27: =IF(ISNUMBER(SEARCH("No scoping phase reported",'Data extraction-synthesis'!K26)),"X","") -> X | N27: =IF(ISNUMBER(SEARCH("N/A",'Data extraction-synthesis'!K26)),"X","") ->  | O27: N/A
A28: WHO | B28: Target Product Profile for Zaire ebolavirus rapid,simple test to be used in the control of the Ebola outbreak in West Africa | C28: =IF(ISNUMBER(SEARCH("Literature",'Data extraction-synthesis'!K27)),"X","") ->  | D28: =IF(ISNUMBER(SEARCH("Interviews with experts",'Data extraction-synthesis'!K27)),"X","") ->  | E28: =IF(ISNUMBER(SEARCH("Survey with experts/Expert opinion",'Data extraction-synthesis'!K27)),"X","") ->  | F28: =IF(ISNUMBER(SEARCH("Ethnographic interviews",'Data extraction-synthesis'!K27)),"X","") ->  | G28: =IF(ISNUMBER(SEARCH("Reports",'Data extraction-synthesis'!K27)),"X","") ->  | H28: =IF(ISNUMBER(SEARCH("Questionnaire provided to expert",'Data extraction-synthesis'!K27)),"X","") ->  | I28: =IF(ISNUMBER(SEARCH("Field research",'Data extraction-synthesis'!K27)),"X","") ->  | J28: =IF(ISNUMBER(SEARCH("Policies",'Data extraction-synthesis'!K27)),"X","") ->  | K28: =IF(ISNUMBER(SEARCH("Websites of developers",'Data extraction-synthesis'!K27)),"X","") ->  | L28: =IF(ISNUMBER(SEARCH("Data available",'Data extraction-synthesis'!K27)),"X","") ->  | M28: =IF(ISNUMBER(SEARCH("No scoping phase reported",'Data extraction-synthesis'!K27)),"X","") -> X | N28: =IF(ISNUMBER(SEARCH("N/A",'Data extraction-synthesis'!K27)),"X","") ->  | O28: N/A
A29: WHO | B29: Report of WHO-FIND meeting on diagnostics for Buruli ulcer | C29: =IF(ISNUMBER(SEARCH("Literature",'Data extraction-synthesis'!K28)),"X","") ->  | D29: =IF(ISNUMBER(SEARCH("Interviews with experts",'Data extraction-synthesis'!K28)),"X","") ->  | E29: =IF(ISNUMBER(SEARCH("Survey with experts/Expert opinion",'Data extraction-synthesis'!K28)),"X","") -> X | F29: =IF(ISNUMBER(SEARCH("Ethnographic interviews",'Data extraction-synthesis'!K28)),"X","") ->  | G29: =IF(ISNUMBER(SEARCH("Reports",'Data extraction-synthesis'!K28)),"X","") ->  | H29: =IF(ISNUMBER(SEARCH("Questionnaire provided to expert",'Data extraction-synthesis'!K28)),"X","") ->  | I29: =IF(ISNUMBER(SEARCH("Field research",'Data extraction-synthesis'!K28)),"X","") ->  | J29: =IF(ISNUMBER(SEARCH("Policies",'Data extraction-synthesis'!K28)),"X","") ->  | K29: =IF(ISNUMBER(SEARCH("Websites of developers",'Data extraction-synthesis'!K28)),"X","") ->  | L29: =IF(ISNUMBER(SEARCH("Data available",'Data extraction-synthesis'!K28)),"X","") ->  | M29: =IF(ISNUMBER(SEARCH("No scoping phase reported",'Data extraction-synthesis'!K28)),"X","") ->  | N29: =IF(ISNUMBER(SEARCH("N/A",'Data extraction-synthesis'!K28)),"X","") ->  | O29: NO | T29: Expert opinion
A30: WHO | B30: Taenia solium taeniasis/cysticercosis diagnostic tools. Report of a stakeholder meeting | C30: =IF(ISNUMBER(SEARCH("Literature",'Data extraction-synthesis'!K29)),"X","") ->  | D30: =IF(ISNUMBER(SEARCH("Interviews with experts",'Data extraction-synthesis'!K29)),"X","") ->  | E30: =IF(ISNUMBER(SEARCH("Survey with experts/Expert opinion",'Data extraction-synthesis'!K29)),"X","") -> X | F30: =IF(ISNUMBER(SEARCH("Ethnographic interviews",'Data extraction-synthesis'!K29)),"X","") ->  | G30: =IF(ISNUMBER(SEARCH("Reports",'Data extraction-synthesis'!K29)),"X","") ->  | H30: =IF(ISNUMBER(SEARCH("Questionnaire provided to expert",'Data extraction-synthesis'!K29)),"X","") ->  | I30: =IF(ISNUMBER(SEARCH("Field research",'Data extraction-synthesis'!K29)),"X","") ->  | J30: =IF(ISNUMBER(SEARCH("Policies",'Data extraction-synthesis'!K29)),"X","") ->  | K30: =IF(ISNUMBER(SEARCH("Websites of developers",'Data extraction-synthesis'!K29)),"X","") ->  | L30: =IF(ISNUMBER(SEARCH("Data available",'Data extraction-synthesis'!K29)),"X","") ->  | M30: =IF(ISNUMBER(SEARCH("No scoping phase reported",'Data extraction-synthesis'!K29)),"X","") ->  | N30: =IF(ISNUMBER(SEARCH("N/A",'Data extraction-synthesis'!K29)),"X","") ->  | O30: NO | T30: Expert opinion
A31: Utzinger, J. B., S. L.: van Lieshout, L.: van Dam, G. J.: Knopp, S | B31: New diagnostic tools in schistosomiasis | C31: =IF(ISNUMBER(SEARCH("Literature",'Data extraction-synthesis'!K30)),"X","") ->  | D31: =IF(ISNUMBER(SEARCH("Interviews with experts",'Data extraction-synthesis'!K30)),"X","") ->  | E31: =IF(ISNUMBER(SEARCH("Survey with experts/Expert opinion",'Data extraction-synthesis'!K30)),"X","") ->  | F31: =IF(ISNUMBER(SEARCH("Ethnographic interviews",'Data extraction-synthesis'!K30)),"X","") ->  | G31: =IF(ISNUMBER(SEARCH("Reports",'Data extraction-synthesis'!K30)),"X","") ->  | H31: =IF(ISNUMBER(SEARCH("Questionnaire provided to expert",'Data extraction-synthesis'!K30)),"X","") ->  | I31: =IF(ISNUMBER(SEARCH("Field research",'Data extraction-synthesis'!K30)),"X","") ->  | J31: =IF(ISNUMBER(SEARCH("Policies",'Data extraction-synthesis'!K30)),"X","") ->  | K31: =IF(ISNUMBER(SEARCH("Websites of developers",'Data extraction-synthesis'!K30)),"X","") ->  | L31: =IF(ISNUMBER(SEARCH("Data available",'Data extraction-synthesis'!K30)),"X","") ->  | M31: =IF(ISNUMBER(SEARCH("No scoping phase reported",'Data extraction-synthesis'!K30)),"X","") -> X | N31: =IF(ISNUMBER(SEARCH("N/A",'Data extraction-synthesis'!K30)),"X","") ->  | O31: N/A
A32: UNICEF | B32: Zika Virus Diagnostics: Target Product Profiles & Supply Update | C32: =IF(ISNUMBER(SEARCH("Literature",'Data extraction-synthesis'!K31)),"X","") ->  | D32: =IF(ISNUMBER(SEARCH("Interviews with experts",'Data extraction-synthesis'!K31)),"X","") ->  | E32: =IF(ISNUMBER(SEARCH("Survey with experts/Expert opinion",'Data extraction-synthesis'!K31)),"X","") -> X | F32: =IF(ISNUMBER(SEARCH("Ethnographic interviews",'Data extraction-synthesis'!K31)),"X","") ->  | G32: =IF(ISNUMBER(SEARCH("Reports",'Data extraction-synthesis'!K31)),"X","") ->  | H32: =IF(ISNUMBER(SEARCH("Questionnaire provided to expert",'Data extraction-synthesis'!K31)),"X","") ->  | I32: =IF(ISNUMBER(SEARCH("Field research",'Data extraction-synthesis'!K31)),"X","") ->  | J32: =IF(ISNUMBER(SEARCH("Policies",'Data extraction-synthesis'!K31)),"X","") ->  | K32: =IF(ISNUMBER(SEARCH("Websites of developers",'Data extraction-synthesis'!K31)),"X","") ->  | L32: =IF(ISNUMBER(SEARCH("Data available",'Data extraction-synthesis'!K31)),"X","") ->  | M32: =IF(ISNUMBER(SEARCH("No scoping phase reported",'Data extraction-synthesis'!K31)),"X","") ->  | N32: =IF(ISNUMBER(SEARCH("N/A",'Data extraction-synthesis'!K31)),"X","") ->  | O32: NO | T32: Expert opinion
A33: UNICEF | B33: Pneumonia Acute Respiratory Infection Diagnostic Aid-Target Product Profile Introduction | C33: =IF(ISNUMBER(SEARCH("Literature",'Data extraction-synthesis'!K32)),"X","") -> X | D33: =IF(ISNUMBER(SEARCH("Interviews with experts",'Data extraction-synthesis'!K32)),"X","") ->  | E33: =IF(ISNUMBER(SEARCH("Survey with experts/Expert opinion",'Data extraction-synthesis'!K32)),"X","") -> X | F33: =IF(ISNUMBER(SEARCH("Ethnographic interviews",'Data extraction-synthesis'!K32)),"X","") ->  | G33: =IF(ISNUMBER(SEARCH("Reports",'Data extraction-synthesis'!K32)),"X","") ->  | H33: =IF(ISNUMBER(SEARCH("Questionnaire provided to expert",'Data extraction-synthesis'!K32)),"X","") ->  | I33: =IF(ISNUMBER(SEARCH("Field research",'Data extraction-synthesis'!K32)),"X","") ->  | J33: =IF(ISNUMBER(SEARCH("Policies",'Data extraction-synthesis'!K32)),"X","") ->  | K33: =IF(ISNUMBER(SEARCH("Websites of developers",'Data extraction-synthesis'!K32)),"X","") ->  | L33: =IF(ISNUMBER(SEARCH("Data available",'Data extraction-synthesis'!K32)),"X","") ->  | M33: =IF(ISNUMBER(SEARCH("No scoping phase reported",'Data extraction-synthesis'!K32)),"X","") ->  | N33: =IF(ISNUMBER(SEARCH("N/A",'Data extraction-synthesis'!K32)),"X","") ->  | O33: YES | W33: They mentioned only literature reviews
A34: Pal S, Jasper L.E., Lawrence K.L, Walter M | B34: Assessing the Dengue Diagnosis Capability Gap in the Military Health System | C34: =IF(ISNUMBER(SEARCH("Literature",'Data extraction-synthesis'!K33)),"X","") ->  | E34: =IF(ISNUMBER(SEARCH("Survey with experts/Expert opinion",'Data extraction-synthesis'!K33)),"X","") ->  | F34: =IF(ISNUMBER(SEARCH("Ethnographic interviews",'Data extraction-synthesis'!K33)),"X","") ->  | G34: =IF(ISNUMBER(SEARCH("Reports",'Data extraction-synthesis'!K33)),"X","") ->  | H34: =IF(ISNUMBER(SEARCH("Questionnaire provided to expert",'Data extraction-synthesis'!K33)),"X","") -> X | I34: =IF(ISNUMBER(SEARCH("Field research",'Data extraction-synthesis'!K33)),"X","") ->  | J34: =IF(ISNUMBER(SEARCH("Policies",'Data extraction-synthesis'!K33)),"X","") ->  | K34: =IF(ISNUMBER(SEARCH("Websites of developers",'Data extraction-synthesis'!K33)),"X","") ->  | L34: =IF(ISNUMBER(SEARCH("Data available",'Data extraction-synthesis'!K33)),"X","") ->  | M34: =IF(ISNUMBER(SEARCH("No scoping phase reported",'Data extraction-synthesis'!K33)),"X","") ->  | N34: =IF(ISNUMBER(SEARCH("N/A",'Data extraction-synthesis'!K33)),"X","") ->  | O34: NO | T34: Expert opinion
A35: PATH | B35: Target Product Profile: Schistosomiasis Surveillance Diagnostic Lateral Flow Test CAA antigen | C35: =IF(ISNUMBER(SEARCH("Literature",'Data extraction-synthesis'!K34)),"X","") ->  | D35: =IF(ISNUMBER(SEARCH("Interviews with experts",'Data extraction-synthesis'!K34)),"X","") ->  | E35: =IF(ISNUMBER(SEARCH("Survey with experts/Expert opinion",'Data extraction-synthesis'!K34)),"X","") ->  | F35: =IF(ISNUMBER(SEARCH("Ethnographic interviews",'Data extraction-synthesis'!K34)),"X","") ->  | G35: =IF(ISNUMBER(SEARCH("Reports",'Data extraction-synthesis'!K34)),"X","") ->  | H35: =IF(ISNUMBER(SEARCH("Questionnaire provided to expert",'Data extraction-synthesis'!K34)),"X","") ->  | I35: =IF(ISNUMBER(SEARCH("Field research",'Data extraction-synthesis'!K34)),"X","") ->  | J35: =IF(ISNUMBER(SEARCH("Policies",'Data extraction-synthesis'!K34)),"X","") ->  | K35: =IF(ISNUMBER(SEARCH("Websites of developers",'Data extraction-synthesis'!K34)),"X","") ->  | L35: =IF(ISNUMBER(SEARCH("Data available",'Data extraction-synthesis'!K34)),"X","") ->  | M35: =IF(ISNUMBER(SEARCH("No scoping phase reported",'Data extraction-synthesis'!K34)),"X","") -> X | N35: =IF(ISNUMBER(SEARCH("N/A",'Data extraction-synthesis'!K34)),"X","") ->  | O35: N/A
A36: PATH | B36: Target Product Profile: Trachoma Surveillance Diagnostic-Post-Elimination Surveillance Antibody Lateral Flow Test | C36: =IF(ISNUMBER(SEARCH("Literature",'Data extraction-synthesis'!K35)),"X","") ->  | D36: =IF(ISNUMBER(SEARCH("Interviews with experts",'Data extraction-synthesis'!K35)),"X","") ->  | E36: =IF(ISNUMBER(SEARCH("Survey with experts/Expert opinion",'Data extraction-synthesis'!K35)),"X","") ->  | F36: =IF(ISNUMBER(SEARCH("Ethnographic interviews",'Data extraction-synthesis'!K35)),"X","") ->  | G36: =IF(ISNUMBER(SEARCH("Reports",'Data extraction-synthesis'!K35)),"X","") ->  | H36: =IF(ISNUMBER(SEARCH("Questionnaire provided to expert",'Data extraction-synthesis'!K35)),"X","") ->  | I36: =IF(ISNUMBER(SEARCH("Field research",'Data extraction-synthesis'!K35)),"X","") ->  | J36: =IF(ISNUMBER(SEARCH("Policies",'Data extraction-synthesis'!K35)),"X","") ->  | K36: =IF(ISNUMBER(SEARCH("Websites of developers",'Data extraction-synthesis'!K35)),"X","") ->  | L36: =IF(ISNUMBER(SEARCH("Data available",'Data extraction-synthesis'!K35)),"X","") ->  | M36: =IF(ISNUMBER(SEARCH("No scoping phase reported",'Data extraction-synthesis'!K35)),"X","") -> X | N36: =IF(ISNUMBER(SEARCH("N/A",'Data extraction-synthesis'!K35)),"X","") ->  | O36: N/A
A37: International Diagnostics Centre (IDC) | B37: Target Product Profile (TPP) - Point-of-Care HIV Viral Load Test | C37: =IF(ISNUMBER(SEARCH("Literature",'Data extraction-synthesis'!K36)),"X","") ->  | D37: =IF(ISNUMBER(SEARCH("Interviews with experts",'Data extraction-synthesis'!K36)),"X","") ->  | E37: =IF(ISNUMBER(SEARCH("Survey with experts/Expert opinion",'Data extraction-synthesis'!K36)),"X","") ->  | F37: =IF(ISNUMBER(SEARCH("Ethnographic interviews",'Data extraction-synthesis'!K36)),"X","") ->  | G37: =IF(ISNUMBER(SEARCH("Reports",'Data extraction-synthesis'!K36)),"X","") ->  | H37: =IF(ISNUMBER(SEARCH("Questionnaire provided to expert",'Data extraction-synthesis'!K36)),"X","") ->  | I37: =IF(ISNUMBER(SEARCH("Field research",'Data extraction-synthesis'!K36)),"X","") ->  | J37: =IF(ISNUMBER(SEARCH("Policies",'Data extraction-synthesis'!K36)),"X","") ->  | K37: =IF(ISNUMBER(SEARCH("Websites of developers",'Data extraction-synthesis'!K36)),"X","") ->  | L37: =IF(ISNUMBER(SEARCH("Data available",'Data extraction-synthesis'!K36)),"X","") ->  | M37: =IF(ISNUMBER(SEARCH("No scoping phase reported",'Data extraction-synthesis'!K36)),"X","") -> X | N37: =IF(ISNUMBER(SEARCH("N/A",'Data extraction-synthesis'!K36)),"X","") ->  | O37: N/A
A38: International Diagnostics Centre (IDC) | B38: Target Product Profile (TPP)- Point of care CD4 test | C38: =IF(ISNUMBER(SEARCH("Literature",'Data extraction-synthesis'!K37)),"X","") ->  | D38: =IF(ISNUMBER(SEARCH("Interviews with experts",'Data extraction-synthesis'!K37)),"X","") ->  | E38: =IF(ISNUMBER(SEARCH("Survey with experts/Expert opinion",'Data extraction-synthesis'!K37)),"X","") ->  | F38: =IF(ISNUMBER(SEARCH("Ethnographic interviews",'Data extraction-synthesis'!K37)),"X","") ->  | G38: =IF(ISNUMBER(SEARCH("Reports",'Data extraction-synthesis'!K37)),"X","") ->  | H38: =IF(ISNUMBER(SEARCH("Questionnaire provided to expert",'Data extraction-synthesis'!K37)),"X","") ->  | I38: =IF(ISNUMBER(SEARCH("Field research",'Data extraction-synthesis'!K37)),"X","") ->  | J38: =IF(ISNUMBER(SEARCH("Policies",'Data extraction-synthesis'!K37)),"X","") ->  | K38: =IF(ISNUMBER(SEARCH("Websites of developers",'Data extraction-synthesis'!K37)),"X","") ->  | L38: =IF(ISNUMBER(SEARCH("Data available",'Data extraction-synthesis'!K37)),"X","") ->  | M38: =IF(ISNUMBER(SEARCH("No scoping phase reported",'Data extraction-synthesis'!K37)),"X","") -> X | N38: =IF(ISNUMBER(SEARCH("N/A",'Data extraction-synthesis'!K37)),"X","") ->  | O38: N/A
A39: International Diagnostics Centre (IDC) | B39: Target Product Profile (TPP): Point of care EID test | C39: =IF(ISNUMBER(SEARCH("Literature",'Data extraction-synthesis'!K38)),"X","") ->  | D39: =IF(ISNUMBER(SEARCH("Interviews with experts",'Data extraction-synthesis'!K38)),"X","") ->  | E39: =IF(ISNUMBER(SEARCH("Survey with experts/Expert opinion",'Data extraction-synthesis'!K38)),"X","") ->  | F39: =IF(ISNUMBER(SEARCH("Ethnographic interviews",'Data extraction-synthesis'!K38)),"X","") ->  | G39: =IF(ISNUMBER(SEARCH("Reports",'Data extraction-synthesis'!K38)),"X","") ->  | H39: =IF(ISNUMBER(SEARCH("Questionnaire provided to expert",'Data extraction-synthesis'!K38)),"X","") ->  | I39: =IF(ISNUMBER(SEARCH("Field research",'Data extraction-synthesis'!K38)),"X","") ->  | J39: =IF(ISNUMBER(SEARCH("Policies",'Data extraction-synthesis'!K38)),"X","") ->  | K39: =IF(ISNUMBER(SEARCH("Websites of developers",'Data extraction-synthesis'!K38)),"X","") ->  | L39: =IF(ISNUMBER(SEARCH("Data available",'Data extraction-synthesis'!K38)),"X","") ->  | M39: =IF(ISNUMBER(SEARCH("No scoping phase reported",'Data extraction-synthesis'!K38)),"X","") -> X | N39: =IF(ISNUMBER(SEARCH("N/A",'Data extraction-synthesis'!K38)),"X","") ->  | O39: N/A
A40: Internationa Diagnostics Centre (IDC) | B40: Target Product Profile (TPP): Combined HIV/Syphilis Test | C40: =IF(ISNUMBER(SEARCH("Literature",'Data extraction-synthesis'!K39)),"X","") ->  | D40: =IF(ISNUMBER(SEARCH("Interviews with experts",'Data extraction-synthesis'!K39)),"X","") ->  | E40: =IF(ISNUMBER(SEARCH("Survey with experts/Expert opinion",'Data extraction-synthesis'!K39)),"X","") ->  | F40: =IF(ISNUMBER(SEARCH("Ethnographic interviews",'Data extraction-synthesis'!K39)),"X","") ->  | G40: =IF(ISNUMBER(SEARCH("Reports",'Data extraction-synthesis'!K39)),"X","") ->  | H40: =IF(ISNUMBER(SEARCH("Questionnaire provided to expert",'Data extraction-synthesis'!K39)),"X","") ->  | I40: =IF(ISNUMBER(SEARCH("Field research",'Data extraction-synthesis'!K39)),"X","") ->  | J40: =IF(ISNUMBER(SEARCH("Policies",'Data extraction-synthesis'!K39)),"X","") ->  | K40: =IF(ISNUMBER(SEARCH("Websites of developers",'Data extraction-synthesis'!K39)),"X","") ->  | L40: =IF(ISNUMBER(SEARCH("Data available",'Data extraction-synthesis'!K39)),"X","") ->  | M40: =IF(ISNUMBER(SEARCH("No scoping phase reported",'Data extraction-synthesis'!K39)),"X","") -> X | N40: =IF(ISNUMBER(SEARCH("N/A",'Data extraction-synthesis'!K39)),"X","") ->  | O40: N/A
A41: Ebels, K. B. C., C.: Crudder, C. H.: McGray, S.: Magnuson, K.: Tietje, K.: Labarre, P | B41: Incorporating user needs into product development for improved infection detection for malaria elimination programs | C41: =IF(ISNUMBER(SEARCH("Literature",'Data extraction-synthesis'!K40)),"X","") ->  | D41: =IF(ISNUMBER(SEARCH("Interviews with experts",'Data extraction-synthesis'!K40)),"X","") ->  | E41: =IF(ISNUMBER(SEARCH("Survey with experts/Expert opinion",'Data extraction-synthesis'!K40)),"X","") ->  | F41: =IF(ISNUMBER(SEARCH("Ethnographic interviews",'Data extraction-synthesis'!K40)),"X","") -> X | G41: =IF(ISNUMBER(SEARCH("Reports",'Data extraction-synthesis'!K40)),"X","") ->  | H41: =IF(ISNUMBER(SEARCH("Questionnaire provided to expert",'Data extraction-synthesis'!K40)),"X","") ->  | I41: =IF(ISNUMBER(SEARCH("Field research",'Data extraction-synthesis'!K40)),"X","") -> X | J41: =IF(ISNUMBER(SEARCH("Policies",'Data extraction-synthesis'!K40)),"X","") ->  | K41: =IF(ISNUMBER(SEARCH("Websites of developers",'Data extraction-synthesis'!K40)),"X","") ->  | L41: =IF(ISNUMBER(SEARCH("Data available",'Data extraction-synthesis'!K40)),"X","") ->  | M41: =IF(ISNUMBER(SEARCH("No scoping phase reported",'Data extraction-synthesis'!K40)),"X","") ->  | N41: =IF(ISNUMBER(SEARCH("N/A",'Data extraction-synthesis'!K40)),"X","") ->  | O41: YES
A42: FIND | B42: Target Product Profile: Screening test for human African trypanosomiasis (HAT) | C42: =IF(ISNUMBER(SEARCH("Literature",'Data extraction-synthesis'!K41)),"X","") ->  | D42: =IF(ISNUMBER(SEARCH("Interviews with experts",'Data extraction-synthesis'!K41)),"X","") ->  | E42: =IF(ISNUMBER(SEARCH("Survey with experts/Expert opinion",'Data extraction-synthesis'!K41)),"X","") ->  | F42: =IF(ISNUMBER(SEARCH("Ethnographic interviews",'Data extraction-synthesis'!K41)),"X","") ->  | G42: =IF(ISNUMBER(SEARCH("Reports",'Data extraction-synthesis'!K41)),"X","") ->  | H42: =IF(ISNUMBER(SEARCH("Questionnaire provided to expert",'Data extraction-synthesis'!K41)),"X","") ->  | I42: =IF(ISNUMBER(SEARCH("Field research",'Data extraction-synthesis'!K41)),"X","") ->  | J42: =IF(ISNUMBER(SEARCH("Policies",'Data extraction-synthesis'!K41)),"X","") ->  | K42: =IF(ISNUMBER(SEARCH("Websites of developers",'Data extraction-synthesis'!K41)),"X","") ->  | L42: =IF(ISNUMBER(SEARCH("Data available",'Data extraction-synthesis'!K41)),"X","") ->  | M42: =IF(ISNUMBER(SEARCH("No scoping phase reported",'Data extraction-synthesis'!K41)),"X","") -> X | N42: =IF(ISNUMBER(SEARCH("N/A",'Data extraction-synthesis'!K41)),"X","") ->  | O42: N/A
A43: PATH | B43: Target Product Profile: Trachoma surveillance diagnostic-antigen lateral flow test | C43: =IF(ISNUMBER(SEARCH("Literature",'Data extraction-synthesis'!K42)),"X","") ->  | D43: =IF(ISNUMBER(SEARCH("Interviews with experts",'Data extraction-synthesis'!K42)),"X","") ->  | E43: =IF(ISNUMBER(SEARCH("Survey with experts/Expert opinion",'Data extraction-synthesis'!K42)),"X","") ->  | F43: =IF(ISNUMBER(SEARCH("Ethnographic interviews",'Data extraction-synthesis'!K42)),"X","") ->  | G43: =IF(ISNUMBER(SEARCH("Reports",'Data extraction-synthesis'!K42)),"X","") ->  | H43: =IF(ISNUMBER(SEARCH("Questionnaire provided to expert",'Data extraction-synthesis'!K42)),"X","") ->  | I43: =IF(ISNUMBER(SEARCH("Field research",'Data extraction-synthesis'!K42)),"X","") ->  | J43: =IF(ISNUMBER(SEARCH("Policies",'Data extraction-synthesis'!K42)),"X","") ->  | K43: =IF(ISNUMBER(SEARCH("Websites of developers",'Data extraction-synthesis'!K42)),"X","") ->  | L43: =IF(ISNUMBER(SEARCH("Data available",'Data extraction-synthesis'!K42)),"X","") ->  | M43: =IF(ISNUMBER(SEARCH("No scoping phase reported",'Data extraction-synthesis'!K42)),"X","") -> X | N43: =IF(ISNUMBER(SEARCH("N/A",'Data extraction-synthesis'!K42)),"X","") ->  | O43: N/A | T43: =3/22 -> 14%
A44: Peck, R. B. W., J. D.: Boettcher, M. G.: Downing | B44: Defining product requirements for field deployable yellow fever tests | C44: =IF(ISNUMBER(SEARCH("Literature",'Data extraction-synthesis'!K43)),"X","") ->  | D44: =IF(ISNUMBER(SEARCH("Interviews with experts",'Data extraction-synthesis'!K43)),"X","") -> X | E44: =IF(ISNUMBER(SEARCH("Survey with experts/Expert opinion",'Data extraction-synthesis'!K43)),"X","") ->  | F44: =IF(ISNUMBER(SEARCH("Ethnographic interviews",'Data extraction-synthesis'!K43)),"X","") ->  | G44: =IF(ISNUMBER(SEARCH("Reports",'Data extraction-synthesis'!K43)),"X","") ->  | H44: =IF(ISNUMBER(SEARCH("Questionnaire provided to expert",'Data extraction-synthesis'!K43)),"X","") ->  | I44: =IF(ISNUMBER(SEARCH("Field research",'Data extraction-synthesis'!K43)),"X","") ->  | J44: =IF(ISNUMBER(SEARCH("Policies",'Data extraction-synthesis'!K43)),"X","") ->  | K44: =IF(ISNUMBER(SEARCH("Websites of developers",'Data extraction-synthesis'!K43)),"X","") ->  | L44: =IF(ISNUMBER(SEARCH("Data available",'Data extraction-synthesis'!K43)),"X","") ->  | M44: =IF(ISNUMBER(SEARCH("No scoping phase reported",'Data extraction-synthesis'!K43)),"X","") ->  | N44: =IF(ISNUMBER(SEARCH("N/A",'Data extraction-synthesis'!K43)),"X","") ->  | O44: NO | T44: Interviews
A45: PATH | B45: Target Product Profile: Schistosomiasis Surveillance Diagnostic - schistosoma genus-specific antibody lateral flow test post-elimination surveillance | C45: =IF(ISNUMBER(SEARCH("Literature",'Data extraction-synthesis'!K44)),"X","") ->  | D45: =IF(ISNUMBER(SEARCH("Interviews with experts",'Data extraction-synthesis'!K44)),"X","") ->  | E45: =IF(ISNUMBER(SEARCH("Survey with experts/Expert opinion",'Data extraction-synthesis'!K44)),"X","") ->  | F45: =IF(ISNUMBER(SEARCH("Ethnographic interviews",'Data extraction-synthesis'!K44)),"X","") ->  | G45: =IF(ISNUMBER(SEARCH("Reports",'Data extraction-synthesis'!K44)),"X","") ->  | H45: =IF(ISNUMBER(SEARCH("Questionnaire provided to expert",'Data extraction-synthesis'!K44)),"X","") ->  | I45: =IF(ISNUMBER(SEARCH("Field research",'Data extraction-synthesis'!K44)),"X","") ->  | J45: =IF(ISNUMBER(SEARCH("Policies",'Data extraction-synthesis'!K44)),"X","") ->  | K45: =IF(ISNUMBER(SEARCH("Websites of developers",'Data extraction-synthesis'!K44)),"X","") ->  | L45: =IF(ISNUMBER(SEARCH("Data available",'Data extraction-synthesis'!K44)),"X","") ->  | M45: =IF(ISNUMBER(SEARCH("No scoping phase reported",'Data extraction-synthesis'!K44)),"X","") -> X | N45: =IF(ISNUMBER(SEARCH("N/A",'Data extraction-synthesis'!K44)),"X","") ->  | O45: N/A
A46: WHO, FIND, Medecins sans Frontiers | B46: A Multiplex Multi-Analyte Diagnostic Platform | C46: =IF(ISNUMBER(SEARCH("Literature",'Data extraction-synthesis'!K45)),"X","") ->  | D46: =IF(ISNUMBER(SEARCH("Interviews with experts",'Data extraction-synthesis'!K45)),"X","") ->  | E46: =IF(ISNUMBER(SEARCH("Survey with experts/Expert opinion",'Data extraction-synthesis'!K45)),"X","") ->  | F46: =IF(ISNUMBER(SEARCH("Ethnographic interviews",'Data extraction-synthesis'!K45)),"X","") ->  | G46: =IF(ISNUMBER(SEARCH("Reports",'Data extraction-synthesis'!K45)),"X","") ->  | H46: =IF(ISNUMBER(SEARCH("Questionnaire provided to expert",'Data extraction-synthesis'!K45)),"X","") ->  | I46: =IF(ISNUMBER(SEARCH("Field research",'Data extraction-synthesis'!K45)),"X","") ->  | J46: =IF(ISNUMBER(SEARCH("Policies",'Data extraction-synthesis'!K45)),"X","") ->  | K46: =IF(ISNUMBER(SEARCH("Websites of developers",'Data extraction-synthesis'!K45)),"X","") ->  | L46: =IF(ISNUMBER(SEARCH("Data available",'Data extraction-synthesis'!K45)),"X","") ->  | M46: =IF(ISNUMBER(SEARCH("No scoping phase reported",'Data extraction-synthesis'!K45)),"X","") -> X | N46: =IF(ISNUMBER(SEARCH("N/A",'Data extraction-synthesis'!K45)),"X","") ->  | O46: N/A
B47: TOT | C47: =COUNTIF(C3:C46,"X") -> 8 | D47: =COUNTIF(D3:D46,"X") -> 3 | E47: 15 | F47: 1 | G47: 2 | H47: 1 | I47: 1 | J47: 1 | K47: 1 | L47: 1 | M47: 22 | N47: 0
C48: =C47/22 -> 36% | D48: 14% | E48: 68% | F48: 5% | G48: 9% | H48: 5% | I48: 5% | J48: 5% | K48: 5% | L48: 5% | M48: =M47/22 -> 100% | N48: =N47/22 -> 0%

Sheet Input source drafting TPP
C1: INPUT SOURCE TO POPULATE TPP
A2: Authors | B2: Article title | C2: Literature | D2: Industry standard | E2: Guidelines | F2: Consensus meeting inputs | G2: Expert opinion | H2: Meeting input | I2: Available data | J2: Field observations | K2: Laboratory evaluations | L2: Models | M2: Early usability studies | N2: No input sources reported | O2: More than 1 input source? | P2: % STUDIES WITH 1 INPUT SOURCE | Q2: % STUDIES WITH >1 INPUT SOURCE | T2: Systematic literature review? | U2: Which only-one input sources
A3: Chua, A. P., I.: Nuebling, C. M.: Wood, D.: Moussy, F. | B3: Update on Zika Diagnostic Tests and WHO's Related Activities | C3: =IF(ISNUMBER(SEARCH("Literature",'Data extraction-synthesis'!$I$2)),"X","") -> X | D3: =IF(ISNUMBER(SEARCH("Industry standard",'Data extraction-synthesis'!I2)),"X","") ->  | E3: =IF(ISNUMBER(SEARCH("Guidelines",'Data extraction-synthesis'!$I$2)),"X","") ->  | F3: =IF(ISNUMBER(SEARCH("Consensus meeting inputs",'Data extraction-synthesis'!$I$2)),"X","") ->  | H3: =IF(ISNUMBER(SEARCH("Meeting input",'Data extraction-synthesis'!I2)),"X","") -> X | I3: =IF(ISNUMBER(SEARCH("Available data",'Data extraction-synthesis'!$I$2)),"X","") ->  | J3: =IF(ISNUMBER(SEARCH("Field observations",'Data extraction-synthesis'!$I$2)),"X","") ->  | K3: =IF(ISNUMBER(SEARCH("Laboratory evaluations",'Data extraction-synthesis'!$I$2)),"X","") ->  | L3: =IF(ISNUMBER(SEARCH("Models",'Data extraction-synthesis'!I2)),"X","") ->  | M3: =IF(ISNUMBER(SEARCH("Early usability studies",'Data extraction-synthesis'!$I$2)),"X","") ->  | N3: =IF(ISNUMBER(SEARCH("No input sources reported",'Data extraction-synthesis'!I2)),"X","") ->  | O3: =IF(N3="X","N/A",IF((COUNTIF(C3:N3,"X"))>1,"YES","NO")) -> YES | P3: =COUNTIF(O3:O46,"NO")/44 -> 20% | Q3: =COUNTIF(O3:O46,"YES")/44 -> 55% | R3: =Q3*44 -> 24 | T3: No, only citing literature | X3: Number of TPPs which provided some information on input source
A4: Denkinger, C. M. D., D.: Schito, M.: Wells, W.: Cobelens, F.: Pai, M.: Zignol, M.: Cirillo, D. M.: Alland, D.: Casenghi, M.: Gallarda, J.: Boehme, C. C.: Perkins, M. D | B4: Target Product Profile of a Molecular Drug-Susceptibility Test for Use in Microscopy Centers | C4: =IF(ISNUMBER(SEARCH("Literature",'Data extraction-synthesis'!I3)),"X","") -> X | D4: =IF(ISNUMBER(SEARCH("Industry standard",'Data extraction-synthesis'!I3)),"X","") ->  | E4: =IF(ISNUMBER(SEARCH("Guidelines",'Data extraction-synthesis'!I3)),"X","") ->  | F4: =IF(ISNUMBER(SEARCH("Consensus meeting inputs",'Data extraction-synthesis'!I3)),"X","") ->  | G4: X | H4: =IF(ISNUMBER(SEARCH("Meeting input",'Data extraction-synthesis'!I3)),"X","") ->  | I4: =IF(ISNUMBER(SEARCH("Available data",'Data extraction-synthesis'!I3)),"X","") ->  | J4: =IF(ISNUMBER(SEARCH("Field observations",'Data extraction-synthesis'!I3)),"X","") ->  | K4: =IF(ISNUMBER(SEARCH("Laboratory evaluations",'Data extraction-synthesis'!I3)),"X","") ->  | L4: =IF(ISNUMBER(SEARCH("Models",'Data extraction-synthesis'!I3)),"X","") -> X | M4: =IF(ISNUMBER(SEARCH("Early usability studies",'Data extraction-synthesis'!I3)),"X","") ->  | N4: =IF(ISNUMBER(SEARCH("No input sources reported",'Data extraction-synthesis'!I3)),"X","") ->  | O4: YES | P4: =P3*44 -> 9 | R4: =P3*44 -> 9 | T4: No, only citing literature | W4: Drafting | X4: =COUNTIF(N3:N46,"") -> 33 | Y4: =X4/44 -> 75%
A5: Denkinger, C. M. K., Sandra V.: Cirillo, Daniela Maria: Casenghi, Martina: Shinnick, Thomas: Weyer, Karin: Gilpin, Chris: Boehme, Catharina C.: Schito, Marco: Kimerling, Michael: Pai, Madhuka | B5: Defining the needs for next generation assays for tuberculosis | C5: =IF(ISNUMBER(SEARCH("Literature",'Data extraction-synthesis'!I4)),"X","") -> X | D5: =IF(ISNUMBER(SEARCH("Industry standard",'Data extraction-synthesis'!I4)),"X","") ->  | E5: =IF(ISNUMBER(SEARCH("Guidelines",'Data extraction-synthesis'!I4)),"X","") ->  | F5: =IF(ISNUMBER(SEARCH("Consensus meeting inputs",'Data extraction-synthesis'!I4)),"X","") ->  | G5: X | H5: =IF(ISNUMBER(SEARCH("Meeting input",'Data extraction-synthesis'!I4)),"X","") ->  | I5: =IF(ISNUMBER(SEARCH("Available data",'Data extraction-synthesis'!I4)),"X","") ->  | J5: =IF(ISNUMBER(SEARCH("Field observations",'Data extraction-synthesis'!I4)),"X","") ->  | K5: =IF(ISNUMBER(SEARCH("Laboratory evaluations",'Data extraction-synthesis'!I4)),"X","") ->  | L5: =IF(ISNUMBER(SEARCH("Models",'Data extraction-synthesis'!I4)),"X","") -> X | M5: =IF(ISNUMBER(SEARCH("Early usability studies",'Data extraction-synthesis'!I4)),"X","") ->  | N5: =IF(ISNUMBER(SEARCH("No input sources reported",'Data extraction-synthesis'!I4)),"X","") ->  | O5: YES | P5: =3/5 -> 0.6 | S5: =9/44 -> 20% | T5: No, only citing literature. It mentions only literature searches | W5: Scoping | X5: =COUNTIF('Input TPP scoping phase source'!M3:M46,"") -> 22 | Y5: =X5/44 -> 50%
A6: DIAMETER Project, PATH | B6: Point-of-Care Malaria Infection Detection Test For rapid detection of low-density, subclinical malaria infections | C6: =IF(ISNUMBER(SEARCH("Literature",'Data extraction-synthesis'!I5)),"X","") -> X | D6: =IF(ISNUMBER(SEARCH("Industry standard",'Data extraction-synthesis'!I5)),"X","") ->  | E6: =IF(ISNUMBER(SEARCH("Guidelines",'Data extraction-synthesis'!I5)),"X","") ->  | F6: =IF(ISNUMBER(SEARCH("Consensus meeting inputs",'Data extraction-synthesis'!I5)),"X","") ->  | H6: =IF(ISNUMBER(SEARCH("Meeting input",'Data extraction-synthesis'!I5)),"X","") ->  | I6: =IF(ISNUMBER(SEARCH("Available data",'Data extraction-synthesis'!I5)),"X","") -> X | J6: =IF(ISNUMBER(SEARCH("Field observations",'Data extraction-synthesis'!I5)),"X","") -> X | K6: =IF(ISNUMBER(SEARCH("Laboratory evaluations",'Data extraction-synthesis'!I5)),"X","") ->  | L6: =IF(ISNUMBER(SEARCH("Models",'Data extraction-synthesis'!I5)),"X","") -> X | M6: =IF(ISNUMBER(SEARCH("Early usability studies",'Data extraction-synthesis'!I5)),"X","") ->  | N6: =IF(ISNUMBER(SEARCH("No input sources reported",'Data extraction-synthesis'!I5)),"X","") ->  | O6: YES | T6: No, only citing literature | W6: Accuracy-related charact | X6: =COUNTIFS('Input source diagn accuracy'!N3:N46,"",'Input source diagn accuracy'!O3:O46,"") -> 18 | Y6: =X6/44 -> 41%
A7: Ding, X. C. A., Maria Paz: Baird, J. Kevin: Cheng, Qin: Cunningham, Jane: Dhorda, Mehul: Drakeley, Chris: Felger, Ingrid: Gamboa, Dionicia: Harbers, Matthias: Herrera, Socrates: Lucchi, Naomi: Mayor, Alfredo: Mueller, Ivo: Sattabongkot, Jetsumon: Ratsimbason, Arsène: Richards, Jack: Tanner, Marcel: González, Iveth J. | B7: Defining the next generation of Plasmodium vivax diagnostic tests for control and elimination: Target product profiles | C7: =IF(ISNUMBER(SEARCH("Literature",'Data extraction-synthesis'!I6)),"X","") -> X | D7: =IF(ISNUMBER(SEARCH("Industry standard",'Data extraction-synthesis'!I6)),"X","") ->  | E7: =IF(ISNUMBER(SEARCH("Guidelines",'Data extraction-synthesis'!I6)),"X","") ->  | F7: =IF(ISNUMBER(SEARCH("Consensus meeting inputs",'Data extraction-synthesis'!I6)),"X","") ->  | G7: X | H7: =IF(ISNUMBER(SEARCH("Meeting input",'Data extraction-synthesis'!I6)),"X","") ->  | I7: =IF(ISNUMBER(SEARCH("Available data",'Data extraction-synthesis'!I6)),"X","") ->  | J7: =IF(ISNUMBER(SEARCH("Field observations",'Data extraction-synthesis'!I6)),"X","") ->  | K7: =IF(ISNUMBER(SEARCH("Laboratory evaluations",'Data extraction-synthesis'!I6)),"X","") ->  | L7: =IF(ISNUMBER(SEARCH("Models",'Data extraction-synthesis'!I6)),"X","") -> X | M7: =IF(ISNUMBER(SEARCH("Early usability studies",'Data extraction-synthesis'!I6)),"X","") ->  | N7: =IF(ISNUMBER(SEARCH("No input sources reported",'Data extraction-synthesis'!I6)),"X","") ->  | O7: YES | T7: No, only citing literature in the main text
A8: Dittrich, S. T., B. T.: Moussy, F.: Chua, A.: Zorzet, A.: Tangden, T.: Dolinger, D. L.: Page, A. L.: Crump, J. A.: Valerie, D.: Bassat, Q.: Lubell, Y.: Heinrich, N.: Newton, P. N.: Rodwell, T.: Gonzalez, I. J. | B8: Target Product Profile for a Diagnostic Assay to Differentiate between Bacterial and Non-Bacterial Infections to Guide Antimicrobials Use in Resource-Limited Settings: An Expert Consensus | C8: =IF(ISNUMBER(SEARCH("Literature",'Data extraction-synthesis'!I7)),"X","") -> X | D8: =IF(ISNUMBER(SEARCH("Industry standard",'Data extraction-synthesis'!I7)),"X","") -> X | E8: =IF(ISNUMBER(SEARCH("Guidelines",'Data extraction-synthesis'!I7)),"X","") ->  | F8: =IF(ISNUMBER(SEARCH("Consensus meeting inputs",'Data extraction-synthesis'!I7)),"X","") ->  | G8: X | H8: =IF(ISNUMBER(SEARCH("Meeting input",'Data extraction-synthesis'!I7)),"X","") ->  | I8: =IF(ISNUMBER(SEARCH("Available data",'Data extraction-synthesis'!I7)),"X","") ->  | J8: =IF(ISNUMBER(SEARCH("Field observations",'Data extraction-synthesis'!I7)),"X","") ->  | K8: =IF(ISNUMBER(SEARCH("Laboratory evaluations",'Data extraction-synthesis'!I7)),"X","") ->  | L8: =IF(ISNUMBER(SEARCH("Models",'Data extraction-synthesis'!I7)),"X","") ->  | M8: =IF(ISNUMBER(SEARCH("Early usability studies",'Data extraction-synthesis'!I7)),"X","") ->  | N8: =IF(ISNUMBER(SEARCH("No input sources reported",'Data extraction-synthesis'!I7)),"X","") ->  | O8: YES | T8: No, only citing literature
A9: FIND | B9: High-priority target product profile for hepatitis C diagnosis in decentralized settings: Report of a consensus meeting. | C9: =IF(ISNUMBER(SEARCH("Literature",'Data extraction-synthesis'!I8)),"X","") -> X | D9: =IF(ISNUMBER(SEARCH("Industry standard",'Data extraction-synthesis'!I8)),"X","") ->  | E9: =IF(ISNUMBER(SEARCH("Guidelines",'Data extraction-synthesis'!I8)),"X","") ->  | F9: =IF(ISNUMBER(SEARCH("Consensus meeting inputs",'Data extraction-synthesis'!I8)),"X","") ->  | G9: X | H9: =IF(ISNUMBER(SEARCH("Meeting input",'Data extraction-synthesis'!I8)),"X","") ->  | I9: =IF(ISNUMBER(SEARCH("Available data",'Data extraction-synthesis'!I8)),"X","") ->  | J9: =IF(ISNUMBER(SEARCH("Field observations",'Data extraction-synthesis'!I8)),"X","") ->  | K9: =IF(ISNUMBER(SEARCH("Laboratory evaluations",'Data extraction-synthesis'!I8)),"X","") ->  | L9: =IF(ISNUMBER(SEARCH("Models",'Data extraction-synthesis'!I8)),"X","") -> X | M9: =IF(ISNUMBER(SEARCH("Early usability studies",'Data extraction-synthesis'!I8)),"X","") ->  | N9: =IF(ISNUMBER(SEARCH("No input sources reported",'Data extraction-synthesis'!I8)),"X","") ->  | O9: YES | T9: No, only citing literature in the main text
A10: Gal, M. F., N. A.: Hood, K.: Villacian, J.: Goossens, H.: Watkins, A.: Butler, C. C. | B10: Matching diagnostics development to clinical need: Target product profile development for a point of care test for community-acquired lower respiratory tract infection | C10: =IF(ISNUMBER(SEARCH("Literature",'Data extraction-synthesis'!I9)),"X","") -> X | D10: =IF(ISNUMBER(SEARCH("Industry standard",'Data extraction-synthesis'!I9)),"X","") ->  | E10: =IF(ISNUMBER(SEARCH("Guidelines",'Data extraction-synthesis'!I9)),"X","") ->  | F10: =IF(ISNUMBER(SEARCH("Consensus meeting inputs",'Data extraction-synthesis'!I9)),"X","") ->  | G10: X | H10: =IF(ISNUMBER(SEARCH("Meeting input",'Data extraction-synthesis'!I9)),"X","") -> X | I10: =IF(ISNUMBER(SEARCH("Available data",'Data extraction-synthesis'!I9)),"X","") ->  | J10: =IF(ISNUMBER(SEARCH("Field observations",'Data extraction-synthesis'!I9)),"X","") ->  | K10: =IF(ISNUMBER(SEARCH("Laboratory evaluations",'Data extraction-synthesis'!I9)),"X","") ->  | L10: =IF(ISNUMBER(SEARCH("Models",'Data extraction-synthesis'!I9)),"X","") ->  | M10: =IF(ISNUMBER(SEARCH("Early usability studies",'Data extraction-synthesis'!I9)),"X","") ->  | N10: =IF(ISNUMBER(SEARCH("No input sources reported",'Data extraction-synthesis'!I9)),"X","") ->  | O10: YES | T10: No, only citing literature
A11: Lim, M. D. B., S. J.: Belizario, V. Y., Jr.: Gay-Andrieu, F.: Gilleard, J.: Levecke, B.: Lieshout, L. van: Medley, G. F.: Mekonnen, Z.: Mirams, G.: Njenga, S. M.: Odiere, M. R.: Rudge, J. W.: Stuyver, L.: Vercruysse, J.: Vlaminck, J.: Walson, J. L. | B11: Diagnostic tools for soil-transmitted helminths control and elimination programs: a pathway for diagnostic product development | C11: =IF(ISNUMBER(SEARCH("Literature",'Data extraction-synthesis'!I10)),"X","") -> X | D11: =IF(ISNUMBER(SEARCH("Industry standard",'Data extraction-synthesis'!I10)),"X","") ->  | E11: =IF(ISNUMBER(SEARCH("Guidelines",'Data extraction-synthesis'!I10)),"X","") -> X | F11: =IF(ISNUMBER(SEARCH("Consensus meeting inputs",'Data extraction-synthesis'!I10)),"X","") ->  | G11: X | H11: =IF(ISNUMBER(SEARCH("Meeting input",'Data extraction-synthesis'!I10)),"X","") -> X | I11: =IF(ISNUMBER(SEARCH("Available data",'Data extraction-synthesis'!I10)),"X","") ->  | J11: =IF(ISNUMBER(SEARCH("Field observations",'Data extraction-synthesis'!I10)),"X","") ->  | K11: =IF(ISNUMBER(SEARCH("Laboratory evaluations",'Data extraction-synthesis'!I10)),"X","") ->  | L11: =IF(ISNUMBER(SEARCH("Models",'Data extraction-synthesis'!I10)),"X","") ->  | M11: =IF(ISNUMBER(SEARCH("Early usability studies",'Data extraction-synthesis'!I10)),"X","") ->  | N11: =IF(ISNUMBER(SEARCH("No input sources reported",'Data extraction-synthesis'!I10)),"X","") ->  | O11: YES | T11: No, only citing literature in the table and main text
A12: Nsanzabana, C. A., Frederic: Beck, Hans-Peter: Ding, Xavier C.: Kamau, Edwin: Krishna, Sanjeev: Legrand, Eric: Lucchi, Naomi: Miotto, Olivo: Nag, Sidsel: Noedl, Harald: Roper, Cally: Rosenthal, Philip J.: Schallig, Henk D. F. H.: Taylor, Steve M.: Volkman, Sarah K.: Gonzalez, Iveth J. | B12: Molecular assays for antimalarial drug resistance surveillance: A target product profile | C12: =IF(ISNUMBER(SEARCH("Literature",'Data extraction-synthesis'!I11)),"X","") -> X | D12: =IF(ISNUMBER(SEARCH("Industry standard",'Data extraction-synthesis'!I11)),"X","") ->  | E12: =IF(ISNUMBER(SEARCH("Guidelines",'Data extraction-synthesis'!I11)),"X","") ->  | F12: =IF(ISNUMBER(SEARCH("Consensus meeting inputs",'Data extraction-synthesis'!I11)),"X","") ->  | H12: =IF(ISNUMBER(SEARCH("Meeting input",'Data extraction-synthesis'!I11)),"X","") ->  | I12: =IF(ISNUMBER(SEARCH("Available data",'Data extraction-synthesis'!I11)),"X","") ->  | J12: =IF(ISNUMBER(SEARCH("Field observations",'Data extraction-synthesis'!I11)),"X","") ->  | K12: =IF(ISNUMBER(SEARCH("Laboratory evaluations",'Data extraction-synthesis'!I11)),"X","") ->  | L12: =IF(ISNUMBER(SEARCH("Models",'Data extraction-synthesis'!I11)),"X","") ->  | M12: =IF(ISNUMBER(SEARCH("Early usability studies",'Data extraction-synthesis'!I11)),"X","") ->  | N12: =IF(ISNUMBER(SEARCH("No input sources reported",'Data extraction-synthesis'!I11)),"X","") ->  | O12: NO | T12: No, only citing literature
A13: Porras, A. I. Y., Z. E.: Altcheh, J.: Britto, C.: Chaves, G. C.: Flevaud, L.: Martins, O. A.: Ribeiro, I.: Schijman, A. G.: Shikanai-Yasuda, M. A.: Sosa-Estani, S.: Stobbaerts, E.: Zicker, F. | B13: Target Product Profile (TPP) for Chagas Disease Point-of-Care Diagnosis and Assessment of Response to Treatmen | C13: =IF(ISNUMBER(SEARCH("Literature",'Data extraction-synthesis'!I12)),"X","") ->  | D13: =IF(ISNUMBER(SEARCH("Industry standard",'Data extraction-synthesis'!I12)),"X","") ->  | E13: =IF(ISNUMBER(SEARCH("Guidelines",'Data extraction-synthesis'!I12)),"X","") ->  | F13: =IF(ISNUMBER(SEARCH("Consensus meeting inputs",'Data extraction-synthesis'!I12)),"X","") ->  | H13: =IF(ISNUMBER(SEARCH("Meeting input",'Data extraction-synthesis'!I12)),"X","") -> X | I13: =IF(ISNUMBER(SEARCH("Available data",'Data extraction-synthesis'!I12)),"X","") ->  | J13: =IF(ISNUMBER(SEARCH("Field observations",'Data extraction-synthesis'!I12)),"X","") ->  | K13: =IF(ISNUMBER(SEARCH("Laboratory evaluations",'Data extraction-synthesis'!I12)),"X","") ->  | L13: =IF(ISNUMBER(SEARCH("Models",'Data extraction-synthesis'!I12)),"X","") ->  | M13: =IF(ISNUMBER(SEARCH("Early usability studies",'Data extraction-synthesis'!I12)),"X","") ->  | N13: =IF(ISNUMBER(SEARCH("No input sources reported",'Data extraction-synthesis'!I12)),"X","") ->  | O13: NO | U13: Meeting input
A14: Reipold, E. I. E., Philippa: Trianni, Alessandra: Panneer, Nivedha: Krakower, Douglas: Ongarello, Stefano: Roberts, Teri: Miller, Veronica: Denkinger, Claudia | B14: Optimising diagnosis of viraemic hepatitis C infection: the development of a target product profile | C14: =IF(ISNUMBER(SEARCH("Literature",'Data extraction-synthesis'!I13)),"X","") -> X | D14: =IF(ISNUMBER(SEARCH("Industry standard",'Data extraction-synthesis'!I13)),"X","") ->  | E14: =IF(ISNUMBER(SEARCH("Guidelines",'Data extraction-synthesis'!I13)),"X","") ->  | F14: =IF(ISNUMBER(SEARCH("Consensus meeting inputs",'Data extraction-synthesis'!I13)),"X","") ->  | G14: X | H14: =IF(ISNUMBER(SEARCH("Meeting input",'Data extraction-synthesis'!I13)),"X","") ->  | I14: =IF(ISNUMBER(SEARCH("Available data",'Data extraction-synthesis'!I13)),"X","") ->  | J14: =IF(ISNUMBER(SEARCH("Field observations",'Data extraction-synthesis'!I13)),"X","") ->  | K14: =IF(ISNUMBER(SEARCH("Laboratory evaluations",'Data extraction-synthesis'!I13)),"X","") ->  | L14: =IF(ISNUMBER(SEARCH("Models",'Data extraction-synthesis'!I13)),"X","") -> X | M14: =IF(ISNUMBER(SEARCH("Early usability studies",'Data extraction-synthesis'!I13)),"X","") ->  | N14: =IF(ISNUMBER(SEARCH("No input sources reported",'Data extraction-synthesis'!I13)),"X","") ->  | O14: YES | T14: No, only citing literature in table and main text
A15: Solomon, A. W. E., D.: Bailey, R. L.: Blake, I. M.: Brooker, S.: Chen, J. X.: Chen, J. H.: Churcher, T. S.: Drakeley, C. J.: Edwards, T.: Fenwick, A.: French, M.: Gabrielli, A. F.: Grassly, N. C.: Harding-Esch, E. M.: Holland, M. J.: Koukounari, A.: Lammie, P. J.: Leslie, J.: Mabey, D. C.: Rhajaoui, M.: Secor, W. E.: Stothard, J. R.: Wei, H.: Willingham, A. L.: Zhou, X. N.: Peeling, R. W. | B15: A diagnostics platform for the integrated mapping, monitoring, and surveillance of neglected tropical diseases: Rationale and target product profiles | C15: =IF(ISNUMBER(SEARCH("Literature",'Data extraction-synthesis'!I14)),"X","") ->  | D15: =IF(ISNUMBER(SEARCH("Industry standard",'Data extraction-synthesis'!I14)),"X","") ->  | E15: =IF(ISNUMBER(SEARCH("Guidelines",'Data extraction-synthesis'!I14)),"X","") ->  | F15: =IF(ISNUMBER(SEARCH("Consensus meeting inputs",'Data extraction-synthesis'!I14)),"X","") -> X | I15: =IF(ISNUMBER(SEARCH("Available data",'Data extraction-synthesis'!I14)),"X","") ->  | J15: =IF(ISNUMBER(SEARCH("Field observations",'Data extraction-synthesis'!I14)),"X","") ->  | K15: =IF(ISNUMBER(SEARCH("Laboratory evaluations",'Data extraction-synthesis'!I14)),"X","") ->  | L15: =IF(ISNUMBER(SEARCH("Models",'Data extraction-synthesis'!I14)),"X","") ->  | M15: =IF(ISNUMBER(SEARCH("Early usability studies",'Data extraction-synthesis'!I14)),"X","") ->  | N15: =IF(ISNUMBER(SEARCH("No input sources reported",'Data extraction-synthesis'!I14)),"X","") ->  | O15: NO
A16: Toskin, I. M., M.: Peeling, R. W.: Blondeel, K.: Cordero, J.: Kiarie, J. | B16: Advancing prevention of sexually transmitted infections through point-of-care testing: target product profiles and landscape analysis | C16: =IF(ISNUMBER(SEARCH("Literature",'Data extraction-synthesis'!I15)),"X","") -> X | D16: =IF(ISNUMBER(SEARCH("Industry standard",'Data extraction-synthesis'!I15)),"X","") ->  | E16: =IF(ISNUMBER(SEARCH("Guidelines",'Data extraction-synthesis'!I15)),"X","") ->  | F16: =IF(ISNUMBER(SEARCH("Consensus meeting inputs",'Data extraction-synthesis'!I15)),"X","") -> X | G16: X | I16: =IF(ISNUMBER(SEARCH("Available data",'Data extraction-synthesis'!I15)),"X","") ->  | J16: =IF(ISNUMBER(SEARCH("Field observations",'Data extraction-synthesis'!I15)),"X","") ->  | K16: =IF(ISNUMBER(SEARCH("Laboratory evaluations",'Data extraction-synthesis'!I15)),"X","") ->  | L16: =IF(ISNUMBER(SEARCH("Models",'Data extraction-synthesis'!I15)),"X","") -> X | M16: =IF(ISNUMBER(SEARCH("Early usability studies",'Data extraction-synthesis'!I15)),"X","") ->  | N16: =IF(ISNUMBER(SEARCH("No input sources reported",'Data extraction-synthesis'!I15)),"X","") ->  | O16: YES | T16: Review of pooled daa from systematic reviews commissioned by WHO
A17: Donadeu, M. F., A. S.: Olliaro, P. L.: Abela-Ridder, B | B17: Target product profiles for the diagnosis of Taenia solium taeniasis, neurocysticercosis and porcine cysticercosis | C17: =IF(ISNUMBER(SEARCH("Literature",'Data extraction-synthesis'!I16)),"X","") -> X | D17: =IF(ISNUMBER(SEARCH("Industry standard",'Data extraction-synthesis'!I16)),"X","") ->  | E17: =IF(ISNUMBER(SEARCH("Guidelines",'Data extraction-synthesis'!I16)),"X","") ->  | F17: =IF(ISNUMBER(SEARCH("Consensus meeting inputs",'Data extraction-synthesis'!I16)),"X","") ->  | G17: X | H17: =IF(ISNUMBER(SEARCH("Meeting input",'Data extraction-synthesis'!I16)),"X","") ->  | I17: =IF(ISNUMBER(SEARCH("Available data",'Data extraction-synthesis'!I16)),"X","") ->  | J17: =IF(ISNUMBER(SEARCH("Field observations",'Data extraction-synthesis'!I16)),"X","") ->  | K17: =IF(ISNUMBER(SEARCH("Laboratory evaluations",'Data extraction-synthesis'!I16)),"X","") ->  | L17: =IF(ISNUMBER(SEARCH("Models",'Data extraction-synthesis'!I16)),"X","") ->  | M17: =IF(ISNUMBER(SEARCH("Early usability studies",'Data extraction-synthesis'!I16)),"X","") ->  | N17: =IF(ISNUMBER(SEARCH("No input sources reported",'Data extraction-synthesis'!I16)),"X","") ->  | O17: YES | T17: No, only citing literature in the table and main text
A18: FIND | B18: Target Product Profile for Tests for Recent HIV Infection | C18: =IF(ISNUMBER(SEARCH("Literature",'Data extraction-synthesis'!I17)),"X","") ->  | D18: =IF(ISNUMBER(SEARCH("Industry standard",'Data extraction-synthesis'!I17)),"X","") ->  | E18: =IF(ISNUMBER(SEARCH("Guidelines",'Data extraction-synthesis'!I17)),"X","") ->  | F18: =IF(ISNUMBER(SEARCH("Consensus meeting inputs",'Data extraction-synthesis'!I17)),"X","") ->  | G18: X | H18: =IF(ISNUMBER(SEARCH("Meeting input",'Data extraction-synthesis'!I17)),"X","") -> X | I18: =IF(ISNUMBER(SEARCH("Available data",'Data extraction-synthesis'!I17)),"X","") ->  | J18: =IF(ISNUMBER(SEARCH("Field observations",'Data extraction-synthesis'!I17)),"X","") ->  | K18: =IF(ISNUMBER(SEARCH("Laboratory evaluations",'Data extraction-synthesis'!I17)),"X","") ->  | L18: =IF(ISNUMBER(SEARCH("Models",'Data extraction-synthesis'!I17)),"X","") ->  | M18: =IF(ISNUMBER(SEARCH("Early usability studies",'Data extraction-synthesis'!I17)),"X","") ->  | N18: =IF(ISNUMBER(SEARCH("No input sources reported",'Data extraction-synthesis'!I17)),"X","") ->  | O18: YES
A19: FIND | B19: Target Product Profile: Rapid test for diagnosis of malaria and screening for hyman African trypanosomiasis (HAT) | C19: =IF(ISNUMBER(SEARCH("Literature",'Data extraction-synthesis'!I18)),"X","") ->  | D19: =IF(ISNUMBER(SEARCH("Industry standard",'Data extraction-synthesis'!I18)),"X","") ->  | E19: =IF(ISNUMBER(SEARCH("Guidelines",'Data extraction-synthesis'!I18)),"X","") ->  | F19: =IF(ISNUMBER(SEARCH("Consensus meeting inputs",'Data extraction-synthesis'!I18)),"X","") ->  | H19: =IF(ISNUMBER(SEARCH("Meeting input",'Data extraction-synthesis'!I18)),"X","") ->  | I19: =IF(ISNUMBER(SEARCH("Available data",'Data extraction-synthesis'!I18)),"X","") ->  | J19: =IF(ISNUMBER(SEARCH("Field observations",'Data extraction-synthesis'!I18)),"X","") ->  | K19: =IF(ISNUMBER(SEARCH("Laboratory evaluations",'Data extraction-synthesis'!I18)),"X","") ->  | L19: =IF(ISNUMBER(SEARCH("Models",'Data extraction-synthesis'!I18)),"X","") ->  | M19: =IF(ISNUMBER(SEARCH("Early usability studies",'Data extraction-synthesis'!I18)),"X","") ->  | N19: =IF(ISNUMBER(SEARCH("No input sources reported",'Data extraction-synthesis'!I18)),"X","") -> X | O19: N/A
A20: PATH | B20: Target Product Profile: HIV Self-Test Version 4.1: A White Paper on the Evaluation of Current HIV Rapid Tests and Development of Core Specifications for Next-Generation HIV Tests | C20: =IF(ISNUMBER(SEARCH("Literature",'Data extraction-synthesis'!I19)),"X","") -> X | D20: =IF(ISNUMBER(SEARCH("Industry standard",'Data extraction-synthesis'!I19)),"X","") ->  | E20: =IF(ISNUMBER(SEARCH("Guidelines",'Data extraction-synthesis'!I19)),"X","") ->  | F20: =IF(ISNUMBER(SEARCH("Consensus meeting inputs",'Data extraction-synthesis'!I19)),"X","") ->  | G20: X | H20: =IF(ISNUMBER(SEARCH("Meeting input",'Data extraction-synthesis'!I19)),"X","") ->  | I20: =IF(ISNUMBER(SEARCH("Available data",'Data extraction-synthesis'!I19)),"X","") -> X | J20: =IF(ISNUMBER(SEARCH("Field observations",'Data extraction-synthesis'!I19)),"X","") ->  | K20: =IF(ISNUMBER(SEARCH("Laboratory evaluations",'Data extraction-synthesis'!I19)),"X","") -> X | L20: =IF(ISNUMBER(SEARCH("Models",'Data extraction-synthesis'!I19)),"X","") ->  | M20: =IF(ISNUMBER(SEARCH("Early usability studies",'Data extraction-synthesis'!I19)),"X","") -> X | N20: =IF(ISNUMBER(SEARCH("No input sources reported",'Data extraction-synthesis'!I19)),"X","") ->  | O20: YES | T20: "Thoughtful review of currently available literature", citing specific literature for each test characteristic
A21: PATH | B21: Diagnostics for neglected tropical diseases: Defining the best tools through target product profiles | C21: =IF(ISNUMBER(SEARCH("Literature",'Data extraction-synthesis'!I20)),"X","") ->  | D21: =IF(ISNUMBER(SEARCH("Industry standard",'Data extraction-synthesis'!I20)),"X","") ->  | E21: =IF(ISNUMBER(SEARCH("Guidelines",'Data extraction-synthesis'!I20)),"X","") ->  | F21: =IF(ISNUMBER(SEARCH("Consensus meeting inputs",'Data extraction-synthesis'!I20)),"X","") ->  | G21: X | H21: =IF(ISNUMBER(SEARCH("Meeting input",'Data extraction-synthesis'!I20)),"X","") ->  | I21: =IF(ISNUMBER(SEARCH("Available data",'Data extraction-synthesis'!I20)),"X","") ->  | J21: =IF(ISNUMBER(SEARCH("Field observations",'Data extraction-synthesis'!I20)),"X","") ->  | K21: =IF(ISNUMBER(SEARCH("Laboratory evaluations",'Data extraction-synthesis'!I20)),"X","") ->  | L21: =IF(ISNUMBER(SEARCH("Models",'Data extraction-synthesis'!I20)),"X","") ->  | M21: =IF(ISNUMBER(SEARCH("Early usability studies",'Data extraction-synthesis'!I20)),"X","") ->  | N21: =IF(ISNUMBER(SEARCH("No input sources reported",'Data extraction-synthesis'!I20)),"X","") ->  | O21: NO
A22: PATH | B22: Target Product Profile: Schistosomiasis Surveillance Diagnostic | C22: =IF(ISNUMBER(SEARCH("Literature",'Data extraction-synthesis'!I21)),"X","") -> X | D22: =IF(ISNUMBER(SEARCH("Industry standard",'Data extraction-synthesis'!I21)),"X","") ->  | E22: =IF(ISNUMBER(SEARCH("Guidelines",'Data extraction-synthesis'!I21)),"X","") -> X | F22: =IF(ISNUMBER(SEARCH("Consensus meeting inputs",'Data extraction-synthesis'!I21)),"X","") ->  | G22: X | H22: =IF(ISNUMBER(SEARCH("Meeting input",'Data extraction-synthesis'!I21)),"X","") ->  | I22: =IF(ISNUMBER(SEARCH("Available data",'Data extraction-synthesis'!I21)),"X","") -> X | J22: =IF(ISNUMBER(SEARCH("Field observations",'Data extraction-synthesis'!I21)),"X","") -> X | K22: =IF(ISNUMBER(SEARCH("Laboratory evaluations",'Data extraction-synthesis'!I21)),"X","") ->  | L22: =IF(ISNUMBER(SEARCH("Models",'Data extraction-synthesis'!I21)),"X","") ->  | M22: =IF(ISNUMBER(SEARCH("Early usability studies",'Data extraction-synthesis'!I21)),"X","") ->  | N22: =IF(ISNUMBER(SEARCH("No input sources reported",'Data extraction-synthesis'!I21)),"X","") ->  | O22: YES | T22: No, only citing literature in the main text describing each test characteristic
A23: UNICEF | B23: UNICEF Target Product Profile Rapid E.coli Detection (version 2.0) | C23: =IF(ISNUMBER(SEARCH("Literature",'Data extraction-synthesis'!I22)),"X","") ->  | D23: =IF(ISNUMBER(SEARCH("Industry standard",'Data extraction-synthesis'!I22)),"X","") ->  | E23: =IF(ISNUMBER(SEARCH("Guidelines",'Data extraction-synthesis'!I22)),"X","") ->  | F23: =IF(ISNUMBER(SEARCH("Consensus meeting inputs",'Data extraction-synthesis'!I22)),"X","") ->  | H23: =IF(ISNUMBER(SEARCH("Meeting input",'Data extraction-synthesis'!I22)),"X","") ->  | I23: =IF(ISNUMBER(SEARCH("Available data",'Data extraction-synthesis'!I22)),"X","") ->  | J23: =IF(ISNUMBER(SEARCH("Field observations",'Data extraction-synthesis'!I22)),"X","") ->  | K23: =IF(ISNUMBER(SEARCH("Laboratory evaluations",'Data extraction-synthesis'!I22)),"X","") ->  | L23: =IF(ISNUMBER(SEARCH("Models",'Data extraction-synthesis'!I22)),"X","") ->  | M23: =IF(ISNUMBER(SEARCH("Early usability studies",'Data extraction-synthesis'!I22)),"X","") ->  | N23: =IF(ISNUMBER(SEARCH("No input sources reported",'Data extraction-synthesis'!I22)),"X","") -> X | O23: N/A
A24: UNICEF | B24: UNICEF Target Product Profile Rapid E.coli Detection (1.4) | C24: =IF(ISNUMBER(SEARCH("Literature",'Data extraction-synthesis'!I23)),"X","") ->  | D24: =IF(ISNUMBER(SEARCH("Industry standard",'Data extraction-synthesis'!I23)),"X","") ->  | E24: =IF(ISNUMBER(SEARCH("Guidelines",'Data extraction-synthesis'!I23)),"X","") ->  | F24: =IF(ISNUMBER(SEARCH("Consensus meeting inputs",'Data extraction-synthesis'!I23)),"X","") ->  | H24: =IF(ISNUMBER(SEARCH("Meeting input",'Data extraction-synthesis'!I23)),"X","") ->  | I24: =IF(ISNUMBER(SEARCH("Available data",'Data extraction-synthesis'!I23)),"X","") ->  | J24: =IF(ISNUMBER(SEARCH("Field observations",'Data extraction-synthesis'!I23)),"X","") ->  | K24: =IF(ISNUMBER(SEARCH("Laboratory evaluations",'Data extraction-synthesis'!I23)),"X","") ->  | L24: =IF(ISNUMBER(SEARCH("Models",'Data extraction-synthesis'!I23)),"X","") ->  | M24: =IF(ISNUMBER(SEARCH("Early usability studies",'Data extraction-synthesis'!I23)),"X","") ->  | N24: =IF(ISNUMBER(SEARCH("No input sources reported",'Data extraction-synthesis'!I23)),"X","") -> X | O24: N/A
A25: WHO | B25: High-priority target product profile for new tubercolosis diagnostics: report of a consensus meeting | C25: =IF(ISNUMBER(SEARCH("Literature",'Data extraction-synthesis'!I24)),"X","") -> X | D25: =IF(ISNUMBER(SEARCH("Industry standard",'Data extraction-synthesis'!I24)),"X","") ->  | E25: =IF(ISNUMBER(SEARCH("Guidelines",'Data extraction-synthesis'!I24)),"X","") ->  | F25: =IF(ISNUMBER(SEARCH("Consensus meeting inputs",'Data extraction-synthesis'!I24)),"X","") -> X | G25: X | I25: =IF(ISNUMBER(SEARCH("Available data",'Data extraction-synthesis'!I24)),"X","") ->  | J25: =IF(ISNUMBER(SEARCH("Field observations",'Data extraction-synthesis'!I24)),"X","") ->  | K25: =IF(ISNUMBER(SEARCH("Laboratory evaluations",'Data extraction-synthesis'!I24)),"X","") ->  | L25: =IF(ISNUMBER(SEARCH("Models",'Data extraction-synthesis'!I24)),"X","") -> X | M25: =IF(ISNUMBER(SEARCH("Early usability studies",'Data extraction-synthesis'!I24)),"X","") ->  | N25: =IF(ISNUMBER(SEARCH("No input sources reported",'Data extraction-synthesis'!I24)),"X","") ->  | O25: YES | T25: No, only citing literature in the main text in relation to some test characteristics and table
A26: WHO | B26: Development of a Target Product Profile (TPP) and framework for evaluation for a test predicting progression from tubercolosis infection to active disease | C26: =IF(ISNUMBER(SEARCH("Literature",'Data extraction-synthesis'!I25)),"X","") ->  | D26: =IF(ISNUMBER(SEARCH("Industry standard",'Data extraction-synthesis'!I25)),"X","") ->  | E26: =IF(ISNUMBER(SEARCH("Guidelines",'Data extraction-synthesis'!I25)),"X","") ->  | F26: =IF(ISNUMBER(SEARCH("Consensus meeting inputs",'Data extraction-synthesis'!I25)),"X","") ->  | G26: X | H26: =IF(ISNUMBER(SEARCH("Meeting input",'Data extraction-synthesis'!I25)),"X","") -> X | I26: =IF(ISNUMBER(SEARCH("Available data",'Data extraction-synthesis'!I25)),"X","") ->  | J26: =IF(ISNUMBER(SEARCH("Field observations",'Data extraction-synthesis'!I25)),"X","") ->  | K26: =IF(ISNUMBER(SEARCH("Laboratory evaluations",'Data extraction-synthesis'!I25)),"X","") ->  | L26: =IF(ISNUMBER(SEARCH("Models",'Data extraction-synthesis'!I25)),"X","") ->  | M26: =IF(ISNUMBER(SEARCH("Early usability studies",'Data extraction-synthesis'!I25)),"X","") ->  | N26: =IF(ISNUMBER(SEARCH("No input sources reported",'Data extraction-synthesis'!I25)),"X","") ->  | O26: YES
A27: WHO | B27: Specifications for a rapid diagnostic test for meningitis African meningitis belt/ Target product profile for the development of a new generation of rapid test for the diagnosis of bacterial meningitis | C27: =IF(ISNUMBER(SEARCH("Literature",'Data extraction-synthesis'!I26)),"X","") ->  | D27: =IF(ISNUMBER(SEARCH("Industry standard",'Data extraction-synthesis'!I26)),"X","") ->  | E27: =IF(ISNUMBER(SEARCH("Guidelines",'Data extraction-synthesis'!I26)),"X","") ->  | F27: =IF(ISNUMBER(SEARCH("Consensus meeting inputs",'Data extraction-synthesis'!I26)),"X","") ->  | H27: =IF(ISNUMBER(SEARCH("Meeting input",'Data extraction-synthesis'!I26)),"X","") ->  | I27: =IF(ISNUMBER(SEARCH("Available data",'Data extraction-synthesis'!I26)),"X","") ->  | J27: =IF(ISNUMBER(SEARCH("Field observations",'Data extraction-synthesis'!I26)),"X","") ->  | K27: =IF(ISNUMBER(SEARCH("Laboratory evaluations",'Data extraction-synthesis'!I26)),"X","") ->  | L27: =IF(ISNUMBER(SEARCH("Models",'Data extraction-synthesis'!I26)),"X","") ->  | M27: =IF(ISNUMBER(SEARCH("Early usability studies",'Data extraction-synthesis'!I26)),"X","") ->  | N27: =IF(ISNUMBER(SEARCH("No input sources reported",'Data extraction-synthesis'!I26)),"X","") -> X | O27: N/A
A28: WHO | B28: Target Product Profile for Zaire ebolavirus rapid,simple test to be used in the control of the Ebola outbreak in West Africa | C28: =IF(ISNUMBER(SEARCH("Literature",'Data extraction-synthesis'!I27)),"X","") ->  | D28: =IF(ISNUMBER(SEARCH("Industry standard",'Data extraction-synthesis'!I27)),"X","") ->  | E28: =IF(ISNUMBER(SEARCH("Guidelines",'Data extraction-synthesis'!I27)),"X","") ->  | F28: =IF(ISNUMBER(SEARCH("Consensus meeting inputs",'Data extraction-synthesis'!I27)),"X","") ->  | H28: =IF(ISNUMBER(SEARCH("Meeting input",'Data extraction-synthesis'!I27)),"X","") ->  | I28: =IF(ISNUMBER(SEARCH("Available data",'Data extraction-synthesis'!I27)),"X","") ->  | J28: =IF(ISNUMBER(SEARCH("Field observations",'Data extraction-synthesis'!I27)),"X","") ->  | K28: =IF(ISNUMBER(SEARCH("Laboratory evaluations",'Data extraction-synthesis'!I27)),"X","") ->  | L28: =IF(ISNUMBER(SEARCH("Models",'Data extraction-synthesis'!I27)),"X","") ->  | M28: =IF(ISNUMBER(SEARCH("Early usability studies",'Data extraction-synthesis'!I27)),"X","") ->  | N28: =IF(ISNUMBER(SEARCH("No input sources reported",'Data extraction-synthesis'!I27)),"X","") -> X | O28: N/A
A29: WHO | B29: Report of WHO-FIND meeting on diagnostics for Buruli ulcer | C29: =IF(ISNUMBER(SEARCH("Literature",'Data extraction-synthesis'!I28)),"X","") ->  | D29: =IF(ISNUMBER(SEARCH("Industry standard",'Data extraction-synthesis'!I28)),"X","") ->  | E29: =IF(ISNUMBER(SEARCH("Guidelines",'Data extraction-synthesis'!I28)),"X","") ->  | F29: =IF(ISNUMBER(SEARCH("Consensus meeting inputs",'Data extraction-synthesis'!I28)),"X","") ->  | H29: =IF(ISNUMBER(SEARCH("Meeting input",'Data extraction-synthesis'!I28)),"X","") -> X | I29: =IF(ISNUMBER(SEARCH("Available data",'Data extraction-synthesis'!I28)),"X","") ->  | J29: =IF(ISNUMBER(SEARCH("Field observations",'Data extraction-synthesis'!I28)),"X","") ->  | K29: =IF(ISNUMBER(SEARCH("Laboratory evaluations",'Data extraction-synthesis'!I28)),"X","") ->  | L29: =IF(ISNUMBER(SEARCH("Models",'Data extraction-synthesis'!I28)),"X","") ->  | M29: =IF(ISNUMBER(SEARCH("Early usability studies",'Data extraction-synthesis'!I28)),"X","") ->  | N29: =IF(ISNUMBER(SEARCH("No input sources reported",'Data extraction-synthesis'!I28)),"X","") ->  | O29: NO | U29: Meeting input
A30: WHO | B30: Taenia solium taeniasis/cysticercosis diagnostic tools. Report of a stakeholder meeting | C30: =IF(ISNUMBER(SEARCH("Literature",'Data extraction-synthesis'!I29)),"X","") ->  | D30: =IF(ISNUMBER(SEARCH("Industry standard",'Data extraction-synthesis'!I29)),"X","") ->  | E30: =IF(ISNUMBER(SEARCH("Guidelines",'Data extraction-synthesis'!I29)),"X","") ->  | F30: =IF(ISNUMBER(SEARCH("Consensus meeting inputs",'Data extraction-synthesis'!I29)),"X","") ->  | H30: =IF(ISNUMBER(SEARCH("Meeting input",'Data extraction-synthesis'!I29)),"X","") -> X | I30: =IF(ISNUMBER(SEARCH("Available data",'Data extraction-synthesis'!I29)),"X","") ->  | J30: =IF(ISNUMBER(SEARCH("Field observations",'Data extraction-synthesis'!I29)),"X","") ->  | K30: =IF(ISNUMBER(SEARCH("Laboratory evaluations",'Data extraction-synthesis'!I29)),"X","") ->  | L30: =IF(ISNUMBER(SEARCH("Models",'Data extraction-synthesis'!I29)),"X","") ->  | M30: =IF(ISNUMBER(SEARCH("Early usability studies",'Data extraction-synthesis'!I29)),"X","") ->  | N30: =IF(ISNUMBER(SEARCH("No input sources reported",'Data extraction-synthesis'!I29)),"X","") ->  | O30: NO | U30: Meeting input
A31: Utzinger, J. B., S. L.: van Lieshout, L.: van Dam, G. J.: Knopp, S | B31: New diagnostic tools in schistosomiasis | C31: =IF(ISNUMBER(SEARCH("Literature",'Data extraction-synthesis'!I30)),"X","") ->  | D31: =IF(ISNUMBER(SEARCH("Industry standard",'Data extraction-synthesis'!I30)),"X","") ->  | E31: =IF(ISNUMBER(SEARCH("Guidelines",'Data extraction-synthesis'!I30)),"X","") ->  | F31: =IF(ISNUMBER(SEARCH("Consensus meeting inputs",'Data extraction-synthesis'!I30)),"X","") ->  | H31: =IF(ISNUMBER(SEARCH("Meeting input",'Data extraction-synthesis'!I30)),"X","") ->  | I31: =IF(ISNUMBER(SEARCH("Available data",'Data extraction-synthesis'!I30)),"X","") ->  | J31: =IF(ISNUMBER(SEARCH("Field observations",'Data extraction-synthesis'!I30)),"X","") ->  | K31: =IF(ISNUMBER(SEARCH("Laboratory evaluations",'Data extraction-synthesis'!I30)),"X","") ->  | L31: =IF(ISNUMBER(SEARCH("Models",'Data extraction-synthesis'!I30)),"X","") ->  | M31: =IF(ISNUMBER(SEARCH("Early usability studies",'Data extraction-synthesis'!I30)),"X","") ->  | N31: =IF(ISNUMBER(SEARCH("No input sources reported",'Data extraction-synthesis'!I30)),"X","") -> X | O31: N/A
A32: UNICEF | B32: Zika Virus Diagnostics: Target Product Profiles & Supply Update | C32: =IF(ISNUMBER(SEARCH("Literature",'Data extraction-synthesis'!I31)),"X","") -> X | D32: =IF(ISNUMBER(SEARCH("Industry standard",'Data extraction-synthesis'!I31)),"X","") ->  | E32: =IF(ISNUMBER(SEARCH("Guidelines",'Data extraction-synthesis'!I31)),"X","") ->  | F32: =IF(ISNUMBER(SEARCH("Consensus meeting inputs",'Data extraction-synthesis'!I31)),"X","") ->  | G32: X | H32: =IF(ISNUMBER(SEARCH("Meeting input",'Data extraction-synthesis'!I31)),"X","") ->  | I32: =IF(ISNUMBER(SEARCH("Available data",'Data extraction-synthesis'!I31)),"X","") ->  | J32: =IF(ISNUMBER(SEARCH("Field observations",'Data extraction-synthesis'!I31)),"X","") ->  | K32: =IF(ISNUMBER(SEARCH("Laboratory evaluations",'Data extraction-synthesis'!I31)),"X","") ->  | L32: =IF(ISNUMBER(SEARCH("Models",'Data extraction-synthesis'!I31)),"X","") ->  | M32: =IF(ISNUMBER(SEARCH("Early usability studies",'Data extraction-synthesis'!I31)),"X","") ->  | N32: =IF(ISNUMBER(SEARCH("No input sources reported",'Data extraction-synthesis'!I31)),"X","") ->  | O32: YES | T32: No, literature cited in the main text alongside the table
A33: UNICEF | B33: Pneumonia Acute Respiratory Infection Diagnostic Aid-Target Product Profile Introduction | C33: =IF(ISNUMBER(SEARCH("Literature",'Data extraction-synthesis'!I32)),"X","") -> X | D33: =IF(ISNUMBER(SEARCH("Industry standard",'Data extraction-synthesis'!I32)),"X","") ->  | E33: =IF(ISNUMBER(SEARCH("Guidelines",'Data extraction-synthesis'!I32)),"X","") ->  | F33: =IF(ISNUMBER(SEARCH("Consensus meeting inputs",'Data extraction-synthesis'!I32)),"X","") ->  | G33: X | H33: =IF(ISNUMBER(SEARCH("Meeting input",'Data extraction-synthesis'!I32)),"X","") ->  | I33: =IF(ISNUMBER(SEARCH("Available data",'Data extraction-synthesis'!I32)),"X","") ->  | J33: =IF(ISNUMBER(SEARCH("Field observations",'Data extraction-synthesis'!I32)),"X","") ->  | K33: =IF(ISNUMBER(SEARCH("Laboratory evaluations",'Data extraction-synthesis'!I32)),"X","") ->  | L33: =IF(ISNUMBER(SEARCH("Models",'Data extraction-synthesis'!I32)),"X","") ->  | M33: =IF(ISNUMBER(SEARCH("Early usability studies",'Data extraction-synthesis'!I32)),"X","") ->  | N33: =IF(ISNUMBER(SEARCH("No input sources reported",'Data extraction-synthesis'!I32)),"X","") ->  | O33: YES | T33: No, they mentioned that the TPP was informed with a literature review.
A34: Pal S, Jasper L.E., Lawrence K.L, Walter M | B34: Assessing the Dengue Diagnosis Capability Gap in the Military Health System | C34: =IF(ISNUMBER(SEARCH("Literature",'Data extraction-synthesis'!I33)),"X","") ->  | D34: =IF(ISNUMBER(SEARCH("Industry standard",'Data extraction-synthesis'!I33)),"X","") ->  | E34: =IF(ISNUMBER(SEARCH("Guidelines",'Data extraction-synthesis'!I33)),"X","") ->  | F34: =IF(ISNUMBER(SEARCH("Consensus meeting inputs",'Data extraction-synthesis'!I33)),"X","") ->  | G34: X | H34: =IF(ISNUMBER(SEARCH("Meeting input",'Data extraction-synthesis'!I33)),"X","") ->  | I34: =IF(ISNUMBER(SEARCH("Available data",'Data extraction-synthesis'!I33)),"X","") ->  | J34: =IF(ISNUMBER(SEARCH("Field observations",'Data extraction-synthesis'!I33)),"X","") ->  | K34: =IF(ISNUMBER(SEARCH("Laboratory evaluations",'Data extraction-synthesis'!I33)),"X","") ->  | L34: =IF(ISNUMBER(SEARCH("Models",'Data extraction-synthesis'!I33)),"X","") -> X | M34: =IF(ISNUMBER(SEARCH("Early usability studies",'Data extraction-synthesis'!I33)),"X","") ->  | N34: =IF(ISNUMBER(SEARCH("No input sources reported",'Data extraction-synthesis'!I33)),"X","") ->  | O34: YES | U34: Surveys with experts
A35: PATH | B35: Target Product Profile: Schistosomiasis Surveillance Diagnostic Lateral Flow Test CAA antigen | C35: =IF(ISNUMBER(SEARCH("Literature",'Data extraction-synthesis'!I34)),"X","") -> X | D35: =IF(ISNUMBER(SEARCH("Industry standard",'Data extraction-synthesis'!I34)),"X","") ->  | E35: =IF(ISNUMBER(SEARCH("Guidelines",'Data extraction-synthesis'!I34)),"X","") -> X | F35: =IF(ISNUMBER(SEARCH("Consensus meeting inputs",'Data extraction-synthesis'!I34)),"X","") ->  | G35: X | H35: =IF(ISNUMBER(SEARCH("Meeting input",'Data extraction-synthesis'!I34)),"X","") ->  | I35: =IF(ISNUMBER(SEARCH("Available data",'Data extraction-synthesis'!I34)),"X","") -> X | J35: =IF(ISNUMBER(SEARCH("Field observations",'Data extraction-synthesis'!I34)),"X","") -> X | K35: =IF(ISNUMBER(SEARCH("Laboratory evaluations",'Data extraction-synthesis'!I34)),"X","") ->  | L35: =IF(ISNUMBER(SEARCH("Models",'Data extraction-synthesis'!I34)),"X","") ->  | M35: =IF(ISNUMBER(SEARCH("Early usability studies",'Data extraction-synthesis'!I34)),"X","") ->  | N35: =IF(ISNUMBER(SEARCH("No input sources reported",'Data extraction-synthesis'!I34)),"X","") ->  | O35: YES | T35: No, literature cited in the main text for some test characteristics
A36: PATH | B36: Target Product Profile: Trachoma Surveillance Diagnostic-Post-Elimination Surveillance Antibody Lateral Flow Test | C36: =IF(ISNUMBER(SEARCH("Literature",'Data extraction-synthesis'!I35)),"X","") -> X | D36: =IF(ISNUMBER(SEARCH("Industry standard",'Data extraction-synthesis'!I35)),"X","") ->  | E36: =IF(ISNUMBER(SEARCH("Guidelines",'Data extraction-synthesis'!I35)),"X","") -> X | F36: =IF(ISNUMBER(SEARCH("Consensus meeting inputs",'Data extraction-synthesis'!I35)),"X","") ->  | G36: X | H36: =IF(ISNUMBER(SEARCH("Meeting input",'Data extraction-synthesis'!I35)),"X","") ->  | I36: =IF(ISNUMBER(SEARCH("Available data",'Data extraction-synthesis'!I35)),"X","") -> X | J36: =IF(ISNUMBER(SEARCH("Field observations",'Data extraction-synthesis'!I35)),"X","") ->  | K36: =IF(ISNUMBER(SEARCH("Laboratory evaluations",'Data extraction-synthesis'!I35)),"X","") ->  | L36: =IF(ISNUMBER(SEARCH("Models",'Data extraction-synthesis'!I35)),"X","") ->  | M36: =IF(ISNUMBER(SEARCH("Early usability studies",'Data extraction-synthesis'!I35)),"X","") ->  | N36: =IF(ISNUMBER(SEARCH("No input sources reported",'Data extraction-synthesis'!I35)),"X","") ->  | O36: YES | T36: No, literature cited in the main text for some test characteristics
A37: International Diagnostics Centre (IDC) | B37: Target Product Profile (TPP) - Point-of-Care HIV Viral Load Test | C37: =IF(ISNUMBER(SEARCH("Literature",'Data extraction-synthesis'!I36)),"X","") ->  | D37: =IF(ISNUMBER(SEARCH("Industry standard",'Data extraction-synthesis'!I36)),"X","") ->  | E37: =IF(ISNUMBER(SEARCH("Guidelines",'Data extraction-synthesis'!I36)),"X","") ->  | F37: =IF(ISNUMBER(SEARCH("Consensus meeting inputs",'Data extraction-synthesis'!I36)),"X","") ->  | H37: =IF(ISNUMBER(SEARCH("Meeting input",'Data extraction-synthesis'!I36)),"X","") ->  | I37: =IF(ISNUMBER(SEARCH("Available data",'Data extraction-synthesis'!I36)),"X","") ->  | J37: =IF(ISNUMBER(SEARCH("Field observations",'Data extraction-synthesis'!I36)),"X","") ->  | K37: =IF(ISNUMBER(SEARCH("Laboratory evaluations",'Data extraction-synthesis'!I36)),"X","") ->  | L37: =IF(ISNUMBER(SEARCH("Models",'Data extraction-synthesis'!I36)),"X","") ->  | M37: =IF(ISNUMBER(SEARCH("Early usability studies",'Data extraction-synthesis'!I36)),"X","") ->  | N37: =IF(ISNUMBER(SEARCH("No input sources reported",'Data extraction-synthesis'!I36)),"X","") -> X | O37: N/A
A38: International Diagnostics Centre (IDC) | B38: Target Product Profile (TPP)- Point of care CD4 test | C38: =IF(ISNUMBER(SEARCH("Literature",'Data extraction-synthesis'!I37)),"X","") ->  | D38: =IF(ISNUMBER(SEARCH("Industry standard",'Data extraction-synthesis'!I37)),"X","") ->  | E38: =IF(ISNUMBER(SEARCH("Guidelines",'Data extraction-synthesis'!I37)),"X","") ->  | F38: =IF(ISNUMBER(SEARCH("Consensus meeting inputs",'Data extraction-synthesis'!I37)),"X","") ->  | H38: =IF(ISNUMBER(SEARCH("Meeting input",'Data extraction-synthesis'!I37)),"X","") ->  | I38: =IF(ISNUMBER(SEARCH("Available data",'Data extraction-synthesis'!I37)),"X","") ->  | J38: =IF(ISNUMBER(SEARCH("Field observations",'Data extraction-synthesis'!I37)),"X","") ->  | K38: =IF(ISNUMBER(SEARCH("Laboratory evaluations",'Data extraction-synthesis'!I37)),"X","") ->  | L38: =IF(ISNUMBER(SEARCH("Models",'Data extraction-synthesis'!I37)),"X","") ->  | M38: =IF(ISNUMBER(SEARCH("Early usability studies",'Data extraction-synthesis'!I37)),"X","") ->  | N38: =IF(ISNUMBER(SEARCH("No input sources reported",'Data extraction-synthesis'!I37)),"X","") -> X | O38: N/A
A39: International Diagnostics Centre (IDC) | B39: Target Product Profile (TPP): Point of care EID test | C39: =IF(ISNUMBER(SEARCH("Literature",'Data extraction-synthesis'!I38)),"X","") ->  | D39: =IF(ISNUMBER(SEARCH("Industry standard",'Data extraction-synthesis'!I38)),"X","") ->  | E39: =IF(ISNUMBER(SEARCH("Guidelines",'Data extraction-synthesis'!I38)),"X","") ->  | F39: =IF(ISNUMBER(SEARCH("Consensus meeting inputs",'Data extraction-synthesis'!I38)),"X","") ->  | H39: =IF(ISNUMBER(SEARCH("Meeting input",'Data extraction-synthesis'!I38)),"X","") ->  | I39: =IF(ISNUMBER(SEARCH("Available data",'Data extraction-synthesis'!I38)),"X","") ->  | J39: =IF(ISNUMBER(SEARCH("Field observations",'Data extraction-synthesis'!I38)),"X","") ->  | K39: =IF(ISNUMBER(SEARCH("Laboratory evaluations",'Data extraction-synthesis'!I38)),"X","") ->  | L39: =IF(ISNUMBER(SEARCH("Models",'Data extraction-synthesis'!I38)),"X","") ->  | M39: =IF(ISNUMBER(SEARCH("Early usability studies",'Data extraction-synthesis'!I38)),"X","") ->  | N39: =IF(ISNUMBER(SEARCH("No input sources reported",'Data extraction-synthesis'!I38)),"X","") -> X | O39: N/A
A40: Internationa Diagnostics Centre (IDC) | B40: Target Product Profile (TPP): Combined HIV/Syphilis Test | C40: =IF(ISNUMBER(SEARCH("Literature",'Data extraction-synthesis'!I39)),"X","") ->  | D40: =IF(ISNUMBER(SEARCH("Industry standard",'Data extraction-synthesis'!I39)),"X","") ->  | E40: =IF(ISNUMBER(SEARCH("Guidelines",'Data extraction-synthesis'!I39)),"X","") ->  | F40: =IF(ISNUMBER(SEARCH("Consensus meeting inputs",'Data extraction-synthesis'!I39)),"X","") ->  | H40: =IF(ISNUMBER(SEARCH("Meeting input",'Data extraction-synthesis'!I39)),"X","") ->  | I40: =IF(ISNUMBER(SEARCH("Available data",'Data extraction-synthesis'!I39)),"X","") ->  | J40: =IF(ISNUMBER(SEARCH("Field observations",'Data extraction-synthesis'!I39)),"X","") ->  | K40: =IF(ISNUMBER(SEARCH("Laboratory evaluations",'Data extraction-synthesis'!I39)),"X","") ->  | L40: =IF(ISNUMBER(SEARCH("Models",'Data extraction-synthesis'!I39)),"X","") ->  | M40: =IF(ISNUMBER(SEARCH("Early usability studies",'Data extraction-synthesis'!I39)),"X","") ->  | N40: =IF(ISNUMBER(SEARCH("No input sources reported",'Data extraction-synthesis'!I39)),"X","") -> X | O40: N/A
A41: Ebels, K. B. C., C.: Crudder, C. H.: McGray, S.: Magnuson, K.: Tietje, K.: Labarre, P | B41: Incorporating user needs into product development for improved infection detection for malaria elimination programs | C41: =IF(ISNUMBER(SEARCH("Literature",'Data extraction-synthesis'!I40)),"X","") ->  | D41: =IF(ISNUMBER(SEARCH("Industry standard",'Data extraction-synthesis'!I40)),"X","") ->  | E41: =IF(ISNUMBER(SEARCH("Guidelines",'Data extraction-synthesis'!I40)),"X","") ->  | F41: =IF(ISNUMBER(SEARCH("Consensus meeting inputs",'Data extraction-synthesis'!I40)),"X","") ->  | H41: =IF(ISNUMBER(SEARCH("Meeting input",'Data extraction-synthesis'!I40)),"X","") ->  | I41: =IF(ISNUMBER(SEARCH("Available data",'Data extraction-synthesis'!I40)),"X","") ->  | J41: =IF(ISNUMBER(SEARCH("Field observations",'Data extraction-synthesis'!I40)),"X","") -> X | K41: =IF(ISNUMBER(SEARCH("Laboratory evaluations",'Data extraction-synthesis'!I40)),"X","") ->  | L41: =IF(ISNUMBER(SEARCH("Models",'Data extraction-synthesis'!I40)),"X","") ->  | M41: =IF(ISNUMBER(SEARCH("Early usability studies",'Data extraction-synthesis'!I40)),"X","") ->  | N41: =IF(ISNUMBER(SEARCH("No input sources reported",'Data extraction-synthesis'!I40)),"X","") ->  | O41: NO
A42: FIND | B42: Target Product Profile: Screening test for human African trypanosomiasis (HAT) | C42: =IF(ISNUMBER(SEARCH("Literature",'Data extraction-synthesis'!I41)),"X","") ->  | D42: =IF(ISNUMBER(SEARCH("Industry standard",'Data extraction-synthesis'!I41)),"X","") ->  | E42: =IF(ISNUMBER(SEARCH("Guidelines",'Data extraction-synthesis'!I41)),"X","") ->  | F42: =IF(ISNUMBER(SEARCH("Consensus meeting inputs",'Data extraction-synthesis'!I41)),"X","") ->  | H42: =IF(ISNUMBER(SEARCH("Meeting input",'Data extraction-synthesis'!I41)),"X","") ->  | I42: =IF(ISNUMBER(SEARCH("Available data",'Data extraction-synthesis'!I41)),"X","") ->  | J42: =IF(ISNUMBER(SEARCH("Field observations",'Data extraction-synthesis'!I41)),"X","") ->  | K42: =IF(ISNUMBER(SEARCH("Laboratory evaluations",'Data extraction-synthesis'!I41)),"X","") ->  | L42: =IF(ISNUMBER(SEARCH("Models",'Data extraction-synthesis'!I41)),"X","") ->  | M42: =IF(ISNUMBER(SEARCH("Early usability studies",'Data extraction-synthesis'!I41)),"X","") ->  | N42: =IF(ISNUMBER(SEARCH("No input sources reported",'Data extraction-synthesis'!I41)),"X","") -> X | O42: N/A
A43: PATH | B43: Target Product Profile: Trachoma surveillance diagnostic-antigen lateral flow test | C43: =IF(ISNUMBER(SEARCH("Literature",'Data extraction-synthesis'!I42)),"X","") -> X | D43: =IF(ISNUMBER(SEARCH("Industry standard",'Data extraction-synthesis'!I42)),"X","") ->  | E43: =IF(ISNUMBER(SEARCH("Guidelines",'Data extraction-synthesis'!I42)),"X","") -> X | F43: =IF(ISNUMBER(SEARCH("Consensus meeting inputs",'Data extraction-synthesis'!I42)),"X","") ->  | G43: X | H43: =IF(ISNUMBER(SEARCH("Meeting input",'Data extraction-synthesis'!I42)),"X","") ->  | I43: =IF(ISNUMBER(SEARCH("Available data",'Data extraction-synthesis'!I42)),"X","") -> X | J43: =IF(ISNUMBER(SEARCH("Field observations",'Data extraction-synthesis'!I42)),"X","") ->  | K43: =IF(ISNUMBER(SEARCH("Laboratory evaluations",'Data extraction-synthesis'!I42)),"X","") ->  | L43: =IF(ISNUMBER(SEARCH("Models",'Data extraction-synthesis'!I42)),"X","") ->  | M43: =IF(ISNUMBER(SEARCH("Early usability studies",'Data extraction-synthesis'!I42)),"X","") ->  | N43: =IF(ISNUMBER(SEARCH("No input sources reported",'Data extraction-synthesis'!I42)),"X","") ->  | O43: YES | T43: No, literature cited in the main text for some test characteristics
A44: Peck, R. B. W., J. D.: Boettcher, M. G.: Downing | B44: Defining product requirements for field deployable yellow fever tests | C44: =IF(ISNUMBER(SEARCH("Literature",'Data extraction-synthesis'!I43)),"X","") ->  | D44: =IF(ISNUMBER(SEARCH("Industry standard",'Data extraction-synthesis'!I43)),"X","") ->  | E44: =IF(ISNUMBER(SEARCH("Guidelines",'Data extraction-synthesis'!I43)),"X","") ->  | F44: =IF(ISNUMBER(SEARCH("Consensus meeting inputs",'Data extraction-synthesis'!I43)),"X","") ->  | H44: =IF(ISNUMBER(SEARCH("Meeting input",'Data extraction-synthesis'!I43)),"X","") ->  | I44: =IF(ISNUMBER(SEARCH("Available data",'Data extraction-synthesis'!I43)),"X","") ->  | J44: =IF(ISNUMBER(SEARCH("Field observations",'Data extraction-synthesis'!I43)),"X","") ->  | K44: =IF(ISNUMBER(SEARCH("Laboratory evaluations",'Data extraction-synthesis'!I43)),"X","") ->  | L44: =IF(ISNUMBER(SEARCH("Models",'Data extraction-synthesis'!I43)),"X","") ->  | M44: =IF(ISNUMBER(SEARCH("Early usability studies",'Data extraction-synthesis'!I43)),"X","") ->  | N44: =IF(ISNUMBER(SEARCH("No input sources reported",'Data extraction-synthesis'!I43)),"X","") ->  | O44: NO | U44: Interviews with experts
A45: PATH | B45: Target Product Profile: Schistosomiasis Surveillance Diagnostic - schistosoma genus-specific antibody lateral flow test post-elimination surveillance | C45: =IF(ISNUMBER(SEARCH("Literature",'Data extraction-synthesis'!I44)),"X","") -> X | D45: =IF(ISNUMBER(SEARCH("Industry standard",'Data extraction-synthesis'!I44)),"X","") ->  | E45: =IF(ISNUMBER(SEARCH("Guidelines",'Data extraction-synthesis'!I44)),"X","") -> X | F45: =IF(ISNUMBER(SEARCH("Consensus meeting inputs",'Data extraction-synthesis'!I44)),"X","") ->  | G45: X | H45: =IF(ISNUMBER(SEARCH("Meeting input",'Data extraction-synthesis'!I44)),"X","") ->  | I45: =IF(ISNUMBER(SEARCH("Available data",'Data extraction-synthesis'!I44)),"X","") -> X | J45: =IF(ISNUMBER(SEARCH("Field observations",'Data extraction-synthesis'!I44)),"X","") -> X | K45: =IF(ISNUMBER(SEARCH("Laboratory evaluations",'Data extraction-synthesis'!I44)),"X","") ->  | L45: =IF(ISNUMBER(SEARCH("Models",'Data extraction-synthesis'!I44)),"X","") ->  | M45: =IF(ISNUMBER(SEARCH("Early usability studies",'Data extraction-synthesis'!I44)),"X","") ->  | N45: =IF(ISNUMBER(SEARCH("No input sources reported",'Data extraction-synthesis'!I44)),"X","") ->  | O45: YES | T45: No, literature cited in the main text for some test characteristics
A46: WHO, FIND, Medecins sans Frontiers | B46: A Multiplex Multi-Analyte Diagnostic Platform | C46: =IF(ISNUMBER(SEARCH("Literature",'Data extraction-synthesis'!I45)),"X","") ->  | D46: =IF(ISNUMBER(SEARCH("Industry standard",'Data extraction-synthesis'!I45)),"X","") ->  | E46: =IF(ISNUMBER(SEARCH("Guidelines",'Data extraction-synthesis'!I45)),"X","") ->  | F46: =IF(ISNUMBER(SEARCH("Consensus meeting inputs",'Data extraction-synthesis'!I45)),"X","") ->  | G46: X | H46: =IF(ISNUMBER(SEARCH("Meeting input",'Data extraction-synthesis'!I45)),"X","") ->  | I46: =IF(ISNUMBER(SEARCH("Available data",'Data extraction-synthesis'!I45)),"X","") ->  | J46: =IF(ISNUMBER(SEARCH("Field observations",'Data extraction-synthesis'!I45)),"X","") ->  | K46: =IF(ISNUMBER(SEARCH("Laboratory evaluations",'Data extraction-synthesis'!I45)),"X","") ->  | L46: =IF(ISNUMBER(SEARCH("Models",'Data extraction-synthesis'!I45)),"X","") ->  | M46: =IF(ISNUMBER(SEARCH("Early usability studies",'Data extraction-synthesis'!I45)),"X","") ->  | N46: =IF(ISNUMBER(SEARCH("No input sources reported",'Data extraction-synthesis'!I45)),"X","") ->  | O46: NO
B47: TOT | C47: =COUNTIF(C3:C46,"X") -> 22 | D47: =COUNTIF(D3:D46,"X") -> 1 | E47: 6 | F47: 3 | G47: 24 | H47: 8 | I47: 7 | J47: 5 | K47: 1 | L47: 9 | M47: 1 | N47: 11
C48: =C47/33 -> 67% | D48: 3% | E48: 18% | F48: 9% | G48: 73% | H48: 24% | I48: 21% | J48: 15% | K48: 3% | L48: 27% | M48: 3% | N48: 33%

Sheet Input source analytic accuracy
C1: Input source to populate analytical accuracy
A2: Authors | B2: Article title | C2: Literature | D2: Industry standard | E2: Guidelines | F2: Interviews with experts | G2: Surveys with experts/expert opinion | H2: Consensus meeting inputs | I2: Available data | J2: Field observations | K2: Laboratory evaluations | L2: Models | M2: Early usability studies | N2: No input sources reported | O2: N/A (no reference to specific literature) | P2: More than 1 input source? | Q2: % STUDIES WITH 1 INPUT SOURCE | R2: % STUDIES WITH >1 INPUT SOURCE
A3: Chua, A. P., I.: Nuebling, C. M.: Wood, D.: Moussy, F. | B3: Update on Zika Diagnostic Tests and WHO's Related Activities | C3: =IF(ISNUMBER(SEARCH("Literature",'Data extraction-synthesis'!J2)),"X","") ->  | D3: =IF(ISNUMBER(SEARCH("Industry standard",'Data extraction-synthesis'!J2)),"X","") ->  | E3: =IF(ISNUMBER(SEARCH("Guidelines",'Data extraction-synthesis'!J2)),"X","") ->  | F3: =IF(ISNUMBER(SEARCH("Interviews with experts",'Data extraction-synthesis'!J2)),"X","") ->  | G3: =IF(ISNUMBER(SEARCH("Surveys with experts/expert opinion",'Data extraction-synthesis'!J2)),"X","") ->  | H3: =IF(ISNUMBER(SEARCH("Consensus meeting inputs",'Data extraction-synthesis'!J2)),"X","") ->  | I3: =IF(ISNUMBER(SEARCH("Available data",'Data extraction-synthesis'!J2)),"X","") ->  | J3: =IF(ISNUMBER(SEARCH("Field observations",'Data extraction-synthesis'!J2)),"X","") ->  | K3: =IF(ISNUMBER(SEARCH("Laboratory evaluations",'Data extraction-synthesis'!J2)),"X","") ->  | L3: =IF(ISNUMBER(SEARCH("Models",'Data extraction-synthesis'!J2)),"X","") ->  | M3: =IF(ISNUMBER(SEARCH("Early usability studies",'Data extraction-synthesis'!J2)),"X","") ->  | N3: =IF(ISNUMBER(SEARCH("No input sources reported",'Data extraction-synthesis'!J2)),"X","") -> X | O3: =IF(ISNUMBER(SEARCH("N/A",'Data extraction-synthesis'!J2)),"X","") ->  | P3: =IF(OR(O3="X",N3="X"),"N/A",IF((COUNTIF(C3:O3,"X"))>1,"YES","NO")) -> N/A | Q3: =COUNTIF(P3:P46,"NO")/44 -> 23% | R3: =COUNTIF(P3:P46,"YES")/44 -> 16%
A4: Denkinger, C. M. D., D.: Schito, M.: Wells, W.: Cobelens, F.: Pai, M.: Zignol, M.: Cirillo, D. M.: Alland, D.: Casenghi, M.: Gallarda, J.: Boehme, C. C.: Perkins, M. D | B4: Target Product Profile of a Molecular Drug-Susceptibility Test for Use in Microscopy Centers | D4: =IF(ISNUMBER(SEARCH("Industry standard",'Data extraction-synthesis'!J3)),"X","") ->  | E4: =IF(ISNUMBER(SEARCH("Guidelines",'Data extraction-synthesis'!J3)),"X","") ->  | F4: =IF(ISNUMBER(SEARCH("Interviews with experts",'Data extraction-synthesis'!J3)),"X","") ->  | G4: =IF(ISNUMBER(SEARCH("Surveys with experts/expert opinion",'Data extraction-synthesis'!J3)),"X","") ->  | H4: =IF(ISNUMBER(SEARCH("Consensus meeting inputs",'Data extraction-synthesis'!J3)),"X","") ->  | I4: =IF(ISNUMBER(SEARCH("Available data",'Data extraction-synthesis'!J3)),"X","") ->  | J4: =IF(ISNUMBER(SEARCH("Field observations",'Data extraction-synthesis'!J3)),"X","") ->  | K4: =IF(ISNUMBER(SEARCH("Laboratory evaluations",'Data extraction-synthesis'!J3)),"X","") ->  | M4: =IF(ISNUMBER(SEARCH("Early usability studies",'Data extraction-synthesis'!J3)),"X","") ->  | N4: x | O4: =IF(ISNUMBER(SEARCH("N/A",'Data extraction-synthesis'!J3)),"X","") ->  | P4: N/A
A5: Denkinger, C. M. K., Sandra V.: Cirillo, Daniela Maria: Casenghi, Martina: Shinnick, Thomas: Weyer, Karin: Gilpin, Chris: Boehme, Catharina C.: Schito, Marco: Kimerling, Michael: Pai, Madhuka | B5: Defining the needs for next generation assays for tuberculosis | D5: =IF(ISNUMBER(SEARCH("Industry standard",'Data extraction-synthesis'!J4)),"X","") ->  | E5: =IF(ISNUMBER(SEARCH("Guidelines",'Data extraction-synthesis'!J4)),"X","") ->  | F5: =IF(ISNUMBER(SEARCH("Interviews with experts",'Data extraction-synthesis'!J4)),"X","") ->  | G5: =IF(ISNUMBER(SEARCH("Surveys with experts/expert opinion",'Data extraction-synthesis'!J4)),"X","") ->  | H5: =IF(ISNUMBER(SEARCH("Consensus meeting inputs",'Data extraction-synthesis'!J4)),"X","") ->  | I5: =IF(ISNUMBER(SEARCH("Available data",'Data extraction-synthesis'!J4)),"X","") ->  | J5: =IF(ISNUMBER(SEARCH("Field observations",'Data extraction-synthesis'!J4)),"X","") ->  | K5: =IF(ISNUMBER(SEARCH("Laboratory evaluations",'Data extraction-synthesis'!J4)),"X","") ->  | M5: =IF(ISNUMBER(SEARCH("Early usability studies",'Data extraction-synthesis'!J4)),"X","") ->  | N5: =IF(ISNUMBER(SEARCH("No input sources reported",'Data extraction-synthesis'!J4)),"X","") ->  | O5: =IF(ISNUMBER(SEARCH("N/A",'Data extraction-synthesis'!J4)),"X","") ->  | P5: NO
A6: DIAMETER Project, PATH | B6: Point-of-Care Malaria Infection Detection Test For rapid detection of low-density, subclinical malaria infections | C6: =IF(ISNUMBER(SEARCH("Literature",'Data extraction-synthesis'!J5)),"X","") -> X | D6: =IF(ISNUMBER(SEARCH("Industry standard",'Data extraction-synthesis'!J5)),"X","") ->  | E6: =IF(ISNUMBER(SEARCH("Guidelines",'Data extraction-synthesis'!J5)),"X","") ->  | F6: =IF(ISNUMBER(SEARCH("Interviews with experts",'Data extraction-synthesis'!J5)),"X","") ->  | G6: =IF(ISNUMBER(SEARCH("Surveys with experts/expert opinion",'Data extraction-synthesis'!J5)),"X","") -> X | H6: =IF(ISNUMBER(SEARCH("Consensus meeting inputs",'Data extraction-synthesis'!J5)),"X","") ->  | I6: =IF(ISNUMBER(SEARCH("Available data",'Data extraction-synthesis'!J5)),"X","") ->  | J6: =IF(ISNUMBER(SEARCH("Field observations",'Data extraction-synthesis'!J5)),"X","") ->  | K6: =IF(ISNUMBER(SEARCH("Laboratory evaluations",'Data extraction-synthesis'!J5)),"X","") ->  | L6: =IF(ISNUMBER(SEARCH("Models",'Data extraction-synthesis'!J5)),"X","") ->  | M6: =IF(ISNUMBER(SEARCH("Early usability studies",'Data extraction-synthesis'!J5)),"X","") ->  | N6: =IF(ISNUMBER(SEARCH("No input sources reported",'Data extraction-synthesis'!J5)),"X","") ->  | O6: =IF(ISNUMBER(SEARCH("N/A",'Data extraction-synthesis'!J5)),"X","") ->  | P6: YES
A7: Ding, X. C. A., Maria Paz: Baird, J. Kevin: Cheng, Qin: Cunningham, Jane: Dhorda, Mehul: Drakeley, Chris: Felger, Ingrid: Gamboa, Dionicia: Harbers, Matthias: Herrera, Socrates: Lucchi, Naomi: Mayor, Alfredo: Mueller, Ivo: Sattabongkot, Jetsumon: Ratsimbason, Arsène: Richards, Jack: Tanner, Marcel: González, Iveth J. | B7: Defining the next generation of Plasmodium vivax diagnostic tests for control and elimination: Target product profiles | C7: x | D7: =IF(ISNUMBER(SEARCH("Industry standard",'Data extraction-synthesis'!J6)),"X","") ->  | E7: =IF(ISNUMBER(SEARCH("Guidelines",'Data extraction-synthesis'!J6)),"X","") ->  | F7: =IF(ISNUMBER(SEARCH("Interviews with experts",'Data extraction-synthesis'!J6)),"X","") ->  | G7: =IF(ISNUMBER(SEARCH("Surveys with experts/expert opinion",'Data extraction-synthesis'!J6)),"X","") ->  | H7: =IF(ISNUMBER(SEARCH("Consensus meeting inputs",'Data extraction-synthesis'!J6)),"X","") ->  | I7: =IF(ISNUMBER(SEARCH("Available data",'Data extraction-synthesis'!J6)),"X","") ->  | J7: =IF(ISNUMBER(SEARCH("Field observations",'Data extraction-synthesis'!J6)),"X","") ->  | K7: =IF(ISNUMBER(SEARCH("Laboratory evaluations",'Data extraction-synthesis'!J6)),"X","") ->  | L7: x | M7: =IF(ISNUMBER(SEARCH("Early usability studies",'Data extraction-synthesis'!J6)),"X","") ->  | N7: =IF(ISNUMBER(SEARCH("No input sources reported",'Data extraction-synthesis'!J6)),"X","") ->  | O7: =IF(ISNUMBER(SEARCH("N/A",'Data extraction-synthesis'!J6)),"X","") ->  | P7: YES
A8: Dittrich, S. T., B. T.: Moussy, F.: Chua, A.: Zorzet, A.: Tangden, T.: Dolinger, D. L.: Page, A. L.: Crump, J. A.: Valerie, D.: Bassat, Q.: Lubell, Y.: Heinrich, N.: Newton, P. N.: Rodwell, T.: Gonzalez, I. J. | B8: Target Product Profile for a Diagnostic Assay to Differentiate between Bacterial and Non-Bacterial Infections to Guide Antimicrobials Use in Resource-Limited Settings: An Expert Consensus | C8: =IF(ISNUMBER(SEARCH("Literature",'Data extraction-synthesis'!J7)),"X","") ->  | D8: =IF(ISNUMBER(SEARCH("Industry standard",'Data extraction-synthesis'!J7)),"X","") ->  | E8: =IF(ISNUMBER(SEARCH("Guidelines",'Data extraction-synthesis'!J7)),"X","") ->  | F8: =IF(ISNUMBER(SEARCH("Interviews with experts",'Data extraction-synthesis'!J7)),"X","") ->  | G8: =IF(ISNUMBER(SEARCH("Surveys with experts/expert opinion",'Data extraction-synthesis'!J7)),"X","") -> X | H8: =IF(ISNUMBER(SEARCH("Consensus meeting inputs",'Data extraction-synthesis'!J7)),"X","") ->  | I8: =IF(ISNUMBER(SEARCH("Available data",'Data extraction-synthesis'!J7)),"X","") ->  | J8: =IF(ISNUMBER(SEARCH("Field observations",'Data extraction-synthesis'!J7)),"X","") ->  | K8: =IF(ISNUMBER(SEARCH("Laboratory evaluations",'Data extraction-synthesis'!J7)),"X","") ->  | L8: =IF(ISNUMBER(SEARCH("Models",'Data extraction-synthesis'!J7)),"X","") ->  | M8: =IF(ISNUMBER(SEARCH("Early usability studies",'Data extraction-synthesis'!J7)),"X","") ->  | N8: =IF(ISNUMBER(SEARCH("No input sources reported",'Data extraction-synthesis'!J7)),"X","") ->  | O8: =IF(ISNUMBER(SEARCH("N/A",'Data extraction-synthesis'!J7)),"X","") ->  | P8: NO
A9: Donadeu, M. F., A. S.: Olliaro, P. L.: Abela-Ridder, B | B9: Target product profiles for the diagnosis of Taenia solium taeniasis, neurocysticercosis and porcine cysticercosis | C9: =IF(ISNUMBER(SEARCH("Literature",'Data extraction-synthesis'!J16)),"X","") -> X | D9: =IF(ISNUMBER(SEARCH("Industry standard",'Data extraction-synthesis'!J16)),"X","") ->  | E9: =IF(ISNUMBER(SEARCH("Guidelines",'Data extraction-synthesis'!J16)),"X","") ->  | F9: =IF(ISNUMBER(SEARCH("Interviews with experts",'Data extraction-synthesis'!J16)),"X","") ->  | G9: =IF(ISNUMBER(SEARCH("Surveys with experts/expert opinion",'Data extraction-synthesis'!J16)),"X","") -> X | H9: =IF(ISNUMBER(SEARCH("Consensus meeting inputs",'Data extraction-synthesis'!J16)),"X","") ->  | I9: =IF(ISNUMBER(SEARCH("Available data",'Data extraction-synthesis'!J16)),"X","") ->  | J9: =IF(ISNUMBER(SEARCH("Field observations",'Data extraction-synthesis'!J16)),"X","") ->  | K9: =IF(ISNUMBER(SEARCH("Laboratory evaluations",'Data extraction-synthesis'!J16)),"X","") ->  | L9: =IF(ISNUMBER(SEARCH("Models",'Data extraction-synthesis'!J16)),"X","") ->  | M9: =IF(ISNUMBER(SEARCH("Early usability studies",'Data extraction-synthesis'!J16)),"X","") ->  | N9: =IF(ISNUMBER(SEARCH("No input sources reported",'Data extraction-synthesis'!J16)),"X","") ->  | O9: =IF(ISNUMBER(SEARCH("N/A",'Data extraction-synthesis'!J16)),"X","") ->  | P9: YES
A10: Ebels, K. B. C., C.: Crudder, C. H.: McGray, S.: Magnuson, K.: Tietje, K.: Labarre, P | B10: Incorporating user needs into product development for improved infection detection for malaria elimination programs | C10: =IF(ISNUMBER(SEARCH("Literature",'Data extraction-synthesis'!J40)),"X","") ->  | D10: =IF(ISNUMBER(SEARCH("Industry standard",'Data extraction-synthesis'!J40)),"X","") ->  | E10: =IF(ISNUMBER(SEARCH("Guidelines",'Data extraction-synthesis'!J40)),"X","") ->  | F10: =IF(ISNUMBER(SEARCH("Interviews with experts",'Data extraction-synthesis'!J40)),"X","") ->  | G10: =IF(ISNUMBER(SEARCH("Surveys with experts/expert opinion",'Data extraction-synthesis'!J40)),"X","") ->  | H10: =IF(ISNUMBER(SEARCH("Consensus meeting inputs",'Data extraction-synthesis'!J40)),"X","") ->  | I10: =IF(ISNUMBER(SEARCH("Available data",'Data extraction-synthesis'!J40)),"X","") ->  | J10: =IF(ISNUMBER(SEARCH("Field observations",'Data extraction-synthesis'!J40)),"X","") ->  | K10: =IF(ISNUMBER(SEARCH("Laboratory evaluations",'Data extraction-synthesis'!J40)),"X","") ->  | L10: =IF(ISNUMBER(SEARCH("Models",'Data extraction-synthesis'!J40)),"X","") ->  | M10: =IF(ISNUMBER(SEARCH("Early usability studies",'Data extraction-synthesis'!J40)),"X","") ->  | N10: =IF(ISNUMBER(SEARCH("No input sources reported",'Data extraction-synthesis'!J40)),"X","") ->  | O10: =IF(ISNUMBER(SEARCH("N/A",'Data extraction-synthesis'!J40)),"X","") -> X | P10: N/A
A11: FIND | B11: Target Product Profile for Tests for Recent HIV Infection | C11: =IF(ISNUMBER(SEARCH("Literature",'Data extraction-synthesis'!J17)),"X","") ->  | D11: =IF(ISNUMBER(SEARCH("Industry standard",'Data extraction-synthesis'!J17)),"X","") ->  | E11: =IF(ISNUMBER(SEARCH("Guidelines",'Data extraction-synthesis'!J17)),"X","") ->  | F11: =IF(ISNUMBER(SEARCH("Interviews with experts",'Data extraction-synthesis'!J17)),"X","") ->  | G11: =IF(ISNUMBER(SEARCH("Surveys with experts/expert opinion",'Data extraction-synthesis'!J17)),"X","") ->  | H11: =IF(ISNUMBER(SEARCH("Consensus meeting inputs",'Data extraction-synthesis'!J17)),"X","") ->  | I11: =IF(ISNUMBER(SEARCH("Available data",'Data extraction-synthesis'!J17)),"X","") ->  | J11: =IF(ISNUMBER(SEARCH("Field observations",'Data extraction-synthesis'!J17)),"X","") ->  | K11: =IF(ISNUMBER(SEARCH("Laboratory evaluations",'Data extraction-synthesis'!J17)),"X","") ->  | L11: =IF(ISNUMBER(SEARCH("Models",'Data extraction-synthesis'!J17)),"X","") ->  | M11: =IF(ISNUMBER(SEARCH("Early usability studies",'Data extraction-synthesis'!J17)),"X","") ->  | N11: =IF(ISNUMBER(SEARCH("No input sources reported",'Data extraction-synthesis'!J17)),"X","") -> X | O11: =IF(ISNUMBER(SEARCH("N/A",'Data extraction-synthesis'!J17)),"X","") ->  | P11: N/A
A12: FIND | B12: Target Product Profile: Rapid test for diagnosis of malaria and screening for hyman African trypanosomiasis (HAT) | C12: =IF(ISNUMBER(SEARCH("Literature",'Data extraction-synthesis'!J18)),"X","") ->  | D12: =IF(ISNUMBER(SEARCH("Industry standard",'Data extraction-synthesis'!J18)),"X","") ->  | E12: =IF(ISNUMBER(SEARCH("Guidelines",'Data extraction-synthesis'!J18)),"X","") ->  | F12: =IF(ISNUMBER(SEARCH("Interviews with experts",'Data extraction-synthesis'!J18)),"X","") ->  | G12: =IF(ISNUMBER(SEARCH("Surveys with experts/expert opinion",'Data extraction-synthesis'!J18)),"X","") ->  | H12: =IF(ISNUMBER(SEARCH("Consensus meeting inputs",'Data extraction-synthesis'!J18)),"X","") ->  | I12: =IF(ISNUMBER(SEARCH("Available data",'Data extraction-synthesis'!J18)),"X","") ->  | J12: =IF(ISNUMBER(SEARCH("Field observations",'Data extraction-synthesis'!J18)),"X","") ->  | K12: =IF(ISNUMBER(SEARCH("Laboratory evaluations",'Data extraction-synthesis'!J18)),"X","") ->  | L12: =IF(ISNUMBER(SEARCH("Models",'Data extraction-synthesis'!J18)),"X","") ->  | M12: =IF(ISNUMBER(SEARCH("Early usability studies",'Data extraction-synthesis'!J18)),"X","") ->  | N12: =IF(ISNUMBER(SEARCH("No input sources reported",'Data extraction-synthesis'!J18)),"X","") -> X | O12: =IF(ISNUMBER(SEARCH("N/A",'Data extraction-synthesis'!J18)),"X","") ->  | P12: N/A
A13: FIND | B13: Target Product Profile: Screening test for human African trypanosomiasis (HAT) | C13: =IF(ISNUMBER(SEARCH("Literature",'Data extraction-synthesis'!J41)),"X","") ->  | D13: =IF(ISNUMBER(SEARCH("Industry standard",'Data extraction-synthesis'!J41)),"X","") ->  | E13: =IF(ISNUMBER(SEARCH("Guidelines",'Data extraction-synthesis'!J41)),"X","") ->  | F13: =IF(ISNUMBER(SEARCH("Interviews with experts",'Data extraction-synthesis'!J41)),"X","") ->  | G13: =IF(ISNUMBER(SEARCH("Surveys with experts/expert opinion",'Data extraction-synthesis'!J41)),"X","") ->  | H13: =IF(ISNUMBER(SEARCH("Consensus meeting inputs",'Data extraction-synthesis'!J41)),"X","") ->  | I13: =IF(ISNUMBER(SEARCH("Available data",'Data extraction-synthesis'!J41)),"X","") ->  | J13: =IF(ISNUMBER(SEARCH("Field observations",'Data extraction-synthesis'!J41)),"X","") ->  | K13: =IF(ISNUMBER(SEARCH("Laboratory evaluations",'Data extraction-synthesis'!J41)),"X","") ->  | L13: =IF(ISNUMBER(SEARCH("Models",'Data extraction-synthesis'!J41)),"X","") ->  | M13: =IF(ISNUMBER(SEARCH("Early usability studies",'Data extraction-synthesis'!J41)),"X","") ->  | N13: =IF(ISNUMBER(SEARCH("No input sources reported",'Data extraction-synthesis'!J41)),"X","") -> X | O13: =IF(ISNUMBER(SEARCH("N/A",'Data extraction-synthesis'!J41)),"X","") ->  | P13: N/A
A14: FIND | B14: High-priority target product profile for hepatitis C diagnosis in decentralized settings: Report of a consensus meeting. | C14: =IF(ISNUMBER(SEARCH("Literature",'Data extraction-synthesis'!J8)),"X","") -> X | D14: =IF(ISNUMBER(SEARCH("Industry standard",'Data extraction-synthesis'!J8)),"X","") ->  | E14: =IF(ISNUMBER(SEARCH("Guidelines",'Data extraction-synthesis'!J8)),"X","") ->  | F14: =IF(ISNUMBER(SEARCH("Interviews with experts",'Data extraction-synthesis'!J8)),"X","") ->  | H14: =IF(ISNUMBER(SEARCH("Consensus meeting inputs",'Data extraction-synthesis'!J8)),"X","") ->  | I14: =IF(ISNUMBER(SEARCH("Available data",'Data extraction-synthesis'!J8)),"X","") -> X | J14: =IF(ISNUMBER(SEARCH("Field observations",'Data extraction-synthesis'!J8)),"X","") ->  | K14: =IF(ISNUMBER(SEARCH("Laboratory evaluations",'Data extraction-synthesis'!J8)),"X","") ->  | M14: =IF(ISNUMBER(SEARCH("Early usability studies",'Data extraction-synthesis'!J8)),"X","") ->  | N14: =IF(ISNUMBER(SEARCH("No input sources reported",'Data extraction-synthesis'!J8)),"X","") ->  | O14: =IF(ISNUMBER(SEARCH("N/A",'Data extraction-synthesis'!J8)),"X","") ->  | P14: YES
A15: Gal, M. F., N. A.: Hood, K.: Villacian, J.: Goossens, H.: Watkins, A.: Butler, C. C. | B15: Matching diagnostics development to clinical need: Target product profile development for a point of care test for community-acquired lower respiratory tract infection | D15: =IF(ISNUMBER(SEARCH("Industry standard",'Data extraction-synthesis'!J9)),"X","") ->  | E15: =IF(ISNUMBER(SEARCH("Guidelines",'Data extraction-synthesis'!J9)),"X","") ->  | F15: =IF(ISNUMBER(SEARCH("Interviews with experts",'Data extraction-synthesis'!J9)),"X","") ->  | G15: =IF(ISNUMBER(SEARCH("Surveys with experts/expert opinion",'Data extraction-synthesis'!J9)),"X","") ->  | H15: =IF(ISNUMBER(SEARCH("Consensus meeting inputs",'Data extraction-synthesis'!J9)),"X","") ->  | I15: =IF(ISNUMBER(SEARCH("Available data",'Data extraction-synthesis'!J9)),"X","") ->  | J15: =IF(ISNUMBER(SEARCH("Field observations",'Data extraction-synthesis'!J9)),"X","") ->  | K15: =IF(ISNUMBER(SEARCH("Laboratory evaluations",'Data extraction-synthesis'!J9)),"X","") ->  | L15: =IF(ISNUMBER(SEARCH("Models",'Data extraction-synthesis'!J9)),"X","") ->  | M15: =IF(ISNUMBER(SEARCH("Early usability studies",'Data extraction-synthesis'!J9)),"X","") ->  | N15: =IF(ISNUMBER(SEARCH("No input sources reported",'Data extraction-synthesis'!J9)),"X","") ->  | O15: =IF(ISNUMBER(SEARCH("N/A",'Data extraction-synthesis'!J9)),"X","") ->  | P15: NO
A16: Internationa Diagnostics Centre (IDC) | B16: Target Product Profile (TPP): Combined HIV/Syphilis Test | C16: =IF(ISNUMBER(SEARCH("Literature",'Data extraction-synthesis'!J39)),"X","") ->  | D16: =IF(ISNUMBER(SEARCH("Industry standard",'Data extraction-synthesis'!J39)),"X","") ->  | E16: =IF(ISNUMBER(SEARCH("Guidelines",'Data extraction-synthesis'!J39)),"X","") ->  | F16: =IF(ISNUMBER(SEARCH("Interviews with experts",'Data extraction-synthesis'!J39)),"X","") ->  | G16: =IF(ISNUMBER(SEARCH("Surveys with experts/expert opinion",'Data extraction-synthesis'!J39)),"X","") ->  | H16: =IF(ISNUMBER(SEARCH("Consensus meeting inputs",'Data extraction-synthesis'!J39)),"X","") ->  | I16: =IF(ISNUMBER(SEARCH("Available data",'Data extraction-synthesis'!J39)),"X","") ->  | J16: =IF(ISNUMBER(SEARCH("Field observations",'Data extraction-synthesis'!J39)),"X","") ->  | K16: =IF(ISNUMBER(SEARCH("Laboratory evaluations",'Data extraction-synthesis'!J39)),"X","") ->  | L16: =IF(ISNUMBER(SEARCH("Models",'Data extraction-synthesis'!J39)),"X","") ->  | M16: =IF(ISNUMBER(SEARCH("Early usability studies",'Data extraction-synthesis'!J39)),"X","") ->  | N16: =IF(ISNUMBER(SEARCH("No input sources reported",'Data extraction-synthesis'!J39)),"X","") -> X | O16: =IF(ISNUMBER(SEARCH("N/A",'Data extraction-synthesis'!J39)),"X","") ->  | P16: N/A
A17: International Diagnostics Centre (IDC) | B17: Target Product Profile (TPP) - Point-of-Care HIV Viral Load Test | C17: =IF(ISNUMBER(SEARCH("Literature",'Data extraction-synthesis'!J36)),"X","") ->  | D17: =IF(ISNUMBER(SEARCH("Industry standard",'Data extraction-synthesis'!J36)),"X","") ->  | E17: =IF(ISNUMBER(SEARCH("Guidelines",'Data extraction-synthesis'!J36)),"X","") ->  | F17: =IF(ISNUMBER(SEARCH("Interviews with experts",'Data extraction-synthesis'!J36)),"X","") ->  | G17: =IF(ISNUMBER(SEARCH("Surveys with experts/expert opinion",'Data extraction-synthesis'!J36)),"X","") ->  | H17: =IF(ISNUMBER(SEARCH("Consensus meeting inputs",'Data extraction-synthesis'!J36)),"X","") ->  | I17: =IF(ISNUMBER(SEARCH("Available data",'Data extraction-synthesis'!J36)),"X","") ->  | J17: =IF(ISNUMBER(SEARCH("Field observations",'Data extraction-synthesis'!J36)),"X","") ->  | K17: =IF(ISNUMBER(SEARCH("Laboratory evaluations",'Data extraction-synthesis'!J36)),"X","") ->  | L17: =IF(ISNUMBER(SEARCH("Models",'Data extraction-synthesis'!J36)),"X","") ->  | M17: =IF(ISNUMBER(SEARCH("Early usability studies",'Data extraction-synthesis'!J36)),"X","") ->  | N17: =IF(ISNUMBER(SEARCH("No input sources reported",'Data extraction-synthesis'!J36)),"X","") -> X | O17: =IF(ISNUMBER(SEARCH("N/A",'Data extraction-synthesis'!J36)),"X","") ->  | P17: N/A
A18: International Diagnostics Centre (IDC) | B18: Target Product Profile (TPP)- Point of care CD4 test | C18: =IF(ISNUMBER(SEARCH("Literature",'Data extraction-synthesis'!J37)),"X","") ->  | D18: =IF(ISNUMBER(SEARCH("Industry standard",'Data extraction-synthesis'!J37)),"X","") ->  | E18: =IF(ISNUMBER(SEARCH("Guidelines",'Data extraction-synthesis'!J37)),"X","") ->  | F18: =IF(ISNUMBER(SEARCH("Interviews with experts",'Data extraction-synthesis'!J37)),"X","") ->  | G18: =IF(ISNUMBER(SEARCH("Surveys with experts/expert opinion",'Data extraction-synthesis'!J37)),"X","") ->  | H18: =IF(ISNUMBER(SEARCH("Consensus meeting inputs",'Data extraction-synthesis'!J37)),"X","") ->  | I18: =IF(ISNUMBER(SEARCH("Available data",'Data extraction-synthesis'!J37)),"X","") ->  | J18: =IF(ISNUMBER(SEARCH("Field observations",'Data extraction-synthesis'!J37)),"X","") ->  | K18: =IF(ISNUMBER(SEARCH("Laboratory evaluations",'Data extraction-synthesis'!J37)),"X","") ->  | L18: =IF(ISNUMBER(SEARCH("Models",'Data extraction-synthesis'!J37)),"X","") ->  | M18: =IF(ISNUMBER(SEARCH("Early usability studies",'Data extraction-synthesis'!J37)),"X","") ->  | N18: =IF(ISNUMBER(SEARCH("No input sources reported",'Data extraction-synthesis'!J37)),"X","") -> X | O18: =IF(ISNUMBER(SEARCH("N/A",'Data extraction-synthesis'!J37)),"X","") ->  | P18: N/A
A19: International Diagnostics Centre (IDC) | B19: Target Product Profile (TPP): Point of care EID test | C19: =IF(ISNUMBER(SEARCH("Literature",'Data extraction-synthesis'!J38)),"X","") ->  | D19: =IF(ISNUMBER(SEARCH("Industry standard",'Data extraction-synthesis'!J38)),"X","") ->  | E19: =IF(ISNUMBER(SEARCH("Guidelines",'Data extraction-synthesis'!J38)),"X","") ->  | F19: =IF(ISNUMBER(SEARCH("Interviews with experts",'Data extraction-synthesis'!J38)),"X","") ->  | G19: =IF(ISNUMBER(SEARCH("Surveys with experts/expert opinion",'Data extraction-synthesis'!J38)),"X","") ->  | H19: =IF(ISNUMBER(SEARCH("Consensus meeting inputs",'Data extraction-synthesis'!J38)),"X","") ->  | I19: =IF(ISNUMBER(SEARCH("Available data",'Data extraction-synthesis'!J38)),"X","") ->  | J19: =IF(ISNUMBER(SEARCH("Field observations",'Data extraction-synthesis'!J38)),"X","") ->  | K19: =IF(ISNUMBER(SEARCH("Laboratory evaluations",'Data extraction-synthesis'!J38)),"X","") ->  | L19: =IF(ISNUMBER(SEARCH("Models",'Data extraction-synthesis'!J38)),"X","") ->  | M19: =IF(ISNUMBER(SEARCH("Early usability studies",'Data extraction-synthesis'!J38)),"X","") ->  | N19: =IF(ISNUMBER(SEARCH("No input sources reported",'Data extraction-synthesis'!J38)),"X","") -> X | O19: =IF(ISNUMBER(SEARCH("N/A",'Data extraction-synthesis'!J38)),"X","") ->  | P19: N/A
A20: Lim, M. D. B., S. J.: Belizario, V. Y., Jr.: Gay-Andrieu, F.: Gilleard, J.: Levecke, B.: Lieshout, L. van: Medley, G. F.: Mekonnen, Z.: Mirams, G.: Njenga, S. M.: Odiere, M. R.: Rudge, J. W.: Stuyver, L.: Vercruysse, J.: Vlaminck, J.: Walson, J. L. | B20: Diagnostic tools for soil-transmitted helminths control and elimination programs: a pathway for diagnostic product development | D20: =IF(ISNUMBER(SEARCH("Industry standard",'Data extraction-synthesis'!J10)),"X","") ->  | E20: =IF(ISNUMBER(SEARCH("Guidelines",'Data extraction-synthesis'!J10)),"X","") ->  | F20: =IF(ISNUMBER(SEARCH("Interviews with experts",'Data extraction-synthesis'!J10)),"X","") ->  | G20: =IF(ISNUMBER(SEARCH("Surveys with experts/expert opinion",'Data extraction-synthesis'!J10)),"X","") ->  | H20: =IF(ISNUMBER(SEARCH("Consensus meeting inputs",'Data extraction-synthesis'!J10)),"X","") ->  | I20: =IF(ISNUMBER(SEARCH("Available data",'Data extraction-synthesis'!J10)),"X","") ->  | J20: =IF(ISNUMBER(SEARCH("Field observations",'Data extraction-synthesis'!J10)),"X","") ->  | K20: =IF(ISNUMBER(SEARCH("Laboratory evaluations",'Data extraction-synthesis'!J10)),"X","") ->  | L20: =IF(ISNUMBER(SEARCH("Models",'Data extraction-synthesis'!J10)),"X","") ->  | M20: =IF(ISNUMBER(SEARCH("Early usability studies",'Data extraction-synthesis'!J10)),"X","") ->  | N20: x | O20: =IF(ISNUMBER(SEARCH("N/A",'Data extraction-synthesis'!J10)),"X","") ->  | P20: N/A
A21: Nsanzabana, C. A., Frederic: Beck, Hans-Peter: Ding, Xavier C.: Kamau, Edwin: Krishna, Sanjeev: Legrand, Eric: Lucchi, Naomi: Miotto, Olivo: Nag, Sidsel: Noedl, Harald: Roper, Cally: Rosenthal, Philip J.: Schallig, Henk D. F. H.: Taylor, Steve M.: Volkman, Sarah K.: Gonzalez, Iveth J. | B21: Molecular assays for antimalarial drug resistance surveillance: A target product profile | C21: =IF(ISNUMBER(SEARCH("Literature",'Data extraction-synthesis'!J11)),"X","") -> X | D21: =IF(ISNUMBER(SEARCH("Industry standard",'Data extraction-synthesis'!J11)),"X","") ->  | E21: =IF(ISNUMBER(SEARCH("Guidelines",'Data extraction-synthesis'!J11)),"X","") ->  | F21: =IF(ISNUMBER(SEARCH("Interviews with experts",'Data extraction-synthesis'!J11)),"X","") ->  | G21: =IF(ISNUMBER(SEARCH("Surveys with experts/expert opinion",'Data extraction-synthesis'!J11)),"X","") ->  | H21: =IF(ISNUMBER(SEARCH("Consensus meeting inputs",'Data extraction-synthesis'!J11)),"X","") ->  | I21: =IF(ISNUMBER(SEARCH("Available data",'Data extraction-synthesis'!J11)),"X","") ->  | J21: =IF(ISNUMBER(SEARCH("Field observations",'Data extraction-synthesis'!J11)),"X","") ->  | K21: =IF(ISNUMBER(SEARCH("Laboratory evaluations",'Data extraction-synthesis'!J11)),"X","") ->  | L21: =IF(ISNUMBER(SEARCH("Models",'Data extraction-synthesis'!J11)),"X","") ->  | M21: =IF(ISNUMBER(SEARCH("Early usability studies",'Data extraction-synthesis'!J11)),"X","") ->  | N21: =IF(ISNUMBER(SEARCH("No input sources reported",'Data extraction-synthesis'!J11)),"X","") ->  | O21: =IF(ISNUMBER(SEARCH("N/A",'Data extraction-synthesis'!J11)),"X","") ->  | P21: NO
A22: Pal S, Jasper L.E., Lawrence K.L, Walter M | B22: Assessing the Dengue Diagnosis Capability Gap in the Military Health System | C22: =IF(ISNUMBER(SEARCH("Literature",'Data extraction-synthesis'!J33)),"X","") ->  | D22: =IF(ISNUMBER(SEARCH("Industry standard",'Data extraction-synthesis'!J33)),"X","") ->  | E22: =IF(ISNUMBER(SEARCH("Guidelines",'Data extraction-synthesis'!J33)),"X","") ->  | F22: =IF(ISNUMBER(SEARCH("Interviews with experts",'Data extraction-synthesis'!J33)),"X","") ->  | H22: =IF(ISNUMBER(SEARCH("Consensus meeting inputs",'Data extraction-synthesis'!J33)),"X","") ->  | I22: =IF(ISNUMBER(SEARCH("Available data",'Data extraction-synthesis'!J33)),"X","") ->  | J22: =IF(ISNUMBER(SEARCH("Field observations",'Data extraction-synthesis'!J33)),"X","") ->  | K22: =IF(ISNUMBER(SEARCH("Laboratory evaluations",'Data extraction-synthesis'!J33)),"X","") ->  | M22: =IF(ISNUMBER(SEARCH("Early usability studies",'Data extraction-synthesis'!J33)),"X","") ->  | N22: =IF(ISNUMBER(SEARCH("No input sources reported",'Data extraction-synthesis'!J33)),"X","") ->  | O22: =IF(ISNUMBER(SEARCH("N/A",'Data extraction-synthesis'!J33)),"X","") ->  | P22: NO
A23: PATH | B23: Target Product Profile: HIV Self-Test Version 4.1: A White Paper on the Evaluation of Current HIV Rapid Tests and Development of Core Specifications for Next-Generation HIV Tests | C23: =IF(ISNUMBER(SEARCH("Literature",'Data extraction-synthesis'!J19)),"X","") -> X | D23: =IF(ISNUMBER(SEARCH("Industry standard",'Data extraction-synthesis'!J19)),"X","") ->  | E23: =IF(ISNUMBER(SEARCH("Guidelines",'Data extraction-synthesis'!J19)),"X","") ->  | F23: =IF(ISNUMBER(SEARCH("Interviews with experts",'Data extraction-synthesis'!J19)),"X","") ->  | G23: =IF(ISNUMBER(SEARCH("Surveys with experts/expert opinion",'Data extraction-synthesis'!J19)),"X","") ->  | H23: =IF(ISNUMBER(SEARCH("Consensus meeting inputs",'Data extraction-synthesis'!J19)),"X","") ->  | I23: =IF(ISNUMBER(SEARCH("Available data",'Data extraction-synthesis'!J19)),"X","") ->  | J23: =IF(ISNUMBER(SEARCH("Field observations",'Data extraction-synthesis'!J19)),"X","") ->  | K23: =IF(ISNUMBER(SEARCH("Laboratory evaluations",'Data extraction-synthesis'!J19)),"X","") -> X | L23: =IF(ISNUMBER(SEARCH("Models",'Data extraction-synthesis'!J19)),"X","") ->  | M23: =IF(ISNUMBER(SEARCH("Early usability studies",'Data extraction-synthesis'!J19)),"X","") -> X | N23: =IF(ISNUMBER(SEARCH("No input sources reported",'Data extraction-synthesis'!J19)),"X","") ->  | O23: =IF(ISNUMBER(SEARCH("N/A",'Data extraction-synthesis'!J19)),"X","") ->  | P23: YES
A24: PATH | B24: Diagnostics for neglected tropical diseases: Defining the best tools through target product profiles | C24: =IF(ISNUMBER(SEARCH("Literature",'Data extraction-synthesis'!J20)),"X","") ->  | D24: =IF(ISNUMBER(SEARCH("Industry standard",'Data extraction-synthesis'!J20)),"X","") ->  | E24: =IF(ISNUMBER(SEARCH("Guidelines",'Data extraction-synthesis'!J20)),"X","") ->  | F24: =IF(ISNUMBER(SEARCH("Interviews with experts",'Data extraction-synthesis'!J20)),"X","") ->  | G24: =IF(ISNUMBER(SEARCH("Surveys with experts/expert opinion",'Data extraction-synthesis'!J20)),"X","") ->  | H24: =IF(ISNUMBER(SEARCH("Consensus meeting inputs",'Data extraction-synthesis'!J20)),"X","") ->  | I24: =IF(ISNUMBER(SEARCH("Available data",'Data extraction-synthesis'!J20)),"X","") ->  | J24: =IF(ISNUMBER(SEARCH("Field observations",'Data extraction-synthesis'!J20)),"X","") ->  | K24: =IF(ISNUMBER(SEARCH("Laboratory evaluations",'Data extraction-synthesis'!J20)),"X","") ->  | L24: =IF(ISNUMBER(SEARCH("Models",'Data extraction-synthesis'!J20)),"X","") ->  | M24: =IF(ISNUMBER(SEARCH("Early usability studies",'Data extraction-synthesis'!J20)),"X","") ->  | N24: =IF(ISNUMBER(SEARCH("No input sources reported",'Data extraction-synthesis'!J20)),"X","") ->  | O24: =IF(ISNUMBER(SEARCH("N/A",'Data extraction-synthesis'!J20)),"X","") -> X | P24: N/A
A25: PATH | B25: Target Product Profile: Schistosomiasis Surveillance Diagnostic | C25: =IF(ISNUMBER(SEARCH("Literature",'Data extraction-synthesis'!J21)),"X","") -> X | D25: =IF(ISNUMBER(SEARCH("Industry standard",'Data extraction-synthesis'!J21)),"X","") ->  | E25: =IF(ISNUMBER(SEARCH("Guidelines",'Data extraction-synthesis'!J21)),"X","") ->  | F25: =IF(ISNUMBER(SEARCH("Interviews with experts",'Data extraction-synthesis'!J21)),"X","") ->  | G25: =IF(ISNUMBER(SEARCH("Surveys with experts/expert opinion",'Data extraction-synthesis'!J21)),"X","") ->  | H25: =IF(ISNUMBER(SEARCH("Consensus meeting inputs",'Data extraction-synthesis'!J21)),"X","") ->  | I25: =IF(ISNUMBER(SEARCH("Available data",'Data extraction-synthesis'!J21)),"X","") ->  | J25: =IF(ISNUMBER(SEARCH("Field observations",'Data extraction-synthesis'!J21)),"X","") ->  | K25: =IF(ISNUMBER(SEARCH("Laboratory evaluations",'Data extraction-synthesis'!J21)),"X","") ->  | L25: =IF(ISNUMBER(SEARCH("Models",'Data extraction-synthesis'!J21)),"X","") ->  | M25: =IF(ISNUMBER(SEARCH("Early usability studies",'Data extraction-synthesis'!J21)),"X","") ->  | N25: =IF(ISNUMBER(SEARCH("No input sources reported",'Data extraction-synthesis'!J21)),"X","") ->  | O25: =IF(ISNUMBER(SEARCH("N/A",'Data extraction-synthesis'!J21)),"X","") ->  | P25: NO
A26: PATH | B26: Target Product Profile: Schistosomiasis Surveillance Diagnostic Lateral Flow Test CAA antigen | C26: =IF(ISNUMBER(SEARCH("Literature",'Data extraction-synthesis'!J34)),"X","") -> X | D26: =IF(ISNUMBER(SEARCH("Industry standard",'Data extraction-synthesis'!J34)),"X","") ->  | E26: =IF(ISNUMBER(SEARCH("Guidelines",'Data extraction-synthesis'!J34)),"X","") ->  | F26: =IF(ISNUMBER(SEARCH("Interviews with experts",'Data extraction-synthesis'!J34)),"X","") ->  | G26: =IF(ISNUMBER(SEARCH("Surveys with experts/expert opinion",'Data extraction-synthesis'!J34)),"X","") ->  | H26: =IF(ISNUMBER(SEARCH("Consensus meeting inputs",'Data extraction-synthesis'!J34)),"X","") ->  | I26: =IF(ISNUMBER(SEARCH("Available data",'Data extraction-synthesis'!J34)),"X","") ->  | J26: =IF(ISNUMBER(SEARCH("Field observations",'Data extraction-synthesis'!J34)),"X","") ->  | K26: =IF(ISNUMBER(SEARCH("Laboratory evaluations",'Data extraction-synthesis'!J34)),"X","") ->  | L26: =IF(ISNUMBER(SEARCH("Models",'Data extraction-synthesis'!J34)),"X","") ->  | M26: =IF(ISNUMBER(SEARCH("Early usability studies",'Data extraction-synthesis'!J34)),"X","") ->  | N26: =IF(ISNUMBER(SEARCH("No input sources reported",'Data extraction-synthesis'!J34)),"X","") ->  | O26: =IF(ISNUMBER(SEARCH("N/A",'Data extraction-synthesis'!J34)),"X","") ->  | P26: NO
A27: PATH | B27: Target Product Profile: Trachoma Surveillance Diagnostic-Post-Elimination Surveillance Antibody Lateral Flow Test | D27: =IF(ISNUMBER(SEARCH("Industry standard",'Data extraction-synthesis'!J35)),"X","") ->  | E27: =IF(ISNUMBER(SEARCH("Guidelines",'Data extraction-synthesis'!J35)),"X","") ->  | F27: =IF(ISNUMBER(SEARCH("Interviews with experts",'Data extraction-synthesis'!J35)),"X","") ->  | G27: =IF(ISNUMBER(SEARCH("Surveys with experts/expert opinion",'Data extraction-synthesis'!J35)),"X","") ->  | H27: =IF(ISNUMBER(SEARCH("Consensus meeting inputs",'Data extraction-synthesis'!J35)),"X","") ->  | I27: =IF(ISNUMBER(SEARCH("Available data",'Data extraction-synthesis'!J35)),"X","") ->  | J27: =IF(ISNUMBER(SEARCH("Field observations",'Data extraction-synthesis'!J35)),"X","") ->  | K27: =IF(ISNUMBER(SEARCH("Laboratory evaluations",'Data extraction-synthesis'!J35)),"X","") ->  | L27: =IF(ISNUMBER(SEARCH("Models",'Data extraction-synthesis'!J35)),"X","") ->  | M27: =IF(ISNUMBER(SEARCH("Early usability studies",'Data extraction-synthesis'!J35)),"X","") ->  | N27: x | O27: =IF(ISNUMBER(SEARCH("N/A",'Data extraction-synthesis'!J35)),"X","") ->  | P27: N/A
A28: PATH | B28: Target Product Profile: Trachoma surveillance diagnostic-antigen lateral flow test | C28: =IF(ISNUMBER(SEARCH("Literature",'Data extraction-synthesis'!J42)),"X","") -> X | D28: =IF(ISNUMBER(SEARCH("Industry standard",'Data extraction-synthesis'!J42)),"X","") ->  | E28: =IF(ISNUMBER(SEARCH("Guidelines",'Data extraction-synthesis'!J42)),"X","") ->  | F28: =IF(ISNUMBER(SEARCH("Interviews with experts",'Data extraction-synthesis'!J42)),"X","") ->  | G28: =IF(ISNUMBER(SEARCH("Surveys with experts/expert opinion",'Data extraction-synthesis'!J42)),"X","") ->  | H28: =IF(ISNUMBER(SEARCH("Consensus meeting inputs",'Data extraction-synthesis'!J42)),"X","") ->  | I28: =IF(ISNUMBER(SEARCH("Available data",'Data extraction-synthesis'!J42)),"X","") ->  | J28: =IF(ISNUMBER(SEARCH("Field observations",'Data extraction-synthesis'!J42)),"X","") ->  | K28: =IF(ISNUMBER(SEARCH("Laboratory evaluations",'Data extraction-synthesis'!J42)),"X","") ->  | L28: =IF(ISNUMBER(SEARCH("Models",'Data extraction-synthesis'!J42)),"X","") ->  | M28: =IF(ISNUMBER(SEARCH("Early usability studies",'Data extraction-synthesis'!J42)),"X","") ->  | N28: =IF(ISNUMBER(SEARCH("No input sources reported",'Data extraction-synthesis'!J42)),"X","") ->  | O28: =IF(ISNUMBER(SEARCH("N/A",'Data extraction-synthesis'!J42)),"X","") ->  | P28: NO
A29: PATH | B29: Target Product Profile: Schistosomiasis Surveillance Diagnostic - schistosoma genus-specific antibody lateral flow test post-elimination surveillance | C29: =IF(ISNUMBER(SEARCH("Literature",'Data extraction-synthesis'!J44)),"X","") -> X | D29: =IF(ISNUMBER(SEARCH("Industry standard",'Data extraction-synthesis'!J44)),"X","") ->  | E29: =IF(ISNUMBER(SEARCH("Guidelines",'Data extraction-synthesis'!J44)),"X","") ->  | F29: =IF(ISNUMBER(SEARCH("Interviews with experts",'Data extraction-synthesis'!J44)),"X","") ->  | G29: =IF(ISNUMBER(SEARCH("Surveys with experts/expert opinion",'Data extraction-synthesis'!J44)),"X","") ->  | H29: =IF(ISNUMBER(SEARCH("Consensus meeting inputs",'Data extraction-synthesis'!J44)),"X","") ->  | I29: =IF(ISNUMBER(SEARCH("Available data",'Data extraction-synthesis'!J44)),"X","") ->  | J29: =IF(ISNUMBER(SEARCH("Field observations",'Data extraction-synthesis'!J44)),"X","") ->  | K29: =IF(ISNUMBER(SEARCH("Laboratory evaluations",'Data extraction-synthesis'!J44)),"X","") ->  | L29: =IF(ISNUMBER(SEARCH("Models",'Data extraction-synthesis'!J44)),"X","") ->  | M29: =IF(ISNUMBER(SEARCH("Early usability studies",'Data extraction-synthesis'!J44)),"X","") ->  | N29: =IF(ISNUMBER(SEARCH("No input sources reported",'Data extraction-synthesis'!J44)),"X","") ->  | O29: =IF(ISNUMBER(SEARCH("N/A",'Data extraction-synthesis'!J44)),"X","") ->  | P29: NO
A30: Peck, R. B. W., J. D.: Boettcher, M. G.: Downing | B30: Defining product requirements for field deployable yellow fever tests | C30: =IF(ISNUMBER(SEARCH("Literature",'Data extraction-synthesis'!J43)),"X","") ->  | D30: =IF(ISNUMBER(SEARCH("Industry standard",'Data extraction-synthesis'!J43)),"X","") ->  | E30: =IF(ISNUMBER(SEARCH("Guidelines",'Data extraction-synthesis'!J43)),"X","") ->  | F30: =IF(ISNUMBER(SEARCH("Interviews with experts",'Data extraction-synthesis'!J43)),"X","") ->  | G30: =IF(ISNUMBER(SEARCH("Surveys with experts/expert opinion",'Data extraction-synthesis'!J43)),"X","") ->  | H30: =IF(ISNUMBER(SEARCH("Consensus meeting inputs",'Data extraction-synthesis'!J43)),"X","") ->  | I30: =IF(ISNUMBER(SEARCH("Available data",'Data extraction-synthesis'!J43)),"X","") ->  | J30: =IF(ISNUMBER(SEARCH("Field observations",'Data extraction-synthesis'!J43)),"X","") ->  | K30: =IF(ISNUMBER(SEARCH("Laboratory evaluations",'Data extraction-synthesis'!J43)),"X","") ->  | L30: =IF(ISNUMBER(SEARCH("Models",'Data extraction-synthesis'!J43)),"X","") ->  | M30: =IF(ISNUMBER(SEARCH("Early usability studies",'Data extraction-synthesis'!J43)),"X","") ->  | N30: =IF(ISNUMBER(SEARCH("No input sources reported",'Data extraction-synthesis'!J43)),"X","") ->  | O30: =IF(ISNUMBER(SEARCH("N/A",'Data extraction-synthesis'!J43)),"X","") -> X | P30: N/A
A31: Porras, A. I. Y., Z. E.: Altcheh, J.: Britto, C.: Chaves, G. C.: Flevaud, L.: Martins, O. A.: Ribeiro, I.: Schijman, A. G.: Shikanai-Yasuda, M. A.: Sosa-Estani, S.: Stobbaerts, E.: Zicker, F. | B31: Target Product Profile (TPP) for Chagas Disease Point-of-Care Diagnosis and Assessment of Response to Treatmen | C31: =IF(ISNUMBER(SEARCH("Literature",'Data extraction-synthesis'!J12)),"X","") ->  | D31: =IF(ISNUMBER(SEARCH("Industry standard",'Data extraction-synthesis'!J12)),"X","") ->  | E31: =IF(ISNUMBER(SEARCH("Guidelines",'Data extraction-synthesis'!J12)),"X","") ->  | F31: =IF(ISNUMBER(SEARCH("Interviews with experts",'Data extraction-synthesis'!J12)),"X","") ->  | G31: =IF(ISNUMBER(SEARCH("Surveys with experts/expert opinion",'Data extraction-synthesis'!J12)),"X","") ->  | H31: =IF(ISNUMBER(SEARCH("Consensus meeting inputs",'Data extraction-synthesis'!J12)),"X","") ->  | I31: =IF(ISNUMBER(SEARCH("Available data",'Data extraction-synthesis'!J12)),"X","") ->  | J31: =IF(ISNUMBER(SEARCH("Field observations",'Data extraction-synthesis'!J12)),"X","") ->  | K31: =IF(ISNUMBER(SEARCH("Laboratory evaluations",'Data extraction-synthesis'!J12)),"X","") ->  | L31: =IF(ISNUMBER(SEARCH("Models",'Data extraction-synthesis'!J12)),"X","") ->  | M31: =IF(ISNUMBER(SEARCH("Early usability studies",'Data extraction-synthesis'!J12)),"X","") ->  | N31: =IF(ISNUMBER(SEARCH("No input sources reported",'Data extraction-synthesis'!J12)),"X","") -> X | O31: =IF(ISNUMBER(SEARCH("N/A",'Data extraction-synthesis'!J12)),"X","") ->  | P31: N/A
A32: Reipold, E. I. E., Philippa: Trianni, Alessandra: Panneer, Nivedha: Krakower, Douglas: Ongarello, Stefano: Roberts, Teri: Miller, Veronica: Denkinger, Claudia | B32: Optimising diagnosis of viraemic hepatitis C infection: the development of a target product profile | C32: =IF(ISNUMBER(SEARCH("Literature",'Data extraction-synthesis'!J13)),"X","") -> X | D32: =IF(ISNUMBER(SEARCH("Industry standard",'Data extraction-synthesis'!J13)),"X","") ->  | E32: =IF(ISNUMBER(SEARCH("Guidelines",'Data extraction-synthesis'!J13)),"X","") ->  | F32: =IF(ISNUMBER(SEARCH("Interviews with experts",'Data extraction-synthesis'!J13)),"X","") ->  | H32: =IF(ISNUMBER(SEARCH("Consensus meeting inputs",'Data extraction-synthesis'!J13)),"X","") ->  | I32: x | J32: =IF(ISNUMBER(SEARCH("Field observations",'Data extraction-synthesis'!J13)),"X","") ->  | K32: =IF(ISNUMBER(SEARCH("Laboratory evaluations",'Data extraction-synthesis'!J13)),"X","") ->  | M32: =IF(ISNUMBER(SEARCH("Early usability studies",'Data extraction-synthesis'!J13)),"X","") ->  | N32: =IF(ISNUMBER(SEARCH("No input sources reported",'Data extraction-synthesis'!J13)),"X","") ->  | O32: =IF(ISNUMBER(SEARCH("N/A",'Data extraction-synthesis'!J13)),"X","") ->  | P32: YES
A33: Solomon, A. W. E., D.: Bailey, R. L.: Blake, I. M.: Brooker, S.: Chen, J. X.: Chen, J. H.: Churcher, T. S.: Drakeley, C. J.: Edwards, T.: Fenwick, A.: French, M.: Gabrielli, A. F.: Grassly, N. C.: Harding-Esch, E. M.: Holland, M. J.: Koukounari, A.: Lammie, P. J.: Leslie, J.: Mabey, D. C.: Rhajaoui, M.: Secor, W. E.: Stothard, J. R.: Wei, H.: Willingham, A. L.: Zhou, X. N.: Peeling, R. W. | B33: A diagnostics platform for the integrated mapping, monitoring, and surveillance of neglected tropical diseases: Rationale and target product profiles | C33: =IF(ISNUMBER(SEARCH("Literature",'Data extraction-synthesis'!J14)),"X","") ->  | D33: =IF(ISNUMBER(SEARCH("Industry standard",'Data extraction-synthesis'!J14)),"X","") ->  | E33: =IF(ISNUMBER(SEARCH("Guidelines",'Data extraction-synthesis'!J14)),"X","") ->  | F33: =IF(ISNUMBER(SEARCH("Interviews with experts",'Data extraction-synthesis'!J14)),"X","") ->  | G33: =IF(ISNUMBER(SEARCH("Surveys with experts/expert opinion",'Data extraction-synthesis'!J14)),"X","") ->  | H33: =IF(ISNUMBER(SEARCH("Consensus meeting inputs",'Data extraction-synthesis'!J14)),"X","") ->  | I33: =IF(ISNUMBER(SEARCH("Available data",'Data extraction-synthesis'!J14)),"X","") ->  | J33: =IF(ISNUMBER(SEARCH("Field observations",'Data extraction-synthesis'!J14)),"X","") ->  | K33: =IF(ISNUMBER(SEARCH("Laboratory evaluations",'Data extraction-synthesis'!J14)),"X","") ->  | L33: =IF(ISNUMBER(SEARCH("Models",'Data extraction-synthesis'!J14)),"X","") ->  | M33: =IF(ISNUMBER(SEARCH("Early usability studies",'Data extraction-synthesis'!J14)),"X","") ->  | N33: =IF(ISNUMBER(SEARCH("No input sources reported",'Data extraction-synthesis'!J14)),"X","") -> X | O33: =IF(ISNUMBER(SEARCH("N/A",'Data extraction-synthesis'!J14)),"X","") ->  | P33: N/A
A34: Toskin, I. M., M.: Peeling, R. W.: Blondeel, K.: Cordero, J.: Kiarie, J. | B34: Advancing prevention of sexually transmitted infections through point-of-care testing: target product profiles and landscape analysis | C34: =IF(ISNUMBER(SEARCH("Literature",'Data extraction-synthesis'!J15)),"X","") ->  | D34: =IF(ISNUMBER(SEARCH("Industry standard",'Data extraction-synthesis'!J15)),"X","") ->  | E34: =IF(ISNUMBER(SEARCH("Guidelines",'Data extraction-synthesis'!J15)),"X","") ->  | F34: =IF(ISNUMBER(SEARCH("Interviews with experts",'Data extraction-synthesis'!J15)),"X","") ->  | G34: =IF(ISNUMBER(SEARCH("Surveys with experts/expert opinion",'Data extraction-synthesis'!J15)),"X","") ->  | I34: =IF(ISNUMBER(SEARCH("Available data",'Data extraction-synthesis'!J15)),"X","") ->  | J34: =IF(ISNUMBER(SEARCH("Field observations",'Data extraction-synthesis'!J15)),"X","") ->  | K34: =IF(ISNUMBER(SEARCH("Laboratory evaluations",'Data extraction-synthesis'!J15)),"X","") ->  | L34: =IF(ISNUMBER(SEARCH("Models",'Data extraction-synthesis'!J15)),"X","") ->  | M34: =IF(ISNUMBER(SEARCH("Early usability studies",'Data extraction-synthesis'!J15)),"X","") ->  | N34: =IF(ISNUMBER(SEARCH("No input sources reported",'Data extraction-synthesis'!J15)),"X","") ->  | O34: =IF(ISNUMBER(SEARCH("N/A",'Data extraction-synthesis'!J15)),"X","") ->  | P34: NO
A35: UNICEF | B35: UNICEF Target Product Profile Rapid E.coli Detection (version 2.0) | C35: =IF(ISNUMBER(SEARCH("Literature",'Data extraction-synthesis'!#REF!)),"X","") ->  | D35: =IF(ISNUMBER(SEARCH("Industry standard",'Data extraction-synthesis'!#REF!)),"X","") ->  | E35: =IF(ISNUMBER(SEARCH("Guidelines",'Data extraction-synthesis'!#REF!)),"X","") ->  | F35: =IF(ISNUMBER(SEARCH("Interviews with experts",'Data extraction-synthesis'!#REF!)),"X","") ->  | G35: =IF(ISNUMBER(SEARCH("Surveys with experts/expert opinion",'Data extraction-synthesis'!#REF!)),"X","") ->  | H35: =IF(ISNUMBER(SEARCH("Consensus meeting inputs",'Data extraction-synthesis'!#REF!)),"X","") ->  | I35: =IF(ISNUMBER(SEARCH("Available data",'Data extraction-synthesis'!#REF!)),"X","") ->  | J35: =IF(ISNUMBER(SEARCH("Field observations",'Data extraction-synthesis'!#REF!)),"X","") ->  | K35: =IF(ISNUMBER(SEARCH("Laboratory evaluations",'Data extraction-synthesis'!#REF!)),"X","") ->  | L35: =IF(ISNUMBER(SEARCH("Models",'Data extraction-synthesis'!#REF!)),"X","") ->  | M35: =IF(ISNUMBER(SEARCH("Early usability studies",'Data extraction-synthesis'!#REF!)),"X","") ->  | N35: =IF(ISNUMBER(SEARCH("No input sources reported",'Data extraction-synthesis'!J22)),"X","") -> X | O35: =IF(ISNUMBER(SEARCH("N/A",'Data extraction-synthesis'!#REF!)),"X","") ->  | P35: N/A
A36: UNICEF | B36: UNICEF Target Product Profile Rapid E.coli Detection (1.4) | C36: =IF(ISNUMBER(SEARCH("Literature",'Data extraction-synthesis'!J22)),"X","") ->  | D36: =IF(ISNUMBER(SEARCH("Industry standard",'Data extraction-synthesis'!J22)),"X","") ->  | E36: =IF(ISNUMBER(SEARCH("Guidelines",'Data extraction-synthesis'!J22)),"X","") ->  | F36: =IF(ISNUMBER(SEARCH("Interviews with experts",'Data extraction-synthesis'!J22)),"X","") ->  | G36: =IF(ISNUMBER(SEARCH("Surveys with experts/expert opinion",'Data extraction-synthesis'!J22)),"X","") ->  | H36: =IF(ISNUMBER(SEARCH("Consensus meeting inputs",'Data extraction-synthesis'!J22)),"X","") ->  | I36: =IF(ISNUMBER(SEARCH("Available data",'Data extraction-synthesis'!J22)),"X","") ->  | J36: =IF(ISNUMBER(SEARCH("Field observations",'Data extraction-synthesis'!J22)),"X","") ->  | K36: =IF(ISNUMBER(SEARCH("Laboratory evaluations",'Data extraction-synthesis'!J22)),"X","") ->  | L36: =IF(ISNUMBER(SEARCH("Models",'Data extraction-synthesis'!J22)),"X","") ->  | M36: =IF(ISNUMBER(SEARCH("Early usability studies",'Data extraction-synthesis'!J22)),"X","") ->  | N36: =IF(ISNUMBER(SEARCH("No input sources reported",'Data extraction-synthesis'!J23)),"X","") -> X | O36: =IF(ISNUMBER(SEARCH("N/A",'Data extraction-synthesis'!J22)),"X","") ->  | P36: N/A
A37: UNICEF | B37: Zika Virus Diagnostics: Target Product Profiles & Supply Update | C37: =IF(ISNUMBER(SEARCH("Literature",'Data extraction-synthesis'!J31)),"X","") ->  | D37: =IF(ISNUMBER(SEARCH("Industry standard",'Data extraction-synthesis'!J31)),"X","") ->  | E37: =IF(ISNUMBER(SEARCH("Guidelines",'Data extraction-synthesis'!J31)),"X","") ->  | F37: =IF(ISNUMBER(SEARCH("Interviews with experts",'Data extraction-synthesis'!J31)),"X","") ->  | G37: =IF(ISNUMBER(SEARCH("Surveys with experts/expert opinion",'Data extraction-synthesis'!J31)),"X","") ->  | H37: =IF(ISNUMBER(SEARCH("Consensus meeting inputs",'Data extraction-synthesis'!J31)),"X","") ->  | I37: =IF(ISNUMBER(SEARCH("Available data",'Data extraction-synthesis'!J31)),"X","") ->  | J37: =IF(ISNUMBER(SEARCH("Field observations",'Data extraction-synthesis'!J31)),"X","") ->  | K37: =IF(ISNUMBER(SEARCH("Laboratory evaluations",'Data extraction-synthesis'!J31)),"X","") ->  | L37: =IF(ISNUMBER(SEARCH("Models",'Data extraction-synthesis'!J31)),"X","") ->  | M37: =IF(ISNUMBER(SEARCH("Early usability studies",'Data extraction-synthesis'!J31)),"X","") ->  | N37: =IF(ISNUMBER(SEARCH("No input sources reported",'Data extraction-synthesis'!J31)),"X","") ->  | O37: =IF(ISNUMBER(SEARCH("N/A",'Data extraction-synthesis'!J31)),"X","") -> X | P37: N/A
A38: UNICEF | B38: Pneumonia Acute Respiratory Infection Diagnostic Aid-Target Product Profile Introduction | C38: =IF(ISNUMBER(SEARCH("Literature",'Data extraction-synthesis'!J32)),"X","") ->  | D38: =IF(ISNUMBER(SEARCH("Industry standard",'Data extraction-synthesis'!J32)),"X","") ->  | E38: =IF(ISNUMBER(SEARCH("Guidelines",'Data extraction-synthesis'!J32)),"X","") ->  | F38: =IF(ISNUMBER(SEARCH("Interviews with experts",'Data extraction-synthesis'!J32)),"X","") ->  | G38: =IF(ISNUMBER(SEARCH("Surveys with experts/expert opinion",'Data extraction-synthesis'!J32)),"X","") ->  | H38: =IF(ISNUMBER(SEARCH("Consensus meeting inputs",'Data extraction-synthesis'!J32)),"X","") ->  | I38: =IF(ISNUMBER(SEARCH("Available data",'Data extraction-synthesis'!J32)),"X","") ->  | J38: =IF(ISNUMBER(SEARCH("Field observations",'Data extraction-synthesis'!J32)),"X","") ->  | K38: =IF(ISNUMBER(SEARCH("Laboratory evaluations",'Data extraction-synthesis'!J32)),"X","") ->  | L38: =IF(ISNUMBER(SEARCH("Models",'Data extraction-synthesis'!J32)),"X","") ->  | M38: =IF(ISNUMBER(SEARCH("Early usability studies",'Data extraction-synthesis'!J32)),"X","") ->  | N38: =IF(ISNUMBER(SEARCH("No input sources reported",'Data extraction-synthesis'!J32)),"X","") ->  | O38: =IF(ISNUMBER(SEARCH("N/A",'Data extraction-synthesis'!J32)),"X","") -> X | P38: N/A
A39: Utzinger, J. B., S. L.: van Lieshout, L.: van Dam, G. J.: Knopp, S | B39: New diagnostic tools in schistosomiasis | C39: =IF(ISNUMBER(SEARCH("Literature",'Data extraction-synthesis'!J30)),"X","") ->  | D39: =IF(ISNUMBER(SEARCH("Industry standard",'Data extraction-synthesis'!J30)),"X","") ->  | E39: =IF(ISNUMBER(SEARCH("Guidelines",'Data extraction-synthesis'!J30)),"X","") ->  | F39: =IF(ISNUMBER(SEARCH("Interviews with experts",'Data extraction-synthesis'!J30)),"X","") ->  | G39: =IF(ISNUMBER(SEARCH("Surveys with experts/expert opinion",'Data extraction-synthesis'!J30)),"X","") ->  | H39: =IF(ISNUMBER(SEARCH("Consensus meeting inputs",'Data extraction-synthesis'!J30)),"X","") ->  | I39: =IF(ISNUMBER(SEARCH("Available data",'Data extraction-synthesis'!J30)),"X","") ->  | J39: =IF(ISNUMBER(SEARCH("Field observations",'Data extraction-synthesis'!J30)),"X","") ->  | K39: =IF(ISNUMBER(SEARCH("Laboratory evaluations",'Data extraction-synthesis'!J30)),"X","") ->  | L39: =IF(ISNUMBER(SEARCH("Models",'Data extraction-synthesis'!J30)),"X","") ->  | M39: =IF(ISNUMBER(SEARCH("Early usability studies",'Data extraction-synthesis'!J30)),"X","") ->  | N39: =IF(ISNUMBER(SEARCH("No input sources reported",'Data extraction-synthesis'!J30)),"X","") ->  | O39: =IF(ISNUMBER(SEARCH("N/A",'Data extraction-synthesis'!J30)),"X","") -> X | P39: N/A
A40: WHO | B40: High-priority target product profile for new tubercolosis diagnostics: report of a consensus meeting | C40: =IF(ISNUMBER(SEARCH("Literature",'Data extraction-synthesis'!J24)),"X","") -> X | D40: =IF(ISNUMBER(SEARCH("Industry standard",'Data extraction-synthesis'!J24)),"X","") ->  | E40: =IF(ISNUMBER(SEARCH("Guidelines",'Data extraction-synthesis'!J24)),"X","") ->  | F40: =IF(ISNUMBER(SEARCH("Interviews with experts",'Data extraction-synthesis'!J24)),"X","") ->  | G40: =IF(ISNUMBER(SEARCH("Surveys with experts/expert opinion",'Data extraction-synthesis'!J24)),"X","") -> X | H40: =IF(ISNUMBER(SEARCH("Consensus meeting inputs",'Data extraction-synthesis'!J24)),"X","") ->  | I40: =IF(ISNUMBER(SEARCH("Available data",'Data extraction-synthesis'!J24)),"X","") ->  | J40: =IF(ISNUMBER(SEARCH("Field observations",'Data extraction-synthesis'!J24)),"X","") ->  | K40: =IF(ISNUMBER(SEARCH("Laboratory evaluations",'Data extraction-synthesis'!J24)),"X","") ->  | L40: =IF(ISNUMBER(SEARCH("Models",'Data extraction-synthesis'!J24)),"X","") -> X | M40: =IF(ISNUMBER(SEARCH("Early usability studies",'Data extraction-synthesis'!J24)),"X","") ->  | N40: =IF(ISNUMBER(SEARCH("No input sources reported",'Data extraction-synthesis'!J24)),"X","") ->  | O40: =IF(ISNUMBER(SEARCH("N/A",'Data extraction-synthesis'!J24)),"X","") ->  | P40: YES
A41: WHO | B41: Development of a Target Product Profile (TPP) and framework for evaluation for a test predicting progression from tubercolosis infection to active disease | C41: =IF(ISNUMBER(SEARCH("Literature",'Data extraction-synthesis'!J25)),"X","") ->  | D41: =IF(ISNUMBER(SEARCH("Industry standard",'Data extraction-synthesis'!J25)),"X","") ->  | E41: =IF(ISNUMBER(SEARCH("Guidelines",'Data extraction-synthesis'!J25)),"X","") ->  | F41: =IF(ISNUMBER(SEARCH("Interviews with experts",'Data extraction-synthesis'!J25)),"X","") ->  | G41: =IF(ISNUMBER(SEARCH("Surveys with experts/expert opinion",'Data extraction-synthesis'!J25)),"X","") ->  | H41: =IF(ISNUMBER(SEARCH("Consensus meeting inputs",'Data extraction-synthesis'!J25)),"X","") ->  | I41: =IF(ISNUMBER(SEARCH("Available data",'Data extraction-synthesis'!J25)),"X","") ->  | J41: =IF(ISNUMBER(SEARCH("Field observations",'Data extraction-synthesis'!J25)),"X","") ->  | K41: =IF(ISNUMBER(SEARCH("Laboratory evaluations",'Data extraction-synthesis'!J25)),"X","") ->  | L41: =IF(ISNUMBER(SEARCH("Models",'Data extraction-synthesis'!J25)),"X","") ->  | M41: =IF(ISNUMBER(SEARCH("Early usability studies",'Data extraction-synthesis'!J25)),"X","") ->  | N41: =IF(ISNUMBER(SEARCH("No input sources reported",'Data extraction-synthesis'!J25)),"X","") ->  | O41: =IF(ISNUMBER(SEARCH("N/A",'Data extraction-synthesis'!J25)),"X","") -> X | P41: N/A
A42: WHO | B42: Specifications for a rapid diagnostic test for meningitis African meningitis belt/ Target product profile for the development of a new generation of rapid test for the diagnosis of bacterial meningitis | C42: =IF(ISNUMBER(SEARCH("Literature",'Data extraction-synthesis'!J26)),"X","") ->  | D42: =IF(ISNUMBER(SEARCH("Industry standard",'Data extraction-synthesis'!J26)),"X","") ->  | E42: =IF(ISNUMBER(SEARCH("Guidelines",'Data extraction-synthesis'!J26)),"X","") ->  | F42: =IF(ISNUMBER(SEARCH("Interviews with experts",'Data extraction-synthesis'!J26)),"X","") ->  | G42: =IF(ISNUMBER(SEARCH("Surveys with experts/expert opinion",'Data extraction-synthesis'!J26)),"X","") ->  | H42: =IF(ISNUMBER(SEARCH("Consensus meeting inputs",'Data extraction-synthesis'!J26)),"X","") ->  | I42: =IF(ISNUMBER(SEARCH("Available data",'Data extraction-synthesis'!J26)),"X","") ->  | J42: =IF(ISNUMBER(SEARCH("Field observations",'Data extraction-synthesis'!J26)),"X","") ->  | K42: =IF(ISNUMBER(SEARCH("Laboratory evaluations",'Data extraction-synthesis'!J26)),"X","") ->  | L42: =IF(ISNUMBER(SEARCH("Models",'Data extraction-synthesis'!J26)),"X","") ->  | M42: =IF(ISNUMBER(SEARCH("Early usability studies",'Data extraction-synthesis'!J26)),"X","") ->  | N42: =IF(ISNUMBER(SEARCH("No input sources reported",'Data extraction-synthesis'!J26)),"X","") -> X | O42: =IF(ISNUMBER(SEARCH("N/A",'Data extraction-synthesis'!J26)),"X","") ->  | P42: N/A
A43: WHO | B43: Target Product Profile for Zaire ebolavirus rapid,simple test to be used in the control of the Ebola outbreak in West Africa | C43: =IF(ISNUMBER(SEARCH("Literature",'Data extraction-synthesis'!J27)),"X","") ->  | D43: =IF(ISNUMBER(SEARCH("Industry standard",'Data extraction-synthesis'!J27)),"X","") ->  | E43: =IF(ISNUMBER(SEARCH("Guidelines",'Data extraction-synthesis'!J27)),"X","") ->  | F43: =IF(ISNUMBER(SEARCH("Interviews with experts",'Data extraction-synthesis'!J27)),"X","") ->  | G43: =IF(ISNUMBER(SEARCH("Surveys with experts/expert opinion",'Data extraction-synthesis'!J27)),"X","") ->  | H43: =IF(ISNUMBER(SEARCH("Consensus meeting inputs",'Data extraction-synthesis'!J27)),"X","") ->  | I43: =IF(ISNUMBER(SEARCH("Available data",'Data extraction-synthesis'!J27)),"X","") ->  | J43: =IF(ISNUMBER(SEARCH("Field observations",'Data extraction-synthesis'!J27)),"X","") ->  | K43: =IF(ISNUMBER(SEARCH("Laboratory evaluations",'Data extraction-synthesis'!J27)),"X","") ->  | L43: =IF(ISNUMBER(SEARCH("Models",'Data extraction-synthesis'!J27)),"X","") ->  | M43: =IF(ISNUMBER(SEARCH("Early usability studies",'Data extraction-synthesis'!J27)),"X","") ->  | N43: =IF(ISNUMBER(SEARCH("No input sources reported",'Data extraction-synthesis'!J27)),"X","") -> X | O43: =IF(ISNUMBER(SEARCH("N/A",'Data extraction-synthesis'!J27)),"X","") ->  | P43: N/A
A44: WHO | B44: Report of WHO-FIND meeting on diagnostics for Buruli ulcer | C44: =IF(ISNUMBER(SEARCH("Literature",'Data extraction-synthesis'!J28)),"X","") ->  | D44: =IF(ISNUMBER(SEARCH("Industry standard",'Data extraction-synthesis'!J28)),"X","") ->  | E44: =IF(ISNUMBER(SEARCH("Guidelines",'Data extraction-synthesis'!J28)),"X","") ->  | F44: =IF(ISNUMBER(SEARCH("Interviews with experts",'Data extraction-synthesis'!J28)),"X","") ->  | G44: =IF(ISNUMBER(SEARCH("Surveys with experts/expert opinion",'Data extraction-synthesis'!J28)),"X","") ->  | H44: =IF(ISNUMBER(SEARCH("Consensus meeting inputs",'Data extraction-synthesis'!J28)),"X","") ->  | I44: =IF(ISNUMBER(SEARCH("Available data",'Data extraction-synthesis'!J28)),"X","") ->  | J44: =IF(ISNUMBER(SEARCH("Field observations",'Data extraction-synthesis'!J28)),"X","") ->  | K44: =IF(ISNUMBER(SEARCH("Laboratory evaluations",'Data extraction-synthesis'!J28)),"X","") ->  | L44: =IF(ISNUMBER(SEARCH("Models",'Data extraction-synthesis'!J28)),"X","") ->  | M44: =IF(ISNUMBER(SEARCH("Early usability studies",'Data extraction-synthesis'!J28)),"X","") ->  | N44: =IF(ISNUMBER(SEARCH("No input sources reported",'Data extraction-synthesis'!J28)),"X","") ->  | O44: =IF(ISNUMBER(SEARCH("N/A",'Data extraction-synthesis'!J28)),"X","") -> X | P44: N/A
A45: WHO | B45: Taenia solium taeniasis/cysticercosis diagnostic tools. Report of a stakeholder meeting | C45: =IF(ISNUMBER(SEARCH("Literature",'Data extraction-synthesis'!J29)),"X","") ->  | D45: =IF(ISNUMBER(SEARCH("Industry standard",'Data extraction-synthesis'!J29)),"X","") ->  | E45: =IF(ISNUMBER(SEARCH("Guidelines",'Data extraction-synthesis'!J29)),"X","") ->  | F45: =IF(ISNUMBER(SEARCH("Interviews with experts",'Data extraction-synthesis'!J29)),"X","") ->  | G45: =IF(ISNUMBER(SEARCH("Surveys with experts/expert opinion",'Data extraction-synthesis'!J29)),"X","") ->  | H45: =IF(ISNUMBER(SEARCH("Consensus meeting inputs",'Data extraction-synthesis'!J29)),"X","") ->  | I45: =IF(ISNUMBER(SEARCH("Available data",'Data extraction-synthesis'!J29)),"X","") ->  | J45: =IF(ISNUMBER(SEARCH("Field observations",'Data extraction-synthesis'!J29)),"X","") ->  | K45: =IF(ISNUMBER(SEARCH("Laboratory evaluations",'Data extraction-synthesis'!J29)),"X","") ->  | L45: =IF(ISNUMBER(SEARCH("Models",'Data extraction-synthesis'!J29)),"X","") ->  | M45: =IF(ISNUMBER(SEARCH("Early usability studies",'Data extraction-synthesis'!J29)),"X","") ->  | N45: =IF(ISNUMBER(SEARCH("No input sources reported",'Data extraction-synthesis'!J29)),"X","") ->  | O45: =IF(ISNUMBER(SEARCH("N/A",'Data extraction-synthesis'!J29)),"X","") -> X | P45: N/A
A46: WHO, FIND, Medecins sans Frontiers | B46: A Multiplex Multi-Analyte Diagnostic Platform | C46: =IF(ISNUMBER(SEARCH("Literature",'Data extraction-synthesis'!J45)),"X","") ->  | D46: =IF(ISNUMBER(SEARCH("Industry standard",'Data extraction-synthesis'!J45)),"X","") ->  | E46: =IF(ISNUMBER(SEARCH("Guidelines",'Data extraction-synthesis'!J45)),"X","") ->  | F46: =IF(ISNUMBER(SEARCH("Interviews with experts",'Data extraction-synthesis'!J45)),"X","") ->  | G46: =IF(ISNUMBER(SEARCH("Surveys with experts/expert opinion",'Data extraction-synthesis'!J45)),"X","") ->  | H46: =IF(ISNUMBER(SEARCH("Consensus meeting inputs",'Data extraction-synthesis'!J45)),"X","") ->  | I46: =IF(ISNUMBER(SEARCH("Available data",'Data extraction-synthesis'!J45)),"X","") ->  | J46: =IF(ISNUMBER(SEARCH("Field observations",'Data extraction-synthesis'!J45)),"X","") ->  | K46: =IF(ISNUMBER(SEARCH("Laboratory evaluations",'Data extraction-synthesis'!J45)),"X","") ->  | L46: =IF(ISNUMBER(SEARCH("Models",'Data extraction-synthesis'!J45)),"X","") ->  | M46: =IF(ISNUMBER(SEARCH("Early usability studies",'Data extraction-synthesis'!J45)),"X","") ->  | N46: =IF(ISNUMBER(SEARCH("No input sources reported",'Data extraction-synthesis'!J45)),"X","") -> X | O46: =IF(ISNUMBER(SEARCH("N/A",'Data extraction-synthesis'!J45)),"X","") ->  | P46: N/A
B47: TOT | C47: =COUNTIF(C3:C46,"X") -> 12 | D47: 0 | E47: 0 | F47: 0 | G47: 4 | H47: 0 | I47: 2 | J47: 0 | K47: 1 | L47: 2 | M47: 1 | N47: 18 | O47: 9
C48: =C47/44 -> 27% | D48: 0% | E48: 0% | F48: 0% | G48: 9% | H48: 0% | I48: 5% | J48: 0% | K48: 2% | L48: 5% | M48: 2% | N48: 41% | O48: 20%

Sheet Input source diagn accuracy
C1: Input source to populate diagnostic accuracy
A2: Authors | B2: Article title | C2: Literature | D2: Industry standard | E2: Guidelines | F2: Interviews with experts | G2: Surveys with experts/expert opinion | H2: Consensus meeting inputs | I2: Available data | J2: Field observations | K2: Laboratory evaluations | L2: Models | M2: Early usability studies | N2: No input sources reported | O2: N/A (no reference to specific literature) | R2: More than 1 input source? | S2: % STUDIES WITH 1 INPUT SOURCE | T2: % STUDIES WITH >1 INPUT SOURCE
A3: Chua, A. P., I.: Nuebling, C. M.: Wood, D.: Moussy, F. | B3: Update on Zika Diagnostic Tests and WHO's Related Activities | C3: =IF(ISNUMBER(SEARCH("Literature",'Data extraction-synthesis'!J2)),"X","") ->  | D3: =IF(ISNUMBER(SEARCH("Industry standard",'Data extraction-synthesis'!J2)),"X","") ->  | E3: =IF(ISNUMBER(SEARCH("Guidelines",'Data extraction-synthesis'!J2)),"X","") ->  | F3: =IF(ISNUMBER(SEARCH("Interviews with experts",'Data extraction-synthesis'!J2)),"X","") ->  | G3: =IF(ISNUMBER(SEARCH("Surveys with experts/expert opinion",'Data extraction-synthesis'!J2)),"X","") ->  | H3: =IF(ISNUMBER(SEARCH("Consensus meeting inputs",'Data extraction-synthesis'!J2)),"X","") ->  | I3: =IF(ISNUMBER(SEARCH("Available data",'Data extraction-synthesis'!J2)),"X","") ->  | J3: =IF(ISNUMBER(SEARCH("Field observations",'Data extraction-synthesis'!J2)),"X","") ->  | K3: =IF(ISNUMBER(SEARCH("Laboratory evaluations",'Data extraction-synthesis'!J2)),"X","") ->  | L3: =IF(ISNUMBER(SEARCH("Models",'Data extraction-synthesis'!J2)),"X","") ->  | M3: =IF(ISNUMBER(SEARCH("Early usability studies",'Data extraction-synthesis'!J2)),"X","") ->  | N3: =IF(ISNUMBER(SEARCH("No input sources reported",'Data extraction-synthesis'!J2)),"X","") -> X | O3: =IF(ISNUMBER(SEARCH("N/A",'Data extraction-synthesis'!J2)),"X","") ->  | R3: =IF(OR(O3="X",N3="X"),"N/A",IF((COUNTIF(C3:O3,"X"))>1,"YES","NO")) -> N/A | S3: =COUNTIF(R3:R46,"NO")/44 -> 23% | T3: =COUNTIF(R3:R46,"YES")/44 -> 18%
A4: Denkinger, C. M. D., D.: Schito, M.: Wells, W.: Cobelens, F.: Pai, M.: Zignol, M.: Cirillo, D. M.: Alland, D.: Casenghi, M.: Gallarda, J.: Boehme, C. C.: Perkins, M. D | B4: Target Product Profile of a Molecular Drug-Susceptibility Test for Use in Microscopy Centers | C4: =IF(ISNUMBER(SEARCH("Literature",'Data extraction-synthesis'!J3)),"X","") -> X | D4: =IF(ISNUMBER(SEARCH("Industry standard",'Data extraction-synthesis'!J3)),"X","") ->  | E4: =IF(ISNUMBER(SEARCH("Guidelines",'Data extraction-synthesis'!J3)),"X","") ->  | F4: =IF(ISNUMBER(SEARCH("Interviews with experts",'Data extraction-synthesis'!J3)),"X","") ->  | G4: =IF(ISNUMBER(SEARCH("Surveys with experts/expert opinion",'Data extraction-synthesis'!J3)),"X","") ->  | H4: =IF(ISNUMBER(SEARCH("Consensus meeting inputs",'Data extraction-synthesis'!J3)),"X","") ->  | I4: =IF(ISNUMBER(SEARCH("Available data",'Data extraction-synthesis'!J3)),"X","") ->  | J4: =IF(ISNUMBER(SEARCH("Field observations",'Data extraction-synthesis'!J3)),"X","") ->  | K4: =IF(ISNUMBER(SEARCH("Laboratory evaluations",'Data extraction-synthesis'!J3)),"X","") ->  | L4: =IF(ISNUMBER(SEARCH("Models",'Data extraction-synthesis'!J3)),"X","") -> X | M4: =IF(ISNUMBER(SEARCH("Early usability studies",'Data extraction-synthesis'!J3)),"X","") ->  | N4: =IF(ISNUMBER(SEARCH("No input sources reported",'Data extraction-synthesis'!J3)),"X","") ->  | O4: =IF(ISNUMBER(SEARCH("N/A",'Data extraction-synthesis'!J3)),"X","") ->  | R4: YES
A5: Denkinger, C. M. K., Sandra V.: Cirillo, Daniela Maria: Casenghi, Martina: Shinnick, Thomas: Weyer, Karin: Gilpin, Chris: Boehme, Catharina C.: Schito, Marco: Kimerling, Michael: Pai, Madhuka | B5: Defining the needs for next generation assays for tuberculosis | C5: =IF(ISNUMBER(SEARCH("Literature",'Data extraction-synthesis'!J4)),"X","") -> X | D5: =IF(ISNUMBER(SEARCH("Industry standard",'Data extraction-synthesis'!J4)),"X","") ->  | E5: =IF(ISNUMBER(SEARCH("Guidelines",'Data extraction-synthesis'!J4)),"X","") ->  | F5: =IF(ISNUMBER(SEARCH("Interviews with experts",'Data extraction-synthesis'!J4)),"X","") ->  | G5: =IF(ISNUMBER(SEARCH("Surveys with experts/expert opinion",'Data extraction-synthesis'!J4)),"X","") ->  | H5: =IF(ISNUMBER(SEARCH("Consensus meeting inputs",'Data extraction-synthesis'!J4)),"X","") ->  | I5: =IF(ISNUMBER(SEARCH("Available data",'Data extraction-synthesis'!J4)),"X","") ->  | J5: =IF(ISNUMBER(SEARCH("Field observations",'Data extraction-synthesis'!J4)),"X","") ->  | K5: =IF(ISNUMBER(SEARCH("Laboratory evaluations",'Data extraction-synthesis'!J4)),"X","") ->  | L5: =IF(ISNUMBER(SEARCH("Models",'Data extraction-synthesis'!J4)),"X","") -> X | M5: =IF(ISNUMBER(SEARCH("Early usability studies",'Data extraction-synthesis'!J4)),"X","") ->  | N5: =IF(ISNUMBER(SEARCH("No input sources reported",'Data extraction-synthesis'!J4)),"X","") ->  | O5: =IF(ISNUMBER(SEARCH("N/A",'Data extraction-synthesis'!J4)),"X","") ->  | R5: YES
A6: DIAMETER Project, PATH | B6: Point-of-Care Malaria Infection Detection Test For rapid detection of low-density, subclinical malaria infections | D6: =IF(ISNUMBER(SEARCH("Industry standard",'Data extraction-synthesis'!J5)),"X","") ->  | E6: =IF(ISNUMBER(SEARCH("Guidelines",'Data extraction-synthesis'!J5)),"X","") ->  | F6: =IF(ISNUMBER(SEARCH("Interviews with experts",'Data extraction-synthesis'!J5)),"X","") ->  | H6: =IF(ISNUMBER(SEARCH("Consensus meeting inputs",'Data extraction-synthesis'!J5)),"X","") ->  | I6: =IF(ISNUMBER(SEARCH("Available data",'Data extraction-synthesis'!J5)),"X","") ->  | J6: =IF(ISNUMBER(SEARCH("Field observations",'Data extraction-synthesis'!J5)),"X","") ->  | K6: =IF(ISNUMBER(SEARCH("Laboratory evaluations",'Data extraction-synthesis'!J5)),"X","") ->  | L6: =IF(ISNUMBER(SEARCH("Models",'Data extraction-synthesis'!J5)),"X","") ->  | M6: =IF(ISNUMBER(SEARCH("Early usability studies",'Data extraction-synthesis'!J5)),"X","") ->  | N6: x | O6: =IF(ISNUMBER(SEARCH("N/A",'Data extraction-synthesis'!J5)),"X","") ->  | R6: N/A
A7: Ding, X. C. A., Maria Paz: Baird, J. Kevin: Cheng, Qin: Cunningham, Jane: Dhorda, Mehul: Drakeley, Chris: Felger, Ingrid: Gamboa, Dionicia: Harbers, Matthias: Herrera, Socrates: Lucchi, Naomi: Mayor, Alfredo: Mueller, Ivo: Sattabongkot, Jetsumon: Ratsimbason, Arsène: Richards, Jack: Tanner, Marcel: González, Iveth J. | B7: Defining the next generation of Plasmodium vivax diagnostic tests for control and elimination: Target product profiles | C7: =IF(ISNUMBER(SEARCH("Literature",'Data extraction-synthesis'!J6)),"X","") -> X | D7: =IF(ISNUMBER(SEARCH("Industry standard",'Data extraction-synthesis'!J6)),"X","") ->  | E7: =IF(ISNUMBER(SEARCH("Guidelines",'Data extraction-synthesis'!J6)),"X","") ->  | F7: =IF(ISNUMBER(SEARCH("Interviews with experts",'Data extraction-synthesis'!J6)),"X","") ->  | G7: =IF(ISNUMBER(SEARCH("Surveys with experts/expert opinion",'Data extraction-synthesis'!J6)),"X","") ->  | H7: =IF(ISNUMBER(SEARCH("Consensus meeting inputs",'Data extraction-synthesis'!J6)),"X","") ->  | I7: =IF(ISNUMBER(SEARCH("Available data",'Data extraction-synthesis'!J6)),"X","") ->  | J7: =IF(ISNUMBER(SEARCH("Field observations",'Data extraction-synthesis'!J6)),"X","") ->  | K7: =IF(ISNUMBER(SEARCH("Laboratory evaluations",'Data extraction-synthesis'!J6)),"X","") ->  | M7: =IF(ISNUMBER(SEARCH("Early usability studies",'Data extraction-synthesis'!J6)),"X","") ->  | N7: =IF(ISNUMBER(SEARCH("No input sources reported",'Data extraction-synthesis'!J6)),"X","") ->  | O7: =IF(ISNUMBER(SEARCH("N/A",'Data extraction-synthesis'!J6)),"X","") ->  | R7: NO
A8: Dittrich, S. T., B. T.: Moussy, F.: Chua, A.: Zorzet, A.: Tangden, T.: Dolinger, D. L.: Page, A. L.: Crump, J. A.: Valerie, D.: Bassat, Q.: Lubell, Y.: Heinrich, N.: Newton, P. N.: Rodwell, T.: Gonzalez, I. J. | B8: Target Product Profile for a Diagnostic Assay to Differentiate between Bacterial and Non-Bacterial Infections to Guide Antimicrobials Use in Resource-Limited Settings: An Expert Consensus | C8: =IF(ISNUMBER(SEARCH("Literature",'Data extraction-synthesis'!J7)),"X","") ->  | D8: =IF(ISNUMBER(SEARCH("Industry standard",'Data extraction-synthesis'!J7)),"X","") ->  | E8: =IF(ISNUMBER(SEARCH("Guidelines",'Data extraction-synthesis'!J7)),"X","") ->  | F8: =IF(ISNUMBER(SEARCH("Interviews with experts",'Data extraction-synthesis'!J7)),"X","") ->  | G8: =IF(ISNUMBER(SEARCH("Surveys with experts/expert opinion",'Data extraction-synthesis'!J7)),"X","") -> X | H8: =IF(ISNUMBER(SEARCH("Consensus meeting inputs",'Data extraction-synthesis'!J7)),"X","") ->  | I8: =IF(ISNUMBER(SEARCH("Available data",'Data extraction-synthesis'!J7)),"X","") ->  | J8: =IF(ISNUMBER(SEARCH("Field observations",'Data extraction-synthesis'!J7)),"X","") ->  | K8: =IF(ISNUMBER(SEARCH("Laboratory evaluations",'Data extraction-synthesis'!J7)),"X","") ->  | L8: =IF(ISNUMBER(SEARCH("Models",'Data extraction-synthesis'!J7)),"X","") ->  | M8: =IF(ISNUMBER(SEARCH("Early usability studies",'Data extraction-synthesis'!J7)),"X","") ->  | N8: =IF(ISNUMBER(SEARCH("No input sources reported",'Data extraction-synthesis'!J7)),"X","") ->  | O8: =IF(ISNUMBER(SEARCH("N/A",'Data extraction-synthesis'!J7)),"X","") ->  | R8: NO
A9: Donadeu, M. F., A. S.: Olliaro, P. L.: Abela-Ridder, B | B9: Target product profiles for the diagnosis of Taenia solium taeniasis, neurocysticercosis and porcine cysticercosis | C9: =IF(ISNUMBER(SEARCH("Literature",'Data extraction-synthesis'!J16)),"X","") -> X | D9: =IF(ISNUMBER(SEARCH("Industry standard",'Data extraction-synthesis'!J16)),"X","") ->  | E9: =IF(ISNUMBER(SEARCH("Guidelines",'Data extraction-synthesis'!J16)),"X","") ->  | F9: =IF(ISNUMBER(SEARCH("Interviews with experts",'Data extraction-synthesis'!J16)),"X","") ->  | G9: =IF(ISNUMBER(SEARCH("Surveys with experts/expert opinion",'Data extraction-synthesis'!J16)),"X","") -> X | H9: =IF(ISNUMBER(SEARCH("Consensus meeting inputs",'Data extraction-synthesis'!J16)),"X","") ->  | I9: =IF(ISNUMBER(SEARCH("Available data",'Data extraction-synthesis'!J16)),"X","") ->  | J9: =IF(ISNUMBER(SEARCH("Field observations",'Data extraction-synthesis'!J16)),"X","") ->  | K9: =IF(ISNUMBER(SEARCH("Laboratory evaluations",'Data extraction-synthesis'!J16)),"X","") ->  | L9: =IF(ISNUMBER(SEARCH("Models",'Data extraction-synthesis'!J16)),"X","") ->  | M9: =IF(ISNUMBER(SEARCH("Early usability studies",'Data extraction-synthesis'!J16)),"X","") ->  | N9: =IF(ISNUMBER(SEARCH("No input sources reported",'Data extraction-synthesis'!J16)),"X","") ->  | O9: =IF(ISNUMBER(SEARCH("N/A",'Data extraction-synthesis'!J16)),"X","") ->  | R9: YES
A10: Ebels, K. B. C., C.: Crudder, C. H.: McGray, S.: Magnuson, K.: Tietje, K.: Labarre, P | B10: Incorporating user needs into product development for improved infection detection for malaria elimination programs | C10: =IF(ISNUMBER(SEARCH("Literature",'Data extraction-synthesis'!J40)),"X","") ->  | D10: =IF(ISNUMBER(SEARCH("Industry standard",'Data extraction-synthesis'!J40)),"X","") ->  | E10: =IF(ISNUMBER(SEARCH("Guidelines",'Data extraction-synthesis'!J40)),"X","") ->  | F10: =IF(ISNUMBER(SEARCH("Interviews with experts",'Data extraction-synthesis'!J40)),"X","") ->  | G10: =IF(ISNUMBER(SEARCH("Surveys with experts/expert opinion",'Data extraction-synthesis'!J40)),"X","") ->  | H10: =IF(ISNUMBER(SEARCH("Consensus meeting inputs",'Data extraction-synthesis'!J40)),"X","") ->  | I10: =IF(ISNUMBER(SEARCH("Available data",'Data extraction-synthesis'!J40)),"X","") ->  | J10: =IF(ISNUMBER(SEARCH("Field observations",'Data extraction-synthesis'!J40)),"X","") ->  | K10: =IF(ISNUMBER(SEARCH("Laboratory evaluations",'Data extraction-synthesis'!J40)),"X","") ->  | L10: =IF(ISNUMBER(SEARCH("Models",'Data extraction-synthesis'!J40)),"X","") ->  | M10: =IF(ISNUMBER(SEARCH("Early usability studies",'Data extraction-synthesis'!J40)),"X","") ->  | N10: =IF(ISNUMBER(SEARCH("No input sources reported",'Data extraction-synthesis'!J40)),"X","") ->  | O10: =IF(ISNUMBER(SEARCH("N/A",'Data extraction-synthesis'!J40)),"X","") -> X | R10: N/A
A11: FIND | B11: Target Product Profile for Tests for Recent HIV Infection | C11: =IF(ISNUMBER(SEARCH("Literature",'Data extraction-synthesis'!J17)),"X","") ->  | D11: =IF(ISNUMBER(SEARCH("Industry standard",'Data extraction-synthesis'!J17)),"X","") ->  | E11: =IF(ISNUMBER(SEARCH("Guidelines",'Data extraction-synthesis'!J17)),"X","") ->  | F11: =IF(ISNUMBER(SEARCH("Interviews with experts",'Data extraction-synthesis'!J17)),"X","") ->  | G11: =IF(ISNUMBER(SEARCH("Surveys with experts/expert opinion",'Data extraction-synthesis'!J17)),"X","") ->  | H11: =IF(ISNUMBER(SEARCH("Consensus meeting inputs",'Data extraction-synthesis'!J17)),"X","") ->  | I11: =IF(ISNUMBER(SEARCH("Available data",'Data extraction-synthesis'!J17)),"X","") ->  | J11: =IF(ISNUMBER(SEARCH("Field observations",'Data extraction-synthesis'!J17)),"X","") ->  | K11: =IF(ISNUMBER(SEARCH("Laboratory evaluations",'Data extraction-synthesis'!J17)),"X","") ->  | L11: =IF(ISNUMBER(SEARCH("Models",'Data extraction-synthesis'!J17)),"X","") ->  | M11: =IF(ISNUMBER(SEARCH("Early usability studies",'Data extraction-synthesis'!J17)),"X","") ->  | N11: =IF(ISNUMBER(SEARCH("No input sources reported",'Data extraction-synthesis'!J17)),"X","") -> X | O11: =IF(ISNUMBER(SEARCH("N/A",'Data extraction-synthesis'!J17)),"X","") ->  | R11: N/A
A12: FIND | B12: Target Product Profile: Rapid test for diagnosis of malaria and screening for hyman African trypanosomiasis (HAT) | C12: =IF(ISNUMBER(SEARCH("Literature",'Data extraction-synthesis'!J18)),"X","") ->  | D12: =IF(ISNUMBER(SEARCH("Industry standard",'Data extraction-synthesis'!J18)),"X","") ->  | E12: =IF(ISNUMBER(SEARCH("Guidelines",'Data extraction-synthesis'!J18)),"X","") ->  | F12: =IF(ISNUMBER(SEARCH("Interviews with experts",'Data extraction-synthesis'!J18)),"X","") ->  | G12: =IF(ISNUMBER(SEARCH("Surveys with experts/expert opinion",'Data extraction-synthesis'!J18)),"X","") ->  | H12: =IF(ISNUMBER(SEARCH("Consensus meeting inputs",'Data extraction-synthesis'!J18)),"X","") ->  | I12: =IF(ISNUMBER(SEARCH("Available data",'Data extraction-synthesis'!J18)),"X","") ->  | J12: =IF(ISNUMBER(SEARCH("Field observations",'Data extraction-synthesis'!J18)),"X","") ->  | K12: =IF(ISNUMBER(SEARCH("Laboratory evaluations",'Data extraction-synthesis'!J18)),"X","") ->  | L12: =IF(ISNUMBER(SEARCH("Models",'Data extraction-synthesis'!J18)),"X","") ->  | M12: =IF(ISNUMBER(SEARCH("Early usability studies",'Data extraction-synthesis'!J18)),"X","") ->  | N12: =IF(ISNUMBER(SEARCH("No input sources reported",'Data extraction-synthesis'!J18)),"X","") -> X | O12: =IF(ISNUMBER(SEARCH("N/A",'Data extraction-synthesis'!J18)),"X","") ->  | R12: N/A
A13: FIND | B13: Target Product Profile: Screening test for human African trypanosomiasis (HAT) | C13: =IF(ISNUMBER(SEARCH("Literature",'Data extraction-synthesis'!J41)),"X","") ->  | D13: =IF(ISNUMBER(SEARCH("Industry standard",'Data extraction-synthesis'!J41)),"X","") ->  | E13: =IF(ISNUMBER(SEARCH("Guidelines",'Data extraction-synthesis'!J41)),"X","") ->  | F13: =IF(ISNUMBER(SEARCH("Interviews with experts",'Data extraction-synthesis'!J41)),"X","") ->  | G13: =IF(ISNUMBER(SEARCH("Surveys with experts/expert opinion",'Data extraction-synthesis'!J41)),"X","") ->  | H13: =IF(ISNUMBER(SEARCH("Consensus meeting inputs",'Data extraction-synthesis'!J41)),"X","") ->  | I13: =IF(ISNUMBER(SEARCH("Available data",'Data extraction-synthesis'!J41)),"X","") ->  | J13: =IF(ISNUMBER(SEARCH("Field observations",'Data extraction-synthesis'!J41)),"X","") ->  | K13: =IF(ISNUMBER(SEARCH("Laboratory evaluations",'Data extraction-synthesis'!J41)),"X","") ->  | L13: =IF(ISNUMBER(SEARCH("Models",'Data extraction-synthesis'!J41)),"X","") ->  | M13: =IF(ISNUMBER(SEARCH("Early usability studies",'Data extraction-synthesis'!J41)),"X","") ->  | N13: =IF(ISNUMBER(SEARCH("No input sources reported",'Data extraction-synthesis'!J41)),"X","") -> X | O13: =IF(ISNUMBER(SEARCH("N/A",'Data extraction-synthesis'!J41)),"X","") ->  | R13: N/A
A14: FIND | B14: High-priority target product profile for hepatitis C diagnosis in decentralized settings: Report of a consensus meeting. | C14: x | D14: =IF(ISNUMBER(SEARCH("Industry standard",'Data extraction-synthesis'!J8)),"X","") ->  | E14: =IF(ISNUMBER(SEARCH("Guidelines",'Data extraction-synthesis'!J8)),"X","") ->  | F14: =IF(ISNUMBER(SEARCH("Interviews with experts",'Data extraction-synthesis'!J8)),"X","") ->  | G14: =IF(ISNUMBER(SEARCH("Surveys with experts/expert opinion",'Data extraction-synthesis'!J8)),"X","") -> X | H14: =IF(ISNUMBER(SEARCH("Consensus meeting inputs",'Data extraction-synthesis'!J8)),"X","") ->  | J14: =IF(ISNUMBER(SEARCH("Field observations",'Data extraction-synthesis'!J8)),"X","") ->  | K14: =IF(ISNUMBER(SEARCH("Laboratory evaluations",'Data extraction-synthesis'!J8)),"X","") ->  | L14: =IF(ISNUMBER(SEARCH("Models",'Data extraction-synthesis'!J8)),"X","") -> X | M14: =IF(ISNUMBER(SEARCH("Early usability studies",'Data extraction-synthesis'!J8)),"X","") ->  | N14: =IF(ISNUMBER(SEARCH("No input sources reported",'Data extraction-synthesis'!J8)),"X","") ->  | O14: =IF(ISNUMBER(SEARCH("N/A",'Data extraction-synthesis'!J8)),"X","") ->  | R14: YES
A15: Gal, M. F., N. A.: Hood, K.: Villacian, J.: Goossens, H.: Watkins, A.: Butler, C. C. | B15: Matching diagnostics development to clinical need: Target product profile development for a point of care test for community-acquired lower respiratory tract infection | C15: =IF(ISNUMBER(SEARCH("Literature",'Data extraction-synthesis'!J9)),"X","") -> X | D15: =IF(ISNUMBER(SEARCH("Industry standard",'Data extraction-synthesis'!J9)),"X","") ->  | E15: =IF(ISNUMBER(SEARCH("Guidelines",'Data extraction-synthesis'!J9)),"X","") ->  | F15: =IF(ISNUMBER(SEARCH("Interviews with experts",'Data extraction-synthesis'!J9)),"X","") ->  | G15: =IF(ISNUMBER(SEARCH("Surveys with experts/expert opinion",'Data extraction-synthesis'!J9)),"X","") ->  | H15: =IF(ISNUMBER(SEARCH("Consensus meeting inputs",'Data extraction-synthesis'!J9)),"X","") ->  | I15: =IF(ISNUMBER(SEARCH("Available data",'Data extraction-synthesis'!J9)),"X","") ->  | J15: =IF(ISNUMBER(SEARCH("Field observations",'Data extraction-synthesis'!J9)),"X","") ->  | K15: =IF(ISNUMBER(SEARCH("Laboratory evaluations",'Data extraction-synthesis'!J9)),"X","") ->  | L15: =IF(ISNUMBER(SEARCH("Models",'Data extraction-synthesis'!J9)),"X","") ->  | M15: =IF(ISNUMBER(SEARCH("Early usability studies",'Data extraction-synthesis'!J9)),"X","") ->  | N15: =IF(ISNUMBER(SEARCH("No input sources reported",'Data extraction-synthesis'!J9)),"X","") ->  | O15: =IF(ISNUMBER(SEARCH("N/A",'Data extraction-synthesis'!J9)),"X","") ->  | R15: NO
A16: Internationa Diagnostics Centre (IDC) | B16: Target Product Profile (TPP): Combined HIV/Syphilis Test | C16: =IF(ISNUMBER(SEARCH("Literature",'Data extraction-synthesis'!J39)),"X","") ->  | D16: =IF(ISNUMBER(SEARCH("Industry standard",'Data extraction-synthesis'!J39)),"X","") ->  | E16: =IF(ISNUMBER(SEARCH("Guidelines",'Data extraction-synthesis'!J39)),"X","") ->  | F16: =IF(ISNUMBER(SEARCH("Interviews with experts",'Data extraction-synthesis'!J39)),"X","") ->  | G16: =IF(ISNUMBER(SEARCH("Surveys with experts/expert opinion",'Data extraction-synthesis'!J39)),"X","") ->  | H16: =IF(ISNUMBER(SEARCH("Consensus meeting inputs",'Data extraction-synthesis'!J39)),"X","") ->  | I16: =IF(ISNUMBER(SEARCH("Available data",'Data extraction-synthesis'!J39)),"X","") ->  | J16: =IF(ISNUMBER(SEARCH("Field observations",'Data extraction-synthesis'!J39)),"X","") ->  | K16: =IF(ISNUMBER(SEARCH("Laboratory evaluations",'Data extraction-synthesis'!J39)),"X","") ->  | L16: =IF(ISNUMBER(SEARCH("Models",'Data extraction-synthesis'!J39)),"X","") ->  | M16: =IF(ISNUMBER(SEARCH("Early usability studies",'Data extraction-synthesis'!J39)),"X","") ->  | N16: =IF(ISNUMBER(SEARCH("No input sources reported",'Data extraction-synthesis'!J39)),"X","") -> X | O16: =IF(ISNUMBER(SEARCH("N/A",'Data extraction-synthesis'!J39)),"X","") ->  | R16: N/A
A17: International Diagnostics Centre (IDC) | B17: Target Product Profile (TPP) - Point-of-Care HIV Viral Load Test | C17: =IF(ISNUMBER(SEARCH("Literature",'Data extraction-synthesis'!J36)),"X","") ->  | D17: =IF(ISNUMBER(SEARCH("Industry standard",'Data extraction-synthesis'!J36)),"X","") ->  | E17: =IF(ISNUMBER(SEARCH("Guidelines",'Data extraction-synthesis'!J36)),"X","") ->  | F17: =IF(ISNUMBER(SEARCH("Interviews with experts",'Data extraction-synthesis'!J36)),"X","") ->  | G17: =IF(ISNUMBER(SEARCH("Surveys with experts/expert opinion",'Data extraction-synthesis'!J36)),"X","") ->  | H17: =IF(ISNUMBER(SEARCH("Consensus meeting inputs",'Data extraction-synthesis'!J36)),"X","") ->  | I17: =IF(ISNUMBER(SEARCH("Available data",'Data extraction-synthesis'!J36)),"X","") ->  | J17: =IF(ISNUMBER(SEARCH("Field observations",'Data extraction-synthesis'!J36)),"X","") ->  | K17: =IF(ISNUMBER(SEARCH("Laboratory evaluations",'Data extraction-synthesis'!J36)),"X","") ->  | L17: =IF(ISNUMBER(SEARCH("Models",'Data extraction-synthesis'!J36)),"X","") ->  | M17: =IF(ISNUMBER(SEARCH("Early usability studies",'Data extraction-synthesis'!J36)),"X","") ->  | N17: =IF(ISNUMBER(SEARCH("No input sources reported",'Data extraction-synthesis'!J36)),"X","") -> X | O17: =IF(ISNUMBER(SEARCH("N/A",'Data extraction-synthesis'!J36)),"X","") ->  | R17: N/A
A18: International Diagnostics Centre (IDC) | B18: Target Product Profile (TPP)- Point of care CD4 test | C18: =IF(ISNUMBER(SEARCH("Literature",'Data extraction-synthesis'!J37)),"X","") ->  | D18: =IF(ISNUMBER(SEARCH("Industry standard",'Data extraction-synthesis'!J37)),"X","") ->  | E18: =IF(ISNUMBER(SEARCH("Guidelines",'Data extraction-synthesis'!J37)),"X","") ->  | F18: =IF(ISNUMBER(SEARCH("Interviews with experts",'Data extraction-synthesis'!J37)),"X","") ->  | G18: =IF(ISNUMBER(SEARCH("Surveys with experts/expert opinion",'Data extraction-synthesis'!J37)),"X","") ->  | H18: =IF(ISNUMBER(SEARCH("Consensus meeting inputs",'Data extraction-synthesis'!J37)),"X","") ->  | I18: =IF(ISNUMBER(SEARCH("Available data",'Data extraction-synthesis'!J37)),"X","") ->  | J18: =IF(ISNUMBER(SEARCH("Field observations",'Data extraction-synthesis'!J37)),"X","") ->  | K18: =IF(ISNUMBER(SEARCH("Laboratory evaluations",'Data extraction-synthesis'!J37)),"X","") ->  | L18: =IF(ISNUMBER(SEARCH("Models",'Data extraction-synthesis'!J37)),"X","") ->  | M18: =IF(ISNUMBER(SEARCH("Early usability studies",'Data extraction-synthesis'!J37)),"X","") ->  | N18: =IF(ISNUMBER(SEARCH("No input sources reported",'Data extraction-synthesis'!J37)),"X","") -> X | O18: =IF(ISNUMBER(SEARCH("N/A",'Data extraction-synthesis'!J37)),"X","") ->  | R18: N/A
A19: International Diagnostics Centre (IDC) | B19: Target Product Profile (TPP): Point of care EID test | C19: =IF(ISNUMBER(SEARCH("Literature",'Data extraction-synthesis'!J38)),"X","") ->  | D19: =IF(ISNUMBER(SEARCH("Industry standard",'Data extraction-synthesis'!J38)),"X","") ->  | E19: =IF(ISNUMBER(SEARCH("Guidelines",'Data extraction-synthesis'!J38)),"X","") ->  | F19: =IF(ISNUMBER(SEARCH("Interviews with experts",'Data extraction-synthesis'!J38)),"X","") ->  | G19: =IF(ISNUMBER(SEARCH("Surveys with experts/expert opinion",'Data extraction-synthesis'!J38)),"X","") ->  | H19: =IF(ISNUMBER(SEARCH("Consensus meeting inputs",'Data extraction-synthesis'!J38)),"X","") ->  | I19: =IF(ISNUMBER(SEARCH("Available data",'Data extraction-synthesis'!J38)),"X","") ->  | J19: =IF(ISNUMBER(SEARCH("Field observations",'Data extraction-synthesis'!J38)),"X","") ->  | K19: =IF(ISNUMBER(SEARCH("Laboratory evaluations",'Data extraction-synthesis'!J38)),"X","") ->  | L19: =IF(ISNUMBER(SEARCH("Models",'Data extraction-synthesis'!J38)),"X","") ->  | M19: =IF(ISNUMBER(SEARCH("Early usability studies",'Data extraction-synthesis'!J38)),"X","") ->  | N19: =IF(ISNUMBER(SEARCH("No input sources reported",'Data extraction-synthesis'!J38)),"X","") -> X | O19: =IF(ISNUMBER(SEARCH("N/A",'Data extraction-synthesis'!J38)),"X","") ->  | R19: N/A
A20: Lim, M. D. B., S. J.: Belizario, V. Y., Jr.: Gay-Andrieu, F.: Gilleard, J.: Levecke, B.: Lieshout, L. van: Medley, G. F.: Mekonnen, Z.: Mirams, G.: Njenga, S. M.: Odiere, M. R.: Rudge, J. W.: Stuyver, L.: Vercruysse, J.: Vlaminck, J.: Walson, J. L. | B20: Diagnostic tools for soil-transmitted helminths control and elimination programs: a pathway for diagnostic product development | C20: =IF(ISNUMBER(SEARCH("Literature",'Data extraction-synthesis'!J10)),"X","") -> X | D20: =IF(ISNUMBER(SEARCH("Industry standard",'Data extraction-synthesis'!J10)),"X","") ->  | E20: =IF(ISNUMBER(SEARCH("Guidelines",'Data extraction-synthesis'!J10)),"X","") ->  | F20: =IF(ISNUMBER(SEARCH("Interviews with experts",'Data extraction-synthesis'!J10)),"X","") ->  | G20: =IF(ISNUMBER(SEARCH("Surveys with experts/expert opinion",'Data extraction-synthesis'!J10)),"X","") ->  | H20: =IF(ISNUMBER(SEARCH("Consensus meeting inputs",'Data extraction-synthesis'!J10)),"X","") ->  | I20: =IF(ISNUMBER(SEARCH("Available data",'Data extraction-synthesis'!J10)),"X","") ->  | J20: =IF(ISNUMBER(SEARCH("Field observations",'Data extraction-synthesis'!J10)),"X","") ->  | K20: =IF(ISNUMBER(SEARCH("Laboratory evaluations",'Data extraction-synthesis'!J10)),"X","") ->  | L20: =IF(ISNUMBER(SEARCH("Models",'Data extraction-synthesis'!J10)),"X","") ->  | M20: =IF(ISNUMBER(SEARCH("Early usability studies",'Data extraction-synthesis'!J10)),"X","") ->  | N20: =IF(ISNUMBER(SEARCH("No input sources reported",'Data extraction-synthesis'!J10)),"X","") ->  | O20: =IF(ISNUMBER(SEARCH("N/A",'Data extraction-synthesis'!J10)),"X","") ->  | R20: NO
A21: Nsanzabana, C. A., Frederic: Beck, Hans-Peter: Ding, Xavier C.: Kamau, Edwin: Krishna, Sanjeev: Legrand, Eric: Lucchi, Naomi: Miotto, Olivo: Nag, Sidsel: Noedl, Harald: Roper, Cally: Rosenthal, Philip J.: Schallig, Henk D. F. H.: Taylor, Steve M.: Volkman, Sarah K.: Gonzalez, Iveth J. | B21: Molecular assays for antimalarial drug resistance surveillance: A target product profile | C21: =IF(ISNUMBER(SEARCH("Literature",'Data extraction-synthesis'!J11)),"X","") -> X | D21: =IF(ISNUMBER(SEARCH("Industry standard",'Data extraction-synthesis'!J11)),"X","") ->  | E21: =IF(ISNUMBER(SEARCH("Guidelines",'Data extraction-synthesis'!J11)),"X","") ->  | F21: =IF(ISNUMBER(SEARCH("Interviews with experts",'Data extraction-synthesis'!J11)),"X","") ->  | G21: =IF(ISNUMBER(SEARCH("Surveys with experts/expert opinion",'Data extraction-synthesis'!J11)),"X","") ->  | H21: =IF(ISNUMBER(SEARCH("Consensus meeting inputs",'Data extraction-synthesis'!J11)),"X","") ->  | I21: =IF(ISNUMBER(SEARCH("Available data",'Data extraction-synthesis'!J11)),"X","") ->  | J21: =IF(ISNUMBER(SEARCH("Field observations",'Data extraction-synthesis'!J11)),"X","") ->  | K21: =IF(ISNUMBER(SEARCH("Laboratory evaluations",'Data extraction-synthesis'!J11)),"X","") ->  | L21: =IF(ISNUMBER(SEARCH("Models",'Data extraction-synthesis'!J11)),"X","") ->  | M21: =IF(ISNUMBER(SEARCH("Early usability studies",'Data extraction-synthesis'!J11)),"X","") ->  | N21: =IF(ISNUMBER(SEARCH("No input sources reported",'Data extraction-synthesis'!J11)),"X","") ->  | O21: =IF(ISNUMBER(SEARCH("N/A",'Data extraction-synthesis'!J11)),"X","") ->  | R21: NO
A22: Pal S, Jasper L.E., Lawrence K.L, Walter M | B22: Assessing the Dengue Diagnosis Capability Gap in the Military Health System | C22: =IF(ISNUMBER(SEARCH("Literature",'Data extraction-synthesis'!J33)),"X","") ->  | D22: =IF(ISNUMBER(SEARCH("Industry standard",'Data extraction-synthesis'!J33)),"X","") ->  | E22: =IF(ISNUMBER(SEARCH("Guidelines",'Data extraction-synthesis'!J33)),"X","") ->  | F22: =IF(ISNUMBER(SEARCH("Interviews with experts",'Data extraction-synthesis'!J33)),"X","") ->  | G22: =IF(ISNUMBER(SEARCH("Surveys with experts/expert opinion",'Data extraction-synthesis'!J33)),"X","") -> X | H22: =IF(ISNUMBER(SEARCH("Consensus meeting inputs",'Data extraction-synthesis'!J33)),"X","") ->  | I22: =IF(ISNUMBER(SEARCH("Available data",'Data extraction-synthesis'!J33)),"X","") ->  | J22: =IF(ISNUMBER(SEARCH("Field observations",'Data extraction-synthesis'!J33)),"X","") ->  | K22: =IF(ISNUMBER(SEARCH("Laboratory evaluations",'Data extraction-synthesis'!J33)),"X","") ->  | L22: =IF(ISNUMBER(SEARCH("Models",'Data extraction-synthesis'!J33)),"X","") -> X | M22: =IF(ISNUMBER(SEARCH("Early usability studies",'Data extraction-synthesis'!J33)),"X","") ->  | N22: =IF(ISNUMBER(SEARCH("No input sources reported",'Data extraction-synthesis'!J33)),"X","") ->  | O22: =IF(ISNUMBER(SEARCH("N/A",'Data extraction-synthesis'!J33)),"X","") ->  | R22: YES
A23: PATH | B23: Target Product Profile: HIV Self-Test Version 4.1: A White Paper on the Evaluation of Current HIV Rapid Tests and Development of Core Specifications for Next-Generation HIV Tests | C23: =IF(ISNUMBER(SEARCH("Literature",'Data extraction-synthesis'!J19)),"X","") -> X | D23: =IF(ISNUMBER(SEARCH("Industry standard",'Data extraction-synthesis'!J19)),"X","") ->  | E23: =IF(ISNUMBER(SEARCH("Guidelines",'Data extraction-synthesis'!J19)),"X","") ->  | F23: =IF(ISNUMBER(SEARCH("Interviews with experts",'Data extraction-synthesis'!J19)),"X","") ->  | G23: =IF(ISNUMBER(SEARCH("Surveys with experts/expert opinion",'Data extraction-synthesis'!J19)),"X","") ->  | H23: =IF(ISNUMBER(SEARCH("Consensus meeting inputs",'Data extraction-synthesis'!J19)),"X","") ->  | I23: =IF(ISNUMBER(SEARCH("Available data",'Data extraction-synthesis'!J19)),"X","") ->  | J23: =IF(ISNUMBER(SEARCH("Field observations",'Data extraction-synthesis'!J19)),"X","") ->  | K23: =IF(ISNUMBER(SEARCH("Laboratory evaluations",'Data extraction-synthesis'!J19)),"X","") -> X | L23: =IF(ISNUMBER(SEARCH("Models",'Data extraction-synthesis'!J19)),"X","") ->  | N23: =IF(ISNUMBER(SEARCH("No input sources reported",'Data extraction-synthesis'!J19)),"X","") ->  | O23: =IF(ISNUMBER(SEARCH("N/A",'Data extraction-synthesis'!J19)),"X","") ->  | R23: YES
A24: PATH | B24: Diagnostics for neglected tropical diseases: Defining the best tools through target product profiles | C24: =IF(ISNUMBER(SEARCH("Literature",'Data extraction-synthesis'!J20)),"X","") ->  | D24: =IF(ISNUMBER(SEARCH("Industry standard",'Data extraction-synthesis'!J20)),"X","") ->  | E24: =IF(ISNUMBER(SEARCH("Guidelines",'Data extraction-synthesis'!J20)),"X","") ->  | F24: =IF(ISNUMBER(SEARCH("Interviews with experts",'Data extraction-synthesis'!J20)),"X","") ->  | G24: =IF(ISNUMBER(SEARCH("Surveys with experts/expert opinion",'Data extraction-synthesis'!J20)),"X","") ->  | H24: =IF(ISNUMBER(SEARCH("Consensus meeting inputs",'Data extraction-synthesis'!J20)),"X","") ->  | I24: =IF(ISNUMBER(SEARCH("Available data",'Data extraction-synthesis'!J20)),"X","") ->  | J24: =IF(ISNUMBER(SEARCH("Field observations",'Data extraction-synthesis'!J20)),"X","") ->  | K24: =IF(ISNUMBER(SEARCH("Laboratory evaluations",'Data extraction-synthesis'!J20)),"X","") ->  | L24: =IF(ISNUMBER(SEARCH("Models",'Data extraction-synthesis'!J20)),"X","") ->  | M24: =IF(ISNUMBER(SEARCH("Early usability studies",'Data extraction-synthesis'!J20)),"X","") ->  | N24: =IF(ISNUMBER(SEARCH("No input sources reported",'Data extraction-synthesis'!J20)),"X","") ->  | O24: =IF(ISNUMBER(SEARCH("N/A",'Data extraction-synthesis'!J20)),"X","") -> X | R24: N/A
A25: PATH | B25: Target Product Profile: Schistosomiasis Surveillance Diagnostic | C25: =IF(ISNUMBER(SEARCH("Literature",'Data extraction-synthesis'!J21)),"X","") -> X | D25: =IF(ISNUMBER(SEARCH("Industry standard",'Data extraction-synthesis'!J21)),"X","") ->  | E25: =IF(ISNUMBER(SEARCH("Guidelines",'Data extraction-synthesis'!J21)),"X","") ->  | F25: =IF(ISNUMBER(SEARCH("Interviews with experts",'Data extraction-synthesis'!J21)),"X","") ->  | G25: =IF(ISNUMBER(SEARCH("Surveys with experts/expert opinion",'Data extraction-synthesis'!J21)),"X","") ->  | H25: =IF(ISNUMBER(SEARCH("Consensus meeting inputs",'Data extraction-synthesis'!J21)),"X","") ->  | I25: =IF(ISNUMBER(SEARCH("Available data",'Data extraction-synthesis'!J21)),"X","") ->  | J25: =IF(ISNUMBER(SEARCH("Field observations",'Data extraction-synthesis'!J21)),"X","") ->  | K25: =IF(ISNUMBER(SEARCH("Laboratory evaluations",'Data extraction-synthesis'!J21)),"X","") ->  | L25: =IF(ISNUMBER(SEARCH("Models",'Data extraction-synthesis'!J21)),"X","") ->  | M25: =IF(ISNUMBER(SEARCH("Early usability studies",'Data extraction-synthesis'!J21)),"X","") ->  | N25: =IF(ISNUMBER(SEARCH("No input sources reported",'Data extraction-synthesis'!J21)),"X","") ->  | O25: =IF(ISNUMBER(SEARCH("N/A",'Data extraction-synthesis'!J21)),"X","") ->  | R25: NO
A26: PATH | B26: Target Product Profile: Schistosomiasis Surveillance Diagnostic Lateral Flow Test CAA antigen | C26: =IF(ISNUMBER(SEARCH("Literature",'Data extraction-synthesis'!J34)),"X","") -> X | D26: =IF(ISNUMBER(SEARCH("Industry standard",'Data extraction-synthesis'!J34)),"X","") ->  | E26: =IF(ISNUMBER(SEARCH("Guidelines",'Data extraction-synthesis'!J34)),"X","") ->  | F26: =IF(ISNUMBER(SEARCH("Interviews with experts",'Data extraction-synthesis'!J34)),"X","") ->  | G26: =IF(ISNUMBER(SEARCH("Surveys with experts/expert opinion",'Data extraction-synthesis'!J34)),"X","") ->  | H26: =IF(ISNUMBER(SEARCH("Consensus meeting inputs",'Data extraction-synthesis'!J34)),"X","") ->  | I26: =IF(ISNUMBER(SEARCH("Available data",'Data extraction-synthesis'!J34)),"X","") ->  | J26: =IF(ISNUMBER(SEARCH("Field observations",'Data extraction-synthesis'!J34)),"X","") ->  | K26: =IF(ISNUMBER(SEARCH("Laboratory evaluations",'Data extraction-synthesis'!J34)),"X","") ->  | L26: =IF(ISNUMBER(SEARCH("Models",'Data extraction-synthesis'!J34)),"X","") ->  | M26: =IF(ISNUMBER(SEARCH("Early usability studies",'Data extraction-synthesis'!J34)),"X","") ->  | N26: =IF(ISNUMBER(SEARCH("No input sources reported",'Data extraction-synthesis'!J34)),"X","") ->  | O26: =IF(ISNUMBER(SEARCH("N/A",'Data extraction-synthesis'!J34)),"X","") ->  | R26: NO
A27: PATH | B27: Target Product Profile: Trachoma Surveillance Diagnostic-Post-Elimination Surveillance Antibody Lateral Flow Test | C27: =IF(ISNUMBER(SEARCH("Literature",'Data extraction-synthesis'!J35)),"X","") -> X | D27: =IF(ISNUMBER(SEARCH("Industry standard",'Data extraction-synthesis'!J35)),"X","") ->  | E27: =IF(ISNUMBER(SEARCH("Guidelines",'Data extraction-synthesis'!J35)),"X","") ->  | F27: =IF(ISNUMBER(SEARCH("Interviews with experts",'Data extraction-synthesis'!J35)),"X","") ->  | G27: =IF(ISNUMBER(SEARCH("Surveys with experts/expert opinion",'Data extraction-synthesis'!J35)),"X","") ->  | H27: =IF(ISNUMBER(SEARCH("Consensus meeting inputs",'Data extraction-synthesis'!J35)),"X","") ->  | I27: =IF(ISNUMBER(SEARCH("Available data",'Data extraction-synthesis'!J35)),"X","") ->  | J27: =IF(ISNUMBER(SEARCH("Field observations",'Data extraction-synthesis'!J35)),"X","") ->  | K27: =IF(ISNUMBER(SEARCH("Laboratory evaluations",'Data extraction-synthesis'!J35)),"X","") ->  | L27: =IF(ISNUMBER(SEARCH("Models",'Data extraction-synthesis'!J35)),"X","") ->  | M27: =IF(ISNUMBER(SEARCH("Early usability studies",'Data extraction-synthesis'!J35)),"X","") ->  | N27: =IF(ISNUMBER(SEARCH("No input sources reported",'Data extraction-synthesis'!J35)),"X","") ->  | O27: =IF(ISNUMBER(SEARCH("N/A",'Data extraction-synthesis'!J35)),"X","") ->  | R27: NO
A28: PATH | B28: Target Product Profile: Trachoma surveillance diagnostic-antigen lateral flow test | C28: =IF(ISNUMBER(SEARCH("Literature",'Data extraction-synthesis'!J42)),"X","") -> X | D28: =IF(ISNUMBER(SEARCH("Industry standard",'Data extraction-synthesis'!J42)),"X","") ->  | E28: =IF(ISNUMBER(SEARCH("Guidelines",'Data extraction-synthesis'!J42)),"X","") ->  | F28: =IF(ISNUMBER(SEARCH("Interviews with experts",'Data extraction-synthesis'!J42)),"X","") ->  | G28: =IF(ISNUMBER(SEARCH("Surveys with experts/expert opinion",'Data extraction-synthesis'!J42)),"X","") ->  | H28: =IF(ISNUMBER(SEARCH("Consensus meeting inputs",'Data extraction-synthesis'!J42)),"X","") ->  | I28: =IF(ISNUMBER(SEARCH("Available data",'Data extraction-synthesis'!J42)),"X","") ->  | J28: =IF(ISNUMBER(SEARCH("Field observations",'Data extraction-synthesis'!J42)),"X","") ->  | K28: =IF(ISNUMBER(SEARCH("Laboratory evaluations",'Data extraction-synthesis'!J42)),"X","") ->  | L28: =IF(ISNUMBER(SEARCH("Models",'Data extraction-synthesis'!J42)),"X","") ->  | M28: =IF(ISNUMBER(SEARCH("Early usability studies",'Data extraction-synthesis'!J42)),"X","") ->  | N28: =IF(ISNUMBER(SEARCH("No input sources reported",'Data extraction-synthesis'!J42)),"X","") ->  | O28: =IF(ISNUMBER(SEARCH("N/A",'Data extraction-synthesis'!J42)),"X","") ->  | R28: NO
A29: PATH | B29: Target Product Profile: Schistosomiasis Surveillance Diagnostic - schistosoma genus-specific antibody lateral flow test post-elimination surveillance | D29: =IF(ISNUMBER(SEARCH("Industry standard",'Data extraction-synthesis'!J44)),"X","") ->  | E29: =IF(ISNUMBER(SEARCH("Guidelines",'Data extraction-synthesis'!J44)),"X","") ->  | F29: =IF(ISNUMBER(SEARCH("Interviews with experts",'Data extraction-synthesis'!J44)),"X","") ->  | G29: =IF(ISNUMBER(SEARCH("Surveys with experts/expert opinion",'Data extraction-synthesis'!J44)),"X","") ->  | H29: =IF(ISNUMBER(SEARCH("Consensus meeting inputs",'Data extraction-synthesis'!J44)),"X","") ->  | I29: =IF(ISNUMBER(SEARCH("Available data",'Data extraction-synthesis'!J44)),"X","") ->  | J29: =IF(ISNUMBER(SEARCH("Field observations",'Data extraction-synthesis'!J44)),"X","") ->  | K29: =IF(ISNUMBER(SEARCH("Laboratory evaluations",'Data extraction-synthesis'!J44)),"X","") ->  | L29: =IF(ISNUMBER(SEARCH("Models",'Data extraction-synthesis'!J44)),"X","") ->  | M29: =IF(ISNUMBER(SEARCH("Early usability studies",'Data extraction-synthesis'!J44)),"X","") ->  | O29: x | R29: N/A
A30: Peck, R. B. W., J. D.: Boettcher, M. G.: Downing | B30: Defining product requirements for field deployable yellow fever tests | C30: =IF(ISNUMBER(SEARCH("Literature",'Data extraction-synthesis'!J43)),"X","") ->  | D30: =IF(ISNUMBER(SEARCH("Industry standard",'Data extraction-synthesis'!J43)),"X","") ->  | E30: =IF(ISNUMBER(SEARCH("Guidelines",'Data extraction-synthesis'!J43)),"X","") ->  | F30: =IF(ISNUMBER(SEARCH("Interviews with experts",'Data extraction-synthesis'!J43)),"X","") ->  | G30: =IF(ISNUMBER(SEARCH("Surveys with experts/expert opinion",'Data extraction-synthesis'!J43)),"X","") ->  | H30: =IF(ISNUMBER(SEARCH("Consensus meeting inputs",'Data extraction-synthesis'!J43)),"X","") ->  | I30: =IF(ISNUMBER(SEARCH("Available data",'Data extraction-synthesis'!J43)),"X","") ->  | J30: =IF(ISNUMBER(SEARCH("Field observations",'Data extraction-synthesis'!J43)),"X","") ->  | K30: =IF(ISNUMBER(SEARCH("Laboratory evaluations",'Data extraction-synthesis'!J43)),"X","") ->  | L30: =IF(ISNUMBER(SEARCH("Models",'Data extraction-synthesis'!J43)),"X","") ->  | M30: =IF(ISNUMBER(SEARCH("Early usability studies",'Data extraction-synthesis'!J43)),"X","") ->  | N30: =IF(ISNUMBER(SEARCH("No input sources reported",'Data extraction-synthesis'!J43)),"X","") ->  | O30: =IF(ISNUMBER(SEARCH("N/A",'Data extraction-synthesis'!J43)),"X","") -> X | R30: N/A
A31: Porras, A. I. Y., Z. E.: Altcheh, J.: Britto, C.: Chaves, G. C.: Flevaud, L.: Martins, O. A.: Ribeiro, I.: Schijman, A. G.: Shikanai-Yasuda, M. A.: Sosa-Estani, S.: Stobbaerts, E.: Zicker, F. | B31: Target Product Profile (TPP) for Chagas Disease Point-of-Care Diagnosis and Assessment of Response to Treatmen | C31: =IF(ISNUMBER(SEARCH("Literature",'Data extraction-synthesis'!J12)),"X","") ->  | D31: =IF(ISNUMBER(SEARCH("Industry standard",'Data extraction-synthesis'!J12)),"X","") ->  | E31: =IF(ISNUMBER(SEARCH("Guidelines",'Data extraction-synthesis'!J12)),"X","") ->  | F31: =IF(ISNUMBER(SEARCH("Interviews with experts",'Data extraction-synthesis'!J12)),"X","") ->  | G31: =IF(ISNUMBER(SEARCH("Surveys with experts/expert opinion",'Data extraction-synthesis'!J12)),"X","") ->  | H31: =IF(ISNUMBER(SEARCH("Consensus meeting inputs",'Data extraction-synthesis'!J12)),"X","") ->  | I31: =IF(ISNUMBER(SEARCH("Available data",'Data extraction-synthesis'!J12)),"X","") ->  | J31: =IF(ISNUMBER(SEARCH("Field observations",'Data extraction-synthesis'!J12)),"X","") ->  | K31: =IF(ISNUMBER(SEARCH("Laboratory evaluations",'Data extraction-synthesis'!J12)),"X","") ->  | L31: =IF(ISNUMBER(SEARCH("Models",'Data extraction-synthesis'!J12)),"X","") ->  | M31: =IF(ISNUMBER(SEARCH("Early usability studies",'Data extraction-synthesis'!J12)),"X","") ->  | N31: =IF(ISNUMBER(SEARCH("No input sources reported",'Data extraction-synthesis'!J12)),"X","") -> X | O31: =IF(ISNUMBER(SEARCH("N/A",'Data extraction-synthesis'!J12)),"X","") ->  | R31: N/A
A32: Reipold, E. I. E., Philippa: Trianni, Alessandra: Panneer, Nivedha: Krakower, Douglas: Ongarello, Stefano: Roberts, Teri: Miller, Veronica: Denkinger, Claudia | B32: Optimising diagnosis of viraemic hepatitis C infection: the development of a target product profile | C32: =IF(ISNUMBER(SEARCH("Literature",'Data extraction-synthesis'!J13)),"X","") -> X | D32: =IF(ISNUMBER(SEARCH("Industry standard",'Data extraction-synthesis'!J13)),"X","") ->  | E32: =IF(ISNUMBER(SEARCH("Guidelines",'Data extraction-synthesis'!J13)),"X","") ->  | F32: =IF(ISNUMBER(SEARCH("Interviews with experts",'Data extraction-synthesis'!J13)),"X","") ->  | G32: =IF(ISNUMBER(SEARCH("Surveys with experts/expert opinion",'Data extraction-synthesis'!J13)),"X","") -> X | H32: =IF(ISNUMBER(SEARCH("Consensus meeting inputs",'Data extraction-synthesis'!J13)),"X","") ->  | I32: =IF(ISNUMBER(SEARCH("Available data",'Data extraction-synthesis'!J13)),"X","") ->  | J32: =IF(ISNUMBER(SEARCH("Field observations",'Data extraction-synthesis'!J13)),"X","") ->  | K32: =IF(ISNUMBER(SEARCH("Laboratory evaluations",'Data extraction-synthesis'!J13)),"X","") ->  | L32: =IF(ISNUMBER(SEARCH("Models",'Data extraction-synthesis'!J13)),"X","") -> X | M32: =IF(ISNUMBER(SEARCH("Early usability studies",'Data extraction-synthesis'!J13)),"X","") ->  | N32: =IF(ISNUMBER(SEARCH("No input sources reported",'Data extraction-synthesis'!J13)),"X","") ->  | O32: =IF(ISNUMBER(SEARCH("N/A",'Data extraction-synthesis'!J13)),"X","") ->  | R32: YES
A33: Solomon, A. W. E., D.: Bailey, R. L.: Blake, I. M.: Brooker, S.: Chen, J. X.: Chen, J. H.: Churcher, T. S.: Drakeley, C. J.: Edwards, T.: Fenwick, A.: French, M.: Gabrielli, A. F.: Grassly, N. C.: Harding-Esch, E. M.: Holland, M. J.: Koukounari, A.: Lammie, P. J.: Leslie, J.: Mabey, D. C.: Rhajaoui, M.: Secor, W. E.: Stothard, J. R.: Wei, H.: Willingham, A. L.: Zhou, X. N.: Peeling, R. W. | B33: A diagnostics platform for the integrated mapping, monitoring, and surveillance of neglected tropical diseases: Rationale and target product profiles | C33: =IF(ISNUMBER(SEARCH("Literature",'Data extraction-synthesis'!J14)),"X","") ->  | D33: =IF(ISNUMBER(SEARCH("Industry standard",'Data extraction-synthesis'!J14)),"X","") ->  | E33: =IF(ISNUMBER(SEARCH("Guidelines",'Data extraction-synthesis'!J14)),"X","") ->  | F33: =IF(ISNUMBER(SEARCH("Interviews with experts",'Data extraction-synthesis'!J14)),"X","") ->  | G33: =IF(ISNUMBER(SEARCH("Surveys with experts/expert opinion",'Data extraction-synthesis'!J14)),"X","") ->  | H33: =IF(ISNUMBER(SEARCH("Consensus meeting inputs",'Data extraction-synthesis'!J14)),"X","") ->  | I33: =IF(ISNUMBER(SEARCH("Available data",'Data extraction-synthesis'!J14)),"X","") ->  | J33: =IF(ISNUMBER(SEARCH("Field observations",'Data extraction-synthesis'!J14)),"X","") ->  | K33: =IF(ISNUMBER(SEARCH("Laboratory evaluations",'Data extraction-synthesis'!J14)),"X","") ->  | L33: =IF(ISNUMBER(SEARCH("Models",'Data extraction-synthesis'!J14)),"X","") ->  | M33: =IF(ISNUMBER(SEARCH("Early usability studies",'Data extraction-synthesis'!J14)),"X","") ->  | N33: =IF(ISNUMBER(SEARCH("No input sources reported",'Data extraction-synthesis'!J14)),"X","") -> X | O33: =IF(ISNUMBER(SEARCH("N/A",'Data extraction-synthesis'!J14)),"X","") ->  | R33: N/A
A34: Toskin, I. M., M.: Peeling, R. W.: Blondeel, K.: Cordero, J.: Kiarie, J. | B34: Advancing prevention of sexually transmitted infections through point-of-care testing: target product profiles and landscape analysis | C34: =IF(ISNUMBER(SEARCH("Literature",'Data extraction-synthesis'!J15)),"X","") ->  | D34: =IF(ISNUMBER(SEARCH("Industry standard",'Data extraction-synthesis'!J15)),"X","") ->  | E34: =IF(ISNUMBER(SEARCH("Guidelines",'Data extraction-synthesis'!J15)),"X","") ->  | F34: =IF(ISNUMBER(SEARCH("Interviews with experts",'Data extraction-synthesis'!J15)),"X","") ->  | G34: =IF(ISNUMBER(SEARCH("Surveys with experts/expert opinion",'Data extraction-synthesis'!J15)),"X","") ->  | H34: =IF(ISNUMBER(SEARCH("Consensus meeting inputs",'Data extraction-synthesis'!J15)),"X","") -> X | I34: =IF(ISNUMBER(SEARCH("Available data",'Data extraction-synthesis'!J15)),"X","") ->  | J34: =IF(ISNUMBER(SEARCH("Field observations",'Data extraction-synthesis'!J15)),"X","") ->  | K34: =IF(ISNUMBER(SEARCH("Laboratory evaluations",'Data extraction-synthesis'!J15)),"X","") ->  | L34: =IF(ISNUMBER(SEARCH("Models",'Data extraction-synthesis'!J15)),"X","") ->  | M34: =IF(ISNUMBER(SEARCH("Early usability studies",'Data extraction-synthesis'!J15)),"X","") ->  | N34: =IF(ISNUMBER(SEARCH("No input sources reported",'Data extraction-synthesis'!J15)),"X","") ->  | O34: =IF(ISNUMBER(SEARCH("N/A",'Data extraction-synthesis'!J15)),"X","") ->  | R34: NO
A35: UNICEF | B35: UNICEF Target Product Profile Rapid E.coli Detection (version 2.0) | C35: =IF(ISNUMBER(SEARCH("Literature",'Data extraction-synthesis'!#REF!)),"X","") ->  | D35: =IF(ISNUMBER(SEARCH("Industry standard",'Data extraction-synthesis'!#REF!)),"X","") ->  | E35: =IF(ISNUMBER(SEARCH("Guidelines",'Data extraction-synthesis'!#REF!)),"X","") ->  | F35: =IF(ISNUMBER(SEARCH("Interviews with experts",'Data extraction-synthesis'!#REF!)),"X","") ->  | G35: =IF(ISNUMBER(SEARCH("Surveys with experts/expert opinion",'Data extraction-synthesis'!#REF!)),"X","") ->  | H35: =IF(ISNUMBER(SEARCH("Consensus meeting inputs",'Data extraction-synthesis'!#REF!)),"X","") ->  | I35: =IF(ISNUMBER(SEARCH("Available data",'Data extraction-synthesis'!#REF!)),"X","") ->  | J35: =IF(ISNUMBER(SEARCH("Field observations",'Data extraction-synthesis'!#REF!)),"X","") ->  | K35: =IF(ISNUMBER(SEARCH("Laboratory evaluations",'Data extraction-synthesis'!#REF!)),"X","") ->  | L35: =IF(ISNUMBER(SEARCH("Models",'Data extraction-synthesis'!#REF!)),"X","") ->  | M35: =IF(ISNUMBER(SEARCH("Early usability studies",'Data extraction-synthesis'!#REF!)),"X","") ->  | N35: =IF(ISNUMBER(SEARCH("No input sources reported",'Data extraction-synthesis'!J22)),"X","") -> X | O35: =IF(ISNUMBER(SEARCH("N/A",'Data extraction-synthesis'!#REF!)),"X","") ->  | R35: N/A
A36: UNICEF | B36: UNICEF Target Product Profile Rapid E.coli Detection (1.4) | C36: =IF(ISNUMBER(SEARCH("Literature",'Data extraction-synthesis'!J22)),"X","") ->  | D36: =IF(ISNUMBER(SEARCH("Industry standard",'Data extraction-synthesis'!J22)),"X","") ->  | E36: =IF(ISNUMBER(SEARCH("Guidelines",'Data extraction-synthesis'!J22)),"X","") ->  | F36: =IF(ISNUMBER(SEARCH("Interviews with experts",'Data extraction-synthesis'!J22)),"X","") ->  | G36: =IF(ISNUMBER(SEARCH("Surveys with experts/expert opinion",'Data extraction-synthesis'!J22)),"X","") ->  | H36: =IF(ISNUMBER(SEARCH("Consensus meeting inputs",'Data extraction-synthesis'!J22)),"X","") ->  | I36: =IF(ISNUMBER(SEARCH("Available data",'Data extraction-synthesis'!J22)),"X","") ->  | J36: =IF(ISNUMBER(SEARCH("Field observations",'Data extraction-synthesis'!J22)),"X","") ->  | K36: =IF(ISNUMBER(SEARCH("Laboratory evaluations",'Data extraction-synthesis'!J22)),"X","") ->  | L36: =IF(ISNUMBER(SEARCH("Models",'Data extraction-synthesis'!J22)),"X","") ->  | M36: =IF(ISNUMBER(SEARCH("Early usability studies",'Data extraction-synthesis'!J22)),"X","") ->  | N36: =IF(ISNUMBER(SEARCH("No input sources reported",'Data extraction-synthesis'!J23)),"X","") -> X | O36: =IF(ISNUMBER(SEARCH("N/A",'Data extraction-synthesis'!J22)),"X","") ->  | R36: N/A
A37: UNICEF | B37: Zika Virus Diagnostics: Target Product Profiles & Supply Update | C37: =IF(ISNUMBER(SEARCH("Literature",'Data extraction-synthesis'!J31)),"X","") ->  | D37: =IF(ISNUMBER(SEARCH("Industry standard",'Data extraction-synthesis'!J31)),"X","") ->  | E37: =IF(ISNUMBER(SEARCH("Guidelines",'Data extraction-synthesis'!J31)),"X","") ->  | F37: =IF(ISNUMBER(SEARCH("Interviews with experts",'Data extraction-synthesis'!J31)),"X","") ->  | G37: =IF(ISNUMBER(SEARCH("Surveys with experts/expert opinion",'Data extraction-synthesis'!J31)),"X","") ->  | H37: =IF(ISNUMBER(SEARCH("Consensus meeting inputs",'Data extraction-synthesis'!J31)),"X","") ->  | I37: =IF(ISNUMBER(SEARCH("Available data",'Data extraction-synthesis'!J31)),"X","") ->  | J37: =IF(ISNUMBER(SEARCH("Field observations",'Data extraction-synthesis'!J31)),"X","") ->  | K37: =IF(ISNUMBER(SEARCH("Laboratory evaluations",'Data extraction-synthesis'!J31)),"X","") ->  | L37: =IF(ISNUMBER(SEARCH("Models",'Data extraction-synthesis'!J31)),"X","") ->  | M37: =IF(ISNUMBER(SEARCH("Early usability studies",'Data extraction-synthesis'!J31)),"X","") ->  | N37: =IF(ISNUMBER(SEARCH("No input sources reported",'Data extraction-synthesis'!J31)),"X","") ->  | O37: =IF(ISNUMBER(SEARCH("N/A",'Data extraction-synthesis'!J31)),"X","") -> X | R37: N/A
A38: UNICEF | B38: Pneumonia Acute Respiratory Infection Diagnostic Aid-Target Product Profile Introduction | C38: =IF(ISNUMBER(SEARCH("Literature",'Data extraction-synthesis'!J32)),"X","") ->  | D38: =IF(ISNUMBER(SEARCH("Industry standard",'Data extraction-synthesis'!J32)),"X","") ->  | E38: =IF(ISNUMBER(SEARCH("Guidelines",'Data extraction-synthesis'!J32)),"X","") ->  | F38: =IF(ISNUMBER(SEARCH("Interviews with experts",'Data extraction-synthesis'!J32)),"X","") ->  | G38: =IF(ISNUMBER(SEARCH("Surveys with experts/expert opinion",'Data extraction-synthesis'!J32)),"X","") ->  | H38: =IF(ISNUMBER(SEARCH("Consensus meeting inputs",'Data extraction-synthesis'!J32)),"X","") ->  | I38: =IF(ISNUMBER(SEARCH("Available data",'Data extraction-synthesis'!J32)),"X","") ->  | J38: =IF(ISNUMBER(SEARCH("Field observations",'Data extraction-synthesis'!J32)),"X","") ->  | K38: =IF(ISNUMBER(SEARCH("Laboratory evaluations",'Data extraction-synthesis'!J32)),"X","") ->  | L38: =IF(ISNUMBER(SEARCH("Models",'Data extraction-synthesis'!J32)),"X","") ->  | M38: =IF(ISNUMBER(SEARCH("Early usability studies",'Data extraction-synthesis'!J32)),"X","") ->  | N38: =IF(ISNUMBER(SEARCH("No input sources reported",'Data extraction-synthesis'!J32)),"X","") ->  | O38: =IF(ISNUMBER(SEARCH("N/A",'Data extraction-synthesis'!J32)),"X","") -> X | R38: N/A
A39: Utzinger, J. B., S. L.: van Lieshout, L.: van Dam, G. J.: Knopp, S | B39: New diagnostic tools in schistosomiasis | C39: =IF(ISNUMBER(SEARCH("Literature",'Data extraction-synthesis'!J30)),"X","") ->  | D39: =IF(ISNUMBER(SEARCH("Industry standard",'Data extraction-synthesis'!J30)),"X","") ->  | E39: =IF(ISNUMBER(SEARCH("Guidelines",'Data extraction-synthesis'!J30)),"X","") ->  | F39: =IF(ISNUMBER(SEARCH("Interviews with experts",'Data extraction-synthesis'!J30)),"X","") ->  | G39: =IF(ISNUMBER(SEARCH("Surveys with experts/expert opinion",'Data extraction-synthesis'!J30)),"X","") ->  | H39: =IF(ISNUMBER(SEARCH("Consensus meeting inputs",'Data extraction-synthesis'!J30)),"X","") ->  | I39: =IF(ISNUMBER(SEARCH("Available data",'Data extraction-synthesis'!J30)),"X","") ->  | J39: =IF(ISNUMBER(SEARCH("Field observations",'Data extraction-synthesis'!J30)),"X","") ->  | K39: =IF(ISNUMBER(SEARCH("Laboratory evaluations",'Data extraction-synthesis'!J30)),"X","") ->  | L39: =IF(ISNUMBER(SEARCH("Models",'Data extraction-synthesis'!J30)),"X","") ->  | M39: =IF(ISNUMBER(SEARCH("Early usability studies",'Data extraction-synthesis'!J30)),"X","") ->  | N39: =IF(ISNUMBER(SEARCH("No input sources reported",'Data extraction-synthesis'!J30)),"X","") ->  | O39: =IF(ISNUMBER(SEARCH("N/A",'Data extraction-synthesis'!J30)),"X","") -> X | R39: N/A
A40: WHO | B40: High-priority target product profile for new tubercolosis diagnostics: report of a consensus meeting | C40: =IF(ISNUMBER(SEARCH("Literature",'Data extraction-synthesis'!J24)),"X","") -> X | D40: =IF(ISNUMBER(SEARCH("Industry standard",'Data extraction-synthesis'!J24)),"X","") ->  | E40: =IF(ISNUMBER(SEARCH("Guidelines",'Data extraction-synthesis'!J24)),"X","") ->  | F40: =IF(ISNUMBER(SEARCH("Interviews with experts",'Data extraction-synthesis'!J24)),"X","") ->  | G40: =IF(ISNUMBER(SEARCH("Surveys with experts/expert opinion",'Data extraction-synthesis'!J24)),"X","") -> X | H40: =IF(ISNUMBER(SEARCH("Consensus meeting inputs",'Data extraction-synthesis'!J24)),"X","") ->  | I40: =IF(ISNUMBER(SEARCH("Available data",'Data extraction-synthesis'!J24)),"X","") ->  | J40: =IF(ISNUMBER(SEARCH("Field observations",'Data extraction-synthesis'!J24)),"X","") ->  | K40: =IF(ISNUMBER(SEARCH("Laboratory evaluations",'Data extraction-synthesis'!J24)),"X","") ->  | L40: =IF(ISNUMBER(SEARCH("Models",'Data extraction-synthesis'!J24)),"X","") -> X | M40: =IF(ISNUMBER(SEARCH("Early usability studies",'Data extraction-synthesis'!J24)),"X","") ->  | N40: =IF(ISNUMBER(SEARCH("No input sources reported",'Data extraction-synthesis'!J24)),"X","") ->  | O40: =IF(ISNUMBER(SEARCH("N/A",'Data extraction-synthesis'!J24)),"X","") ->  | R40: YES
A41: WHO | B41: Development of a Target Product Profile (TPP) and framework for evaluation for a test predicting progression from tubercolosis infection to active disease | C41: =IF(ISNUMBER(SEARCH("Literature",'Data extraction-synthesis'!J25)),"X","") ->  | D41: =IF(ISNUMBER(SEARCH("Industry standard",'Data extraction-synthesis'!J25)),"X","") ->  | E41: =IF(ISNUMBER(SEARCH("Guidelines",'Data extraction-synthesis'!J25)),"X","") ->  | F41: =IF(ISNUMBER(SEARCH("Interviews with experts",'Data extraction-synthesis'!J25)),"X","") ->  | G41: =IF(ISNUMBER(SEARCH("Surveys with experts/expert opinion",'Data extraction-synthesis'!J25)),"X","") ->  | H41: =IF(ISNUMBER(SEARCH("Consensus meeting inputs",'Data extraction-synthesis'!J25)),"X","") ->  | I41: =IF(ISNUMBER(SEARCH("Available data",'Data extraction-synthesis'!J25)),"X","") ->  | J41: =IF(ISNUMBER(SEARCH("Field observations",'Data extraction-synthesis'!J25)),"X","") ->  | K41: =IF(ISNUMBER(SEARCH("Laboratory evaluations",'Data extraction-synthesis'!J25)),"X","") ->  | L41: =IF(ISNUMBER(SEARCH("Models",'Data extraction-synthesis'!J25)),"X","") ->  | M41: =IF(ISNUMBER(SEARCH("Early usability studies",'Data extraction-synthesis'!J25)),"X","") ->  | N41: =IF(ISNUMBER(SEARCH("No input sources reported",'Data extraction-synthesis'!J25)),"X","") ->  | O41: =IF(ISNUMBER(SEARCH("N/A",'Data extraction-synthesis'!J25)),"X","") -> X | R41: N/A
A42: WHO | B42: Specifications for a rapid diagnostic test for meningitis African meningitis belt/ Target product profile for the development of a new generation of rapid test for the diagnosis of bacterial meningitis | C42: =IF(ISNUMBER(SEARCH("Literature",'Data extraction-synthesis'!J26)),"X","") ->  | D42: =IF(ISNUMBER(SEARCH("Industry standard",'Data extraction-synthesis'!J26)),"X","") ->  | E42: =IF(ISNUMBER(SEARCH("Guidelines",'Data extraction-synthesis'!J26)),"X","") ->  | F42: =IF(ISNUMBER(SEARCH("Interviews with experts",'Data extraction-synthesis'!J26)),"X","") ->  | G42: =IF(ISNUMBER(SEARCH("Surveys with experts/expert opinion",'Data extraction-synthesis'!J26)),"X","") ->  | H42: =IF(ISNUMBER(SEARCH("Consensus meeting inputs",'Data extraction-synthesis'!J26)),"X","") ->  | I42: =IF(ISNUMBER(SEARCH("Available data",'Data extraction-synthesis'!J26)),"X","") ->  | J42: =IF(ISNUMBER(SEARCH("Field observations",'Data extraction-synthesis'!J26)),"X","") ->  | K42: =IF(ISNUMBER(SEARCH("Laboratory evaluations",'Data extraction-synthesis'!J26)),"X","") ->  | L42: =IF(ISNUMBER(SEARCH("Models",'Data extraction-synthesis'!J26)),"X","") ->  | M42: =IF(ISNUMBER(SEARCH("Early usability studies",'Data extraction-synthesis'!J26)),"X","") ->  | N42: =IF(ISNUMBER(SEARCH("No input sources reported",'Data extraction-synthesis'!J26)),"X","") -> X | O42: =IF(ISNUMBER(SEARCH("N/A",'Data extraction-synthesis'!J26)),"X","") ->  | R42: N/A
A43: WHO | B43: Target Product Profile for Zaire ebolavirus rapid,simple test to be used in the control of the Ebola outbreak in West Africa | C43: =IF(ISNUMBER(SEARCH("Literature",'Data extraction-synthesis'!J27)),"X","") ->  | D43: =IF(ISNUMBER(SEARCH("Industry standard",'Data extraction-synthesis'!J27)),"X","") ->  | E43: =IF(ISNUMBER(SEARCH("Guidelines",'Data extraction-synthesis'!J27)),"X","") ->  | F43: =IF(ISNUMBER(SEARCH("Interviews with experts",'Data extraction-synthesis'!J27)),"X","") ->  | G43: =IF(ISNUMBER(SEARCH("Surveys with experts/expert opinion",'Data extraction-synthesis'!J27)),"X","") ->  | H43: =IF(ISNUMBER(SEARCH("Consensus meeting inputs",'Data extraction-synthesis'!J27)),"X","") ->  | I43: =IF(ISNUMBER(SEARCH("Available data",'Data extraction-synthesis'!J27)),"X","") ->  | J43: =IF(ISNUMBER(SEARCH("Field observations",'Data extraction-synthesis'!J27)),"X","") ->  | K43: =IF(ISNUMBER(SEARCH("Laboratory evaluations",'Data extraction-synthesis'!J27)),"X","") ->  | L43: =IF(ISNUMBER(SEARCH("Models",'Data extraction-synthesis'!J27)),"X","") ->  | M43: =IF(ISNUMBER(SEARCH("Early usability studies",'Data extraction-synthesis'!J27)),"X","") ->  | N43: =IF(ISNUMBER(SEARCH("No input sources reported",'Data extraction-synthesis'!J27)),"X","") -> X | O43: =IF(ISNUMBER(SEARCH("N/A",'Data extraction-synthesis'!J27)),"X","") ->  | R43: N/A
A44: WHO | B44: Report of WHO-FIND meeting on diagnostics for Buruli ulcer | C44: =IF(ISNUMBER(SEARCH("Literature",'Data extraction-synthesis'!J28)),"X","") ->  | D44: =IF(ISNUMBER(SEARCH("Industry standard",'Data extraction-synthesis'!J28)),"X","") ->  | E44: =IF(ISNUMBER(SEARCH("Guidelines",'Data extraction-synthesis'!J28)),"X","") ->  | F44: =IF(ISNUMBER(SEARCH("Interviews with experts",'Data extraction-synthesis'!J28)),"X","") ->  | G44: =IF(ISNUMBER(SEARCH("Surveys with experts/expert opinion",'Data extraction-synthesis'!J28)),"X","") ->  | H44: =IF(ISNUMBER(SEARCH("Consensus meeting inputs",'Data extraction-synthesis'!J28)),"X","") ->  | I44: =IF(ISNUMBER(SEARCH("Available data",'Data extraction-synthesis'!J28)),"X","") ->  | J44: =IF(ISNUMBER(SEARCH("Field observations",'Data extraction-synthesis'!J28)),"X","") ->  | K44: =IF(ISNUMBER(SEARCH("Laboratory evaluations",'Data extraction-synthesis'!J28)),"X","") ->  | L44: =IF(ISNUMBER(SEARCH("Models",'Data extraction-synthesis'!J28)),"X","") ->  | M44: =IF(ISNUMBER(SEARCH("Early usability studies",'Data extraction-synthesis'!J28)),"X","") ->  | N44: =IF(ISNUMBER(SEARCH("No input sources reported",'Data extraction-synthesis'!J28)),"X","") ->  | O44: =IF(ISNUMBER(SEARCH("N/A",'Data extraction-synthesis'!J28)),"X","") -> X | R44: N/A
A45: WHO | B45: Taenia solium taeniasis/cysticercosis diagnostic tools. Report of a stakeholder meeting | C45: =IF(ISNUMBER(SEARCH("Literature",'Data extraction-synthesis'!J29)),"X","") ->  | D45: =IF(ISNUMBER(SEARCH("Industry standard",'Data extraction-synthesis'!J29)),"X","") ->  | E45: =IF(ISNUMBER(SEARCH("Guidelines",'Data extraction-synthesis'!J29)),"X","") ->  | F45: =IF(ISNUMBER(SEARCH("Interviews with experts",'Data extraction-synthesis'!J29)),"X","") ->  | G45: =IF(ISNUMBER(SEARCH("Surveys with experts/expert opinion",'Data extraction-synthesis'!J29)),"X","") ->  | H45: =IF(ISNUMBER(SEARCH("Consensus meeting inputs",'Data extraction-synthesis'!J29)),"X","") ->  | I45: =IF(ISNUMBER(SEARCH("Available data",'Data extraction-synthesis'!J29)),"X","") ->  | J45: =IF(ISNUMBER(SEARCH("Field observations",'Data extraction-synthesis'!J29)),"X","") ->  | K45: =IF(ISNUMBER(SEARCH("Laboratory evaluations",'Data extraction-synthesis'!J29)),"X","") ->  | L45: =IF(ISNUMBER(SEARCH("Models",'Data extraction-synthesis'!J29)),"X","") ->  | M45: =IF(ISNUMBER(SEARCH("Early usability studies",'Data extraction-synthesis'!J29)),"X","") ->  | N45: =IF(ISNUMBER(SEARCH("No input sources reported",'Data extraction-synthesis'!J29)),"X","") ->  | O45: =IF(ISNUMBER(SEARCH("N/A",'Data extraction-synthesis'!J29)),"X","") -> X | R45: N/A
A46: WHO, FIND, Medecins sans Frontiers | B46: A Multiplex Multi-Analyte Diagnostic Platform | C46: =IF(ISNUMBER(SEARCH("Literature",'Data extraction-synthesis'!J45)),"X","") ->  | D46: =IF(ISNUMBER(SEARCH("Industry standard",'Data extraction-synthesis'!J45)),"X","") ->  | E46: =IF(ISNUMBER(SEARCH("Guidelines",'Data extraction-synthesis'!J45)),"X","") ->  | F46: =IF(ISNUMBER(SEARCH("Interviews with experts",'Data extraction-synthesis'!J45)),"X","") ->  | G46: =IF(ISNUMBER(SEARCH("Surveys with experts/expert opinion",'Data extraction-synthesis'!J45)),"X","") ->  | H46: =IF(ISNUMBER(SEARCH("Consensus meeting inputs",'Data extraction-synthesis'!J45)),"X","") ->  | I46: =IF(ISNUMBER(SEARCH("Available data",'Data extraction-synthesis'!J45)),"X","") ->  | J46: =IF(ISNUMBER(SEARCH("Field observations",'Data extraction-synthesis'!J45)),"X","") ->  | K46: =IF(ISNUMBER(SEARCH("Laboratory evaluations",'Data extraction-synthesis'!J45)),"X","") ->  | L46: =IF(ISNUMBER(SEARCH("Models",'Data extraction-synthesis'!J45)),"X","") ->  | M46: =IF(ISNUMBER(SEARCH("Early usability studies",'Data extraction-synthesis'!J45)),"X","") ->  | N46: =IF(ISNUMBER(SEARCH("No input sources reported",'Data extraction-synthesis'!J45)),"X","") -> X | O46: =IF(ISNUMBER(SEARCH("N/A",'Data extraction-synthesis'!J45)),"X","") ->  | R46: N/A
B47: TOT | C47: =COUNTIF(C3:C46,"X") -> 15 | D47: 0 | E47: 0 | F47: 0 | G47: 6 | H47: 1 | I47: 0 | J47: 0 | K47: 1 | L47: 6 | M47: 0 | N47: 16 | O47: 10
C48: =C47/44 -> 34% | D48: 0% | E48: 0% | F48: 0% | G48: 14% | H48: 2% | I48: 0% | J48: 0% | K48: 2% | L48: 14% | M48: 0% | N48: 36% | O48: 23%
B49: AAS (n)
B50: Conflicts? | C50: =IF(C47=C49,"","YES") -> YES | D50: =IF(D47=D49,"","YES") ->  | G50: YES | H50: YES | K50: YES | L50: YES | N50: YES | O50: YES
C51: MAYBE I HAVE TO RESCALE PERCENTAGES INTO 100%?
C52: =C47/20 -> 75% | D52: =D47/20 -> 0% | E52: 0% | F52: 0% | G52: 30% | H52: 5% | I52: 0% | J52: 0% | K52: 5% | L52: 30% | M52: 0% | N52: 80%
C54: Analytical accuracy
C55: 12 | D55: 0 | E55: 0 | F55: 0 | G55: 4 | H55: 0 | I55: 2 | J55: 0 | K55: 1 | L55: 2 | M55: 1 | N55: 18 | O55: 9
C56: 27% | D56: 0% | E56: 0% | F56: 0% | G56: 9% | H56: 0% | I56: 5% | J56: 0% | K56: 2% | L56: 5% | M56: 2% | N56: 41% | O56: 20%

Sheet Decision-making steps
C1: Decision-making steps to develop a TPP
A2: Authors | B2: Article title | C2: Consensus/public meeting | D2: Meeting with experts/stakeholders | E2: Feedback from the consultation (e.g. survey, meeting, expert opinion) is incorporated into the final TPPs | F2: Mapping | G2: Market analyses | H2: Literature search | I2: Survey to retrieve input relevant for TPP | J2: Landscaping exercise | K2: Draft TPP | L2: Round of revisions of TPP | M2: Draft shortened TPP | N2: Presentation of shortened TPP to large stakeholder audience | O2: Identification of most important needs | P2: Prioritization exercise | Q2: Delphi-like approach to gauge stakeholders’ agreement with the TPP | R2: Data analysis | S2: Definition problem statement/use case | T2: Identification of stakeholders to involve in draft TPP | U2: Definition TPP domains | V2: Survey to measure stakeholder’s preferences and agreement | W2: Reviewing available literature and data | X2: Defining scope TPP | Y2: Interview with stakeholders | Z2: Field research | AA2: Consolidation of findings | AB2: N/A
A3: Chua, A. P., I.: Nuebling, C. M.: Wood, D.: Moussy, F. | B3: Update on Zika Diagnostic Tests and WHO's Related Activities | C3: =IF(ISNUMBER(SEARCH("Consensus/public meeting",'Data extraction-synthesis'!L2)),"X","") -> X | D3: =IF(ISNUMBER(SEARCH("Meeting with experts/stakeholders",'Data extraction-synthesis'!L2)),"X","") -> X | E3: =IF(ISNUMBER(SEARCH("Feedback from the consultation (e.g. survey, meeting, expert opinion) is incorporated into the final TPPs",'Data extraction-synthesis'!L2)),"X","") -> X | F3: =IF(ISNUMBER(SEARCH("Mapping",'Data extraction-synthesis'!L2)),"X","") ->  | G3: =IF(ISNUMBER(SEARCH("Market analyses",'Data extraction-synthesis'!L2)),"X","") ->  | H3: =IF(ISNUMBER(SEARCH("Literature search",'Data extraction-synthesis'!L2)),"X","") ->  | I3: =IF(ISNUMBER(SEARCH("Survey to retrieve input relevant for TPP",'Data extraction-synthesis'!L2)),"X","") ->  | J3: =IF(ISNUMBER(SEARCH("Landscaping exercise",'Data extraction-synthesis'!L2)),"X","") ->  | K3: =IF(ISNUMBER(SEARCH("Draft TPP",'Data extraction-synthesis'!L2)),"X","") -> X | L3: =IF(ISNUMBER(SEARCH("Round of revisions of TPP",'Data extraction-synthesis'!L2)),"X","") ->  | M3: =IF(ISNUMBER(SEARCH("Draft shortened TPP",'Data extraction-synthesis'!L2)),"X","") ->  | N3: =IF(ISNUMBER(SEARCH("Presentation of shortened TPP to large stakeholder audience",'Data extraction-synthesis'!L2)),"X","") ->  | O3: =IF(ISNUMBER(SEARCH("Identification of most important needs",'Data extraction-synthesis'!L2)),"X","") ->  | P3: =IF(ISNUMBER(SEARCH("Prioritization exercise",'Data extraction-synthesis'!L2)),"X","") ->  | Q3: =IF(ISNUMBER(SEARCH("Delphi-like approach to gauge stakeholders’ agreement with the TPP",'Data extraction-synthesis'!L2)),"X","") ->  | R3: =IF(ISNUMBER(SEARCH("Data analysis",'Data extraction-synthesis'!L2)),"X","") ->  | S3: =IF(ISNUMBER(SEARCH("Definition problem statement/use case ",'Data extraction-synthesis'!L2)),"X","") ->  | T3: =IF(ISNUMBER(SEARCH("Identification of stakeholders to involve in draft TPP ",'Data extraction-synthesis'!L2)),"X","") ->  | U3: =IF(ISNUMBER(SEARCH("Definition TPP domains ",'Data extraction-synthesis'!L2)),"X","") ->  | V3: =IF(ISNUMBER(SEARCH("Survey to measure stakeholder’s preferences and agreement ",'Data extraction-synthesis'!L2)),"X","") ->  | W3: =IF(ISNUMBER(SEARCH("Reviewing available literature and data",'Data extraction-synthesis'!L2)),"X","") ->  | X3: =IF(ISNUMBER(SEARCH("Defining scope TPP ",'Data extraction-synthesis'!L2)),"X","") ->  | Y3: =IF(ISNUMBER(SEARCH("Interview with stakeholders",'Data extraction-synthesis'!L2)),"X","") ->  | Z3: =IF(ISNUMBER(SEARCH("Field research ",'Data extraction-synthesis'!L2)),"X","") ->  | AA3: =IF(ISNUMBER(SEARCH("Consolidation of findings",'Data extraction-synthesis'!L2)),"X","") ->  | AB3: =IF(ISNUMBER(SEARCH("N/A",'Data extraction-synthesis'!L2)),"X","") -> 
A4: Denkinger, C. M. D., D.: Schito, M.: Wells, W.: Cobelens, F.: Pai, M.: Zignol, M.: Cirillo, D. M.: Alland, D.: Casenghi, M.: Gallarda, J.: Boehme, C. C.: Perkins, M. D | B4: Target Product Profile of a Molecular Drug-Susceptibility Test for Use in Microscopy Centers | C4: =IF(ISNUMBER(SEARCH("Consensus/public meeting",'Data extraction-synthesis'!L3)),"X","") -> X | D4: =IF(ISNUMBER(SEARCH("Meeting with experts/stakeholders",'Data extraction-synthesis'!L3)),"X","") ->  | E4: =IF(ISNUMBER(SEARCH("Feedback from the consultation (e.g. survey, meeting, expert opinion) is incorporated into the final TPPs",'Data extraction-synthesis'!L3)),"X","") ->  | F4: =IF(ISNUMBER(SEARCH("Mapping",'Data extraction-synthesis'!L3)),"X","") -> X | G4: =IF(ISNUMBER(SEARCH("Market analyses",'Data extraction-synthesis'!L3)),"X","") ->  | H4: =IF(ISNUMBER(SEARCH("Literature search",'Data extraction-synthesis'!L3)),"X","") ->  | I4: =IF(ISNUMBER(SEARCH("Survey to retrieve input relevant for TPP",'Data extraction-synthesis'!L3)),"X","") ->  | J4: =IF(ISNUMBER(SEARCH("Landscaping exercise",'Data extraction-synthesis'!L3)),"X","") -> X | K4: =IF(ISNUMBER(SEARCH("Draft TPP",'Data extraction-synthesis'!L3)),"X","") -> X | L4: =IF(ISNUMBER(SEARCH("Round of revisions of TPP",'Data extraction-synthesis'!L3)),"X","") -> X | M4: =IF(ISNUMBER(SEARCH("Draft shortened TPP",'Data extraction-synthesis'!L3)),"X","") -> X | N4: =IF(ISNUMBER(SEARCH("Presentation of shortened TPP to large stakeholder audience",'Data extraction-synthesis'!L3)),"X","") -> X | O4: =IF(ISNUMBER(SEARCH("Identification of most important needs",'Data extraction-synthesis'!L3)),"X","") ->  | P4: =IF(ISNUMBER(SEARCH("Prioritization exercise",'Data extraction-synthesis'!L3)),"X","") ->  | Q4: =IF(ISNUMBER(SEARCH("Delphi-like approach to gauge stakeholders’ agreement with the TPP",'Data extraction-synthesis'!L3)),"X","") ->  | R4: =IF(ISNUMBER(SEARCH("Data analysis",'Data extraction-synthesis'!L3)),"X","") ->  | S4: =IF(ISNUMBER(SEARCH("Definition problem statement/use case ",'Data extraction-synthesis'!L3)),"X","") ->  | T4: =IF(ISNUMBER(SEARCH("Identification of stakeholders to involve in draft TPP ",'Data extraction-synthesis'!L3)),"X","") ->  | U4: =IF(ISNUMBER(SEARCH("Definition TPP domains ",'Data extraction-synthesis'!L3)),"X","") ->  | V4: =IF(ISNUMBER(SEARCH("Survey to measure stakeholder’s preferences and agreement ",'Data extraction-synthesis'!L3)),"X","") -> X | W4: =IF(ISNUMBER(SEARCH("Reviewing available literature and data",'Data extraction-synthesis'!L3)),"X","") ->  | X4: =IF(ISNUMBER(SEARCH("Defining scope TPP ",'Data extraction-synthesis'!L3)),"X","") ->  | Y4: =IF(ISNUMBER(SEARCH("Interview with stakeholders",'Data extraction-synthesis'!L3)),"X","") ->  | Z4: =IF(ISNUMBER(SEARCH("Field research ",'Data extraction-synthesis'!L3)),"X","") ->  | AA4: =IF(ISNUMBER(SEARCH("Consolidation of findings",'Data extraction-synthesis'!L3)),"X","") ->  | AB4: =IF(ISNUMBER(SEARCH("N/A",'Data extraction-synthesis'!L3)),"X","") -> 
A5: Denkinger, C. M. K., Sandra V.: Cirillo, Daniela Maria: Casenghi, Martina: Shinnick, Thomas: Weyer, Karin: Gilpin, Chris: Boehme, Catharina C.: Schito, Marco: Kimerling, Michael: Pai, Madhuka | B5: Defining the needs for next generation assays for tuberculosis | C5: =IF(ISNUMBER(SEARCH("Consensus/public meeting",'Data extraction-synthesis'!L4)),"X","") -> X | D5: =IF(ISNUMBER(SEARCH("Meeting with experts/stakeholders",'Data extraction-synthesis'!L4)),"X","") ->  | E5: =IF(ISNUMBER(SEARCH("Feedback from the consultation (e.g. survey, meeting, expert opinion) is incorporated into the final TPPs",'Data extraction-synthesis'!L4)),"X","") ->  | F5: =IF(ISNUMBER(SEARCH("Mapping",'Data extraction-synthesis'!L4)),"X","") ->  | G5: =IF(ISNUMBER(SEARCH("Market analyses",'Data extraction-synthesis'!L4)),"X","") ->  | H5: =IF(ISNUMBER(SEARCH("Literature search",'Data extraction-synthesis'!L4)),"X","") ->  | I5: =IF(ISNUMBER(SEARCH("Survey to retrieve input relevant for TPP",'Data extraction-synthesis'!L4)),"X","") ->  | J5: =IF(ISNUMBER(SEARCH("Landscaping exercise",'Data extraction-synthesis'!L4)),"X","") ->  | K5: =IF(ISNUMBER(SEARCH("Draft TPP",'Data extraction-synthesis'!L4)),"X","") -> X | L5: =IF(ISNUMBER(SEARCH("Round of revisions of TPP",'Data extraction-synthesis'!L4)),"X","") -> X | M5: =IF(ISNUMBER(SEARCH("Draft shortened TPP",'Data extraction-synthesis'!L4)),"X","") -> X | N5: =IF(ISNUMBER(SEARCH("Presentation of shortened TPP to large stakeholder audience",'Data extraction-synthesis'!L4)),"X","") -> X | O5: =IF(ISNUMBER(SEARCH("Identification of most important needs",'Data extraction-synthesis'!L4)),"X","") ->  | P5: =IF(ISNUMBER(SEARCH("Prioritization exercise",'Data extraction-synthesis'!L4)),"X","") -> X | Q5: =IF(ISNUMBER(SEARCH("Delphi-like approach to gauge stakeholders’ agreement with the TPP",'Data extraction-synthesis'!L4)),"X","") -> X | R5: =IF(ISNUMBER(SEARCH("Data analysis",'Data extraction-synthesis'!L4)),"X","") ->  | S5: =IF(ISNUMBER(SEARCH("Definition problem statement/use case ",'Data extraction-synthesis'!L4)),"X","") -> X | T5: =IF(ISNUMBER(SEARCH("Identification of stakeholders to involve in draft TPP ",'Data extraction-synthesis'!L4)),"X","") ->  | U5: =IF(ISNUMBER(SEARCH("Definition TPP domains ",'Data extraction-synthesis'!L4)),"X","") ->  | V5: =IF(ISNUMBER(SEARCH("Survey to measure stakeholder’s preferences and agreement ",'Data extraction-synthesis'!L4)),"X","") ->  | W5: =IF(ISNUMBER(SEARCH("Reviewing available literature and data",'Data extraction-synthesis'!L4)),"X","") ->  | X5: =IF(ISNUMBER(SEARCH("Defining scope TPP ",'Data extraction-synthesis'!L4)),"X","") ->  | Y5: =IF(ISNUMBER(SEARCH("Interview with stakeholders",'Data extraction-synthesis'!L4)),"X","") ->  | Z5: =IF(ISNUMBER(SEARCH("Field research ",'Data extraction-synthesis'!L4)),"X","") ->  | AA5: =IF(ISNUMBER(SEARCH("Consolidation of findings",'Data extraction-synthesis'!L4)),"X","") ->  | AB5: =IF(ISNUMBER(SEARCH("N/A",'Data extraction-synthesis'!L4)),"X","") -> 
A6: DIAMETER Project, PATH | B6: Point-of-Care Malaria Infection Detection Test For rapid detection of low-density, subclinical malaria infections | C6: =IF(ISNUMBER(SEARCH("Consensus/public meeting",'Data extraction-synthesis'!L5)),"X","") ->  | D6: =IF(ISNUMBER(SEARCH("Meeting with experts/stakeholders",'Data extraction-synthesis'!L5)),"X","") ->  | E6: =IF(ISNUMBER(SEARCH("Feedback from the consultation (e.g. survey, meeting, expert opinion) is incorporated into the final TPPs",'Data extraction-synthesis'!L5)),"X","") ->  | F6: =IF(ISNUMBER(SEARCH("Mapping",'Data extraction-synthesis'!L5)),"X","") ->  | G6: =IF(ISNUMBER(SEARCH("Market analyses",'Data extraction-synthesis'!L5)),"X","") ->  | H6: =IF(ISNUMBER(SEARCH("Literature search",'Data extraction-synthesis'!L5)),"X","") ->  | I6: =IF(ISNUMBER(SEARCH("Survey to retrieve input relevant for TPP",'Data extraction-synthesis'!L5)),"X","") ->  | J6: =IF(ISNUMBER(SEARCH("Landscaping exercise",'Data extraction-synthesis'!L5)),"X","") ->  | K6: =IF(ISNUMBER(SEARCH("Draft TPP",'Data extraction-synthesis'!L5)),"X","") ->  | L6: =IF(ISNUMBER(SEARCH("Round of revisions of TPP",'Data extraction-synthesis'!L5)),"X","") ->  | M6: =IF(ISNUMBER(SEARCH("Draft shortened TPP",'Data extraction-synthesis'!L5)),"X","") ->  | N6: =IF(ISNUMBER(SEARCH("Presentation of shortened TPP to large stakeholder audience",'Data extraction-synthesis'!L5)),"X","") ->  | O6: =IF(ISNUMBER(SEARCH("Identification of most important needs",'Data extraction-synthesis'!L5)),"X","") ->  | P6: =IF(ISNUMBER(SEARCH("Prioritization exercise",'Data extraction-synthesis'!L5)),"X","") ->  | Q6: =IF(ISNUMBER(SEARCH("Delphi-like approach to gauge stakeholders’ agreement with the TPP",'Data extraction-synthesis'!L5)),"X","") ->  | R6: =IF(ISNUMBER(SEARCH("Data analysis",'Data extraction-synthesis'!L5)),"X","") ->  | S6: =IF(ISNUMBER(SEARCH("Definition problem statement/use case ",'Data extraction-synthesis'!L5)),"X","") ->  | T6: =IF(ISNUMBER(SEARCH("Identification of stakeholders to involve in draft TPP ",'Data extraction-synthesis'!L5)),"X","") ->  | U6: =IF(ISNUMBER(SEARCH("Definition TPP domains ",'Data extraction-synthesis'!L5)),"X","") ->  | V6: =IF(ISNUMBER(SEARCH("Survey to measure stakeholder’s preferences and agreement ",'Data extraction-synthesis'!L5)),"X","") ->  | W6: =IF(ISNUMBER(SEARCH("Reviewing available literature and data",'Data extraction-synthesis'!L5)),"X","") ->  | X6: =IF(ISNUMBER(SEARCH("Defining scope TPP ",'Data extraction-synthesis'!L5)),"X","") ->  | Y6: =IF(ISNUMBER(SEARCH("Interview with stakeholders",'Data extraction-synthesis'!L5)),"X","") ->  | Z6: =IF(ISNUMBER(SEARCH("Field research ",'Data extraction-synthesis'!L5)),"X","") ->  | AA6: =IF(ISNUMBER(SEARCH("Consolidation of findings",'Data extraction-synthesis'!L5)),"X","") ->  | AB6: =IF(ISNUMBER(SEARCH("N/A",'Data extraction-synthesis'!L5)),"X","") -> X
A7: Ding, X. C. A., Maria Paz: Baird, J. Kevin: Cheng, Qin: Cunningham, Jane: Dhorda, Mehul: Drakeley, Chris: Felger, Ingrid: Gamboa, Dionicia: Harbers, Matthias: Herrera, Socrates: Lucchi, Naomi: Mayor, Alfredo: Mueller, Ivo: Sattabongkot, Jetsumon: Ratsimbason, Arsène: Richards, Jack: Tanner, Marcel: González, Iveth J. | B7: Defining the next generation of Plasmodium vivax diagnostic tests for control and elimination: Target product profiles | C7: =IF(ISNUMBER(SEARCH("Consensus/public meeting",'Data extraction-synthesis'!L6)),"X","") ->  | D7: =IF(ISNUMBER(SEARCH("Meeting with experts/stakeholders",'Data extraction-synthesis'!L6)),"X","") ->  | E7: =IF(ISNUMBER(SEARCH("Feedback from the consultation (e.g. survey, meeting, expert opinion) is incorporated into the final TPPs",'Data extraction-synthesis'!L6)),"X","") ->  | F7: =IF(ISNUMBER(SEARCH("Mapping",'Data extraction-synthesis'!L6)),"X","") ->  | G7: =IF(ISNUMBER(SEARCH("Market analyses",'Data extraction-synthesis'!L6)),"X","") ->  | H7: =IF(ISNUMBER(SEARCH("Literature search",'Data extraction-synthesis'!L6)),"X","") ->  | I7: =IF(ISNUMBER(SEARCH("Survey to retrieve input relevant for TPP",'Data extraction-synthesis'!L6)),"X","") ->  | J7: =IF(ISNUMBER(SEARCH("Landscaping exercise",'Data extraction-synthesis'!L6)),"X","") ->  | K7: =IF(ISNUMBER(SEARCH("Draft TPP",'Data extraction-synthesis'!L6)),"X","") -> X | L7: =IF(ISNUMBER(SEARCH("Round of revisions of TPP",'Data extraction-synthesis'!L6)),"X","") -> X | M7: =IF(ISNUMBER(SEARCH("Draft shortened TPP",'Data extraction-synthesis'!L6)),"X","") ->  | N7: =IF(ISNUMBER(SEARCH("Presentation of shortened TPP to large stakeholder audience",'Data extraction-synthesis'!L6)),"X","") ->  | O7: =IF(ISNUMBER(SEARCH("Identification of most important needs",'Data extraction-synthesis'!L6)),"X","") ->  | P7: =IF(ISNUMBER(SEARCH("Prioritization exercise",'Data extraction-synthesis'!L6)),"X","") ->  | Q7: =IF(ISNUMBER(SEARCH("Delphi-like approach to gauge stakeholders’ agreement with the TPP",'Data extraction-synthesis'!L6)),"X","") ->  | R7: =IF(ISNUMBER(SEARCH("Data analysis",'Data extraction-synthesis'!L6)),"X","") ->  | S7: =IF(ISNUMBER(SEARCH("Definition problem statement/use case ",'Data extraction-synthesis'!L6)),"X","") -> X | T7: =IF(ISNUMBER(SEARCH("Identification of stakeholders to involve in draft TPP ",'Data extraction-synthesis'!L6)),"X","") ->  | U7: =IF(ISNUMBER(SEARCH("Definition TPP domains ",'Data extraction-synthesis'!L6)),"X","") ->  | V7: =IF(ISNUMBER(SEARCH("Survey to measure stakeholder’s preferences and agreement ",'Data extraction-synthesis'!L6)),"X","") -> X | W7: =IF(ISNUMBER(SEARCH("Reviewing available literature and data",'Data extraction-synthesis'!L6)),"X","") ->  | X7: =IF(ISNUMBER(SEARCH("Defining scope TPP ",'Data extraction-synthesis'!L6)),"X","") ->  | Y7: =IF(ISNUMBER(SEARCH("Interview with stakeholders",'Data extraction-synthesis'!L6)),"X","") ->  | Z7: =IF(ISNUMBER(SEARCH("Field research ",'Data extraction-synthesis'!L6)),"X","") ->  | AA7: =IF(ISNUMBER(SEARCH("Consolidation of findings",'Data extraction-synthesis'!L6)),"X","") ->  | AB7: =IF(ISNUMBER(SEARCH("N/A",'Data extraction-synthesis'!L6)),"X","") -> 
A8: Dittrich, S. T., B. T.: Moussy, F.: Chua, A.: Zorzet, A.: Tangden, T.: Dolinger, D. L.: Page, A. L.: Crump, J. A.: Valerie, D.: Bassat, Q.: Lubell, Y.: Heinrich, N.: Newton, P. N.: Rodwell, T.: Gonzalez, I. J. | B8: Target Product Profile for a Diagnostic Assay to Differentiate between Bacterial and Non-Bacterial Infections to Guide Antimicrobials Use in Resource-Limited Settings: An Expert Consensus | C8: =IF(ISNUMBER(SEARCH("Consensus/public meeting",'Data extraction-synthesis'!L7)),"X","") -> X | D8: =IF(ISNUMBER(SEARCH("Meeting with experts/stakeholders",'Data extraction-synthesis'!L7)),"X","") ->  | E8: =IF(ISNUMBER(SEARCH("Feedback from the consultation (e.g. survey, meeting, expert opinion) is incorporated into the final TPPs",'Data extraction-synthesis'!L7)),"X","") -> X | F8: =IF(ISNUMBER(SEARCH("Mapping",'Data extraction-synthesis'!L7)),"X","") ->  | G8: =IF(ISNUMBER(SEARCH("Market analyses",'Data extraction-synthesis'!L7)),"X","") ->  | H8: =IF(ISNUMBER(SEARCH("Literature search",'Data extraction-synthesis'!L7)),"X","") ->  | I8: =IF(ISNUMBER(SEARCH("Survey to retrieve input relevant for TPP",'Data extraction-synthesis'!L7)),"X","") ->  | J8: =IF(ISNUMBER(SEARCH("Landscaping exercise",'Data extraction-synthesis'!L7)),"X","") -> X | K8: =IF(ISNUMBER(SEARCH("Draft TPP",'Data extraction-synthesis'!L7)),"X","") -> X | L8: =IF(ISNUMBER(SEARCH("Round of revisions of TPP",'Data extraction-synthesis'!L7)),"X","") -> X | M8: =IF(ISNUMBER(SEARCH("Draft shortened TPP",'Data extraction-synthesis'!L7)),"X","") ->  | N8: =IF(ISNUMBER(SEARCH("Presentation of shortened TPP to large stakeholder audience",'Data extraction-synthesis'!L7)),"X","") ->  | O8: =IF(ISNUMBER(SEARCH("Identification of most important needs",'Data extraction-synthesis'!L7)),"X","") ->  | Q8: =IF(ISNUMBER(SEARCH("Delphi-like approach to gauge stakeholders’ agreement with the TPP",'Data extraction-synthesis'!L7)),"X","") -> X | R8: =IF(ISNUMBER(SEARCH("Data analysis",'Data extraction-synthesis'!L7)),"X","") ->  | S8: =IF(ISNUMBER(SEARCH("Definition problem statement/use case ",'Data extraction-synthesis'!L7)),"X","") ->  | T8: =IF(ISNUMBER(SEARCH("Identification of stakeholders to involve in draft TPP ",'Data extraction-synthesis'!L7)),"X","") ->  | U8: =IF(ISNUMBER(SEARCH("Definition TPP domains ",'Data extraction-synthesis'!L7)),"X","") ->  | V8: =IF(ISNUMBER(SEARCH("Survey to measure stakeholder’s preferences and agreement ",'Data extraction-synthesis'!L7)),"X","") ->  | W8: =IF(ISNUMBER(SEARCH("Reviewing available literature and data",'Data extraction-synthesis'!L7)),"X","") ->  | X8: =IF(ISNUMBER(SEARCH("Defining scope TPP ",'Data extraction-synthesis'!L7)),"X","") ->  | Y8: =IF(ISNUMBER(SEARCH("Interview with stakeholders",'Data extraction-synthesis'!L7)),"X","") ->  | Z8: =IF(ISNUMBER(SEARCH("Field research ",'Data extraction-synthesis'!L7)),"X","") ->  | AA8: =IF(ISNUMBER(SEARCH("Consolidation of findings",'Data extraction-synthesis'!L7)),"X","") ->  | AB8: =IF(ISNUMBER(SEARCH("N/A",'Data extraction-synthesis'!L7)),"X","") -> 
A9: WHO | B9: High-priority target product profile for hepatitis C diagnosis in decentralized settings: Report of a consensus meeting. | C9: =IF(ISNUMBER(SEARCH("Consensus/public meeting",'Data extraction-synthesis'!L8)),"X","") -> X | D9: =IF(ISNUMBER(SEARCH("Meeting with experts/stakeholders",'Data extraction-synthesis'!L8)),"X","") ->  | E9: =IF(ISNUMBER(SEARCH("Feedback from the consultation (e.g. survey, meeting, expert opinion) is incorporated into the final TPPs",'Data extraction-synthesis'!L8)),"X","") ->  | F9: =IF(ISNUMBER(SEARCH("Mapping",'Data extraction-synthesis'!L8)),"X","") ->  | G9: =IF(ISNUMBER(SEARCH("Market analyses",'Data extraction-synthesis'!L8)),"X","") ->  | H9: =IF(ISNUMBER(SEARCH("Literature search",'Data extraction-synthesis'!L8)),"X","") ->  | I9: =IF(ISNUMBER(SEARCH("Survey to retrieve input relevant for TPP",'Data extraction-synthesis'!L8)),"X","") ->  | J9: =IF(ISNUMBER(SEARCH("Landscaping exercise",'Data extraction-synthesis'!L8)),"X","") ->  | K9: =IF(ISNUMBER(SEARCH("Draft TPP",'Data extraction-synthesis'!L8)),"X","") -> X | L9: =IF(ISNUMBER(SEARCH("Round of revisions of TPP",'Data extraction-synthesis'!L8)),"X","") ->  | M9: =IF(ISNUMBER(SEARCH("Draft shortened TPP",'Data extraction-synthesis'!L8)),"X","") -> X | N9: =IF(ISNUMBER(SEARCH("Presentation of shortened TPP to large stakeholder audience",'Data extraction-synthesis'!L8)),"X","") ->  | O9: =IF(ISNUMBER(SEARCH("Identification of most important needs",'Data extraction-synthesis'!L8)),"X","") ->  | P9: =IF(ISNUMBER(SEARCH("Prioritization exercise",'Data extraction-synthesis'!L8)),"X","") -> X | Q9: =IF(ISNUMBER(SEARCH("Delphi-like approach to gauge stakeholders’ agreement with the TPP",'Data extraction-synthesis'!L8)),"X","") -> X | R9: =IF(ISNUMBER(SEARCH("Data analysis",'Data extraction-synthesis'!L8)),"X","") ->  | S9: =IF(ISNUMBER(SEARCH("Definition problem statement/use case ",'Data extraction-synthesis'!L8)),"X","") ->  | T9: =IF(ISNUMBER(SEARCH("Identification of stakeholders to involve in draft TPP ",'Data extraction-synthesis'!L8)),"X","") ->  | U9: =IF(ISNUMBER(SEARCH("Definition TPP domains ",'Data extraction-synthesis'!L8)),"X","") ->  | V9: =IF(ISNUMBER(SEARCH("Survey to measure stakeholder’s preferences and agreement ",'Data extraction-synthesis'!L8)),"X","") ->  | W9: =IF(ISNUMBER(SEARCH("Reviewing available literature and data",'Data extraction-synthesis'!L8)),"X","") ->  | X9: =IF(ISNUMBER(SEARCH("Defining scope TPP ",'Data extraction-synthesis'!L8)),"X","") ->  | Y9: =IF(ISNUMBER(SEARCH("Interview with stakeholders",'Data extraction-synthesis'!L8)),"X","") ->  | Z9: =IF(ISNUMBER(SEARCH("Field research ",'Data extraction-synthesis'!L8)),"X","") ->  | AA9: =IF(ISNUMBER(SEARCH("Consolidation of findings",'Data extraction-synthesis'!L8)),"X","") ->  | AB9: =IF(ISNUMBER(SEARCH("N/A",'Data extraction-synthesis'!L8)),"X","") -> 
A10: Gal, M. F., N. A.: Hood, K.: Villacian, J.: Goossens, H.: Watkins, A.: Butler, C. C. | B10: Matching diagnostics development to clinical need: Target product profile development for a point of care test for community-acquired lower respiratory tract infection | C10: =IF(ISNUMBER(SEARCH("Consensus/public meeting",'Data extraction-synthesis'!L9)),"X","") ->  | D10: =IF(ISNUMBER(SEARCH("Meeting with experts/stakeholders",'Data extraction-synthesis'!L9)),"X","") -> X | E10: =IF(ISNUMBER(SEARCH("Feedback from the consultation (e.g. survey, meeting, expert opinion) is incorporated into the final TPPs",'Data extraction-synthesis'!L9)),"X","") -> X | F10: =IF(ISNUMBER(SEARCH("Mapping",'Data extraction-synthesis'!L9)),"X","") ->  | G10: =IF(ISNUMBER(SEARCH("Market analyses",'Data extraction-synthesis'!L9)),"X","") ->  | H10: =IF(ISNUMBER(SEARCH("Literature search",'Data extraction-synthesis'!L9)),"X","") ->  | I10: =IF(ISNUMBER(SEARCH("Survey to retrieve input relevant for TPP",'Data extraction-synthesis'!L9)),"X","") -> X | J10: =IF(ISNUMBER(SEARCH("Landscaping exercise",'Data extraction-synthesis'!L9)),"X","") ->  | K10: =IF(ISNUMBER(SEARCH("Draft TPP",'Data extraction-synthesis'!L9)),"X","") -> X | L10: =IF(ISNUMBER(SEARCH("Round of revisions of TPP",'Data extraction-synthesis'!L9)),"X","") ->  | M10: =IF(ISNUMBER(SEARCH("Draft shortened TPP",'Data extraction-synthesis'!L9)),"X","") ->  | N10: =IF(ISNUMBER(SEARCH("Presentation of shortened TPP to large stakeholder audience",'Data extraction-synthesis'!L9)),"X","") ->  | O10: =IF(ISNUMBER(SEARCH("Identification of most important needs",'Data extraction-synthesis'!L9)),"X","") ->  | P10: =IF(ISNUMBER(SEARCH("Prioritization exercise",'Data extraction-synthesis'!L9)),"X","") -> X | Q10: =IF(ISNUMBER(SEARCH("Delphi-like approach to gauge stakeholders’ agreement with the TPP",'Data extraction-synthesis'!L9)),"X","") ->  | R10: =IF(ISNUMBER(SEARCH("Data analysis",'Data extraction-synthesis'!L9)),"X","") ->  | S10: =IF(ISNUMBER(SEARCH("Definition problem statement/use case ",'Data extraction-synthesis'!L9)),"X","") ->  | T10: =IF(ISNUMBER(SEARCH("Identification of stakeholders to involve in draft TPP ",'Data extraction-synthesis'!L9)),"X","") ->  | U10: =IF(ISNUMBER(SEARCH("Definition TPP domains ",'Data extraction-synthesis'!L9)),"X","") ->  | V10: =IF(ISNUMBER(SEARCH("Survey to measure stakeholder’s preferences and agreement ",'Data extraction-synthesis'!L9)),"X","") ->  | W10: =IF(ISNUMBER(SEARCH("Reviewing available literature and data",'Data extraction-synthesis'!L9)),"X","") ->  | X10: =IF(ISNUMBER(SEARCH("Defining scope TPP ",'Data extraction-synthesis'!L9)),"X","") ->  | Y10: =IF(ISNUMBER(SEARCH("Interview with stakeholders",'Data extraction-synthesis'!L9)),"X","") ->  | Z10: =IF(ISNUMBER(SEARCH("Field research ",'Data extraction-synthesis'!L9)),"X","") ->  | AA10: =IF(ISNUMBER(SEARCH("Consolidation of findings",'Data extraction-synthesis'!L9)),"X","") ->  | AB10: =IF(ISNUMBER(SEARCH("N/A",'Data extraction-synthesis'!L9)),"X","") -> 
A11: Lim, M. D. B., S. J.: Belizario, V. Y., Jr.: Gay-Andrieu, F.: Gilleard, J.: Levecke, B.: Lieshout, L. van: Medley, G. F.: Mekonnen, Z.: Mirams, G.: Njenga, S. M.: Odiere, M. R.: Rudge, J. W.: Stuyver, L.: Vercruysse, J.: Vlaminck, J.: Walson, J. L. | B11: Diagnostic tools for soil-transmitted helminths control and elimination programs: a pathway for diagnostic product development | C11: =IF(ISNUMBER(SEARCH("Consensus/public meeting",'Data extraction-synthesis'!L10)),"X","") ->  | D11: =IF(ISNUMBER(SEARCH("Meeting with experts/stakeholders",'Data extraction-synthesis'!L10)),"X","") -> X | E11: =IF(ISNUMBER(SEARCH("Feedback from the consultation (e.g. survey, meeting, expert opinion) is incorporated into the final TPPs",'Data extraction-synthesis'!L10)),"X","") -> X | F11: =IF(ISNUMBER(SEARCH("Mapping",'Data extraction-synthesis'!L10)),"X","") ->  | G11: =IF(ISNUMBER(SEARCH("Market analyses",'Data extraction-synthesis'!L10)),"X","") ->  | H11: =IF(ISNUMBER(SEARCH("Literature search",'Data extraction-synthesis'!L10)),"X","") ->  | I11: =IF(ISNUMBER(SEARCH("Survey to retrieve input relevant for TPP",'Data extraction-synthesis'!L10)),"X","") ->  | J11: =IF(ISNUMBER(SEARCH("Landscaping exercise",'Data extraction-synthesis'!L10)),"X","") -> X | K11: =IF(ISNUMBER(SEARCH("Draft TPP",'Data extraction-synthesis'!L10)),"X","") -> X | L11: =IF(ISNUMBER(SEARCH("Round of revisions of TPP",'Data extraction-synthesis'!L10)),"X","") -> X | M11: =IF(ISNUMBER(SEARCH("Draft shortened TPP",'Data extraction-synthesis'!L10)),"X","") ->  | N11: =IF(ISNUMBER(SEARCH("Presentation of shortened TPP to large stakeholder audience",'Data extraction-synthesis'!L10)),"X","") ->  | O11: =IF(ISNUMBER(SEARCH("Identification of most important needs",'Data extraction-synthesis'!L10)),"X","") ->  | P11: =IF(ISNUMBER(SEARCH("Prioritization exercise",'Data extraction-synthesis'!L10)),"X","") ->  | Q11: =IF(ISNUMBER(SEARCH("Delphi-like approach to gauge stakeholders’ agreement with the TPP",'Data extraction-synthesis'!L10)),"X","") ->  | R11: =IF(ISNUMBER(SEARCH("Data analysis",'Data extraction-synthesis'!L10)),"X","") ->  | S11: =IF(ISNUMBER(SEARCH("Definition problem statement/use case ",'Data extraction-synthesis'!L10)),"X","") -> X | T11: =IF(ISNUMBER(SEARCH("Identification of stakeholders to involve in draft TPP ",'Data extraction-synthesis'!L10)),"X","") ->  | U11: =IF(ISNUMBER(SEARCH("Definition TPP domains ",'Data extraction-synthesis'!L10)),"X","") ->  | V11: =IF(ISNUMBER(SEARCH("Survey to measure stakeholder’s preferences and agreement ",'Data extraction-synthesis'!L10)),"X","") ->  | W11: =IF(ISNUMBER(SEARCH("Reviewing available literature and data",'Data extraction-synthesis'!L10)),"X","") ->  | X11: =IF(ISNUMBER(SEARCH("Defining scope TPP ",'Data extraction-synthesis'!L10)),"X","") ->  | Y11: =IF(ISNUMBER(SEARCH("Interview with stakeholders",'Data extraction-synthesis'!L10)),"X","") ->  | Z11: =IF(ISNUMBER(SEARCH("Field research ",'Data extraction-synthesis'!L10)),"X","") ->  | AA11: =IF(ISNUMBER(SEARCH("Consolidation of findings",'Data extraction-synthesis'!L10)),"X","") ->  | AB11: =IF(ISNUMBER(SEARCH("N/A",'Data extraction-synthesis'!L10)),"X","") -> 
